Service Area,Service Division,Expense Type,Expense Code,Detailed Expense Type,Payment Date,Transaction Number,Amount Exc Vat,Supplier Name
Children and Adult Services,Head of Adults,Income,725017,Rents,01-Feb-2016,3081151-AHS00922,"1,022.37",AUCKLAND HOME SOLUTIONS CIC.
Children and Adult Services,Head of Adults,Income,725017,Rents,01-Feb-2016,3081151-AHS00923,"3,086.02",AUCKLAND HOME SOLUTIONS CIC.
Children and Adult Services,Head of Adults,Supplies and Services,338365,Services,01-Feb-2016,3081355-36133,"1,787.00",LOCKWISE LTD.
Children and Adult Services,Commissioning inc Supporting People,Third Party Payments,479102,Purchase of Care,01-Feb-2016,3081456-9176,"7,500.00",RETHINK MENTAL ILLNESS.
Children and Adult Services,Commissioning inc Supporting People,Third Party Payments,479102,Purchase of Care,01-Feb-2016,3081456-9177,"17,500.00",RETHINK MENTAL ILLNESS.
Children and Adult Services,Head of Adults,Third Party Payments,478151,Purchase of Care,01-Feb-2016,3081421-24164,"1,891.70",OAKLEA TRUST.
Children and Adult Services,Head of Adults,Third Party Payments,478151,Purchase of Care,01-Feb-2016,3081421-24165,"2,364.62",OAKLEA TRUST.
Children and Adult Services,Head of Adults,Supplies and Services,384918,Miscellaneous Expenses,01-Feb-2016,3081390-CAS-01-2016-146,"1,524.26",REDACTED - PAYMENT TO INDIVIDUAL
Children and Adult Services,Planning & Service Strategy,Employees,040149,Recruitment Instruction and Training,01-Feb-2016,3081268-14734,"12,500.00",FAMILY LINKS.
Children and Adult Services,Planning & Service Strategy,Supplies and Services,384540,Miscellaneous Expenses,01-Feb-2016,3081266-SINV00079992,"2,550.00",EXTERION MEDIA.
Children and Adult Services,Education,Supplies and Services,384199,Miscellaneous Expenses,01-Feb-2016,3081375-2351,"2,000.00",MID NITE EXPRESS.
Children and Adult Services,Head of Adults,Supplies and Services,304259,Equipment and Materials,01-Feb-2016,3081486-1215014,"10,405.00",SENSORY GURU LTD.
Children and Adult Services,Head of Adults,Supplies and Services,304999,Equipment and Materials,01-Feb-2016,3081486-1215015,"10,405.00",SENSORY GURU LTD.
Children and Adult Services,Education,Supplies and Services,384302,Miscellaneous Expenses,01-Feb-2016,3081168-208,725.00,BOINGBOING RESILIENCE CIC.
Dedicated Schools Grant,Dedicated Schools Grant,Supplies and Services,338091,Services,01-Feb-2016,3081313-51,725.00,HOME ON THE RANGE LTD.
Children and Adult Services,Education,Transfer Payments,510026,School Children,01-Feb-2016,3081231-2,598.20,DAWN TILL DUSK CHILDCARE.
Children and Adult Services,Education,Transfer Payments,510026,School Children,01-Feb-2016,3081328-LW/11/15-01/16DCATCH,546.00,JOANNE HARDY T/A DAYBREAK NURSERY.
Children and Adult Services,Education,Transfer Payments,510026,School Children,01-Feb-2016,3081547-SI-942,640.25,TM NURSERY ENTERPRISES LTD T/A JACK IN THE BOX DAYCARE.
Children and Adult Services,Education,Transport,235005,Public Transport,01-Feb-2016,3081149-110100,"3,475.20",ARRIVA NORTH EAST LTD.
Children and Adult Services,Education,Transport,230008,Contract Hire,01-Feb-2016,3081352-3312,"1,931.65",LINCAB TAXIS.
Dedicated Schools Grant,Dedicated Schools Grant,Central Support and Capital,689996,Unclassified,01-Feb-2016,3081314-CAS-01-2016-147,"55,534.00",HOPE WOOD ACADEMY.
Children and Adult Services,Childrens Services,Third Party Payments,425040,Rendered by Voluntary Organisations,01-Feb-2016,3081124-R31INV/00016737,"3,232.68",ACTION FOR CHILDREN.
Children and Adult Services,Childrens Services,Third Party Payments,425040,Rendered by Voluntary Organisations,01-Feb-2016,3081539-000179,"8,166.33",THE FOSTERING COMPANY NE LTD.
Children and Adult Services,Childrens Services,Third Party Payments,486020,Service Level Agreements,01-Feb-2016,3081453-PERIOD10PAYMENT,"19,155.20",REACH OUT CARE LTD.
Children and Adult Services,Childrens Services,Supplies and Services,342108,Computers and Communications,01-Feb-2016,3081126-30607709-61,801.30,ADT FIRE & SECURITY PLC.
Children and Adult Services,Childrens Services,Supplies and Services,342225,Computers and Communications,01-Feb-2016,3081126-30599190-61,957.66,ADT FIRE & SECURITY PLC.
Children and Adult Services,Childrens Services,Premises,108251,Service Repairs and Maintenance,01-Feb-2016,3081126-30607707-61,649.28,ADT FIRE & SECURITY PLC.
Children and Adult Services,Childrens Services,Premises,108251,Service Repairs and Maintenance,01-Feb-2016,3081126-30607708-61,649.28,ADT FIRE & SECURITY PLC.
Children and Adult Services,Childrens Services,Premises,108251,Service Repairs and Maintenance,01-Feb-2016,3081126-31078612-61,"1,996.30",ADT FIRE & SECURITY PLC.
Children and Adult Services,Childrens Services,Premises,108251,Service Repairs and Maintenance,01-Feb-2016,3081126-31110149-61,"1,007.36",ADT FIRE & SECURITY PLC.
Children and Adult Services,Childrens Services,Premises,108099,Service Repairs and Maintenance,01-Feb-2016,3081429-XL161550,819.02,PARK ELECTRICAL DISTRIBUTORS LTD.
Children and Adult Services,Childrens Services,Premises,108251,Service Repairs and Maintenance,01-Feb-2016,3081126-30605269-61,649.28,ADT FIRE & SECURITY PLC.
Children and Adult Services,Education,Employees,040001,Recruitment Instruction and Training,01-Feb-2016,3081195-100321,549.45,CATHOLIC TEACHERS GAZETTE T/A CARTREF PUBLISHING LTD.
Children and Adult Services,Education,Employees,040001,Recruitment Instruction and Training,01-Feb-2016,3081531-TARINV/15400262,710.10,TES GLOBAL LTD.
Children and Adult Services,Education,Employees,040001,Recruitment Instruction and Training,01-Feb-2016,3081532-TARINV/15400297,710.10,TES GLOBAL LTD.
Children and Adult Services,Education,Employees,040001,Recruitment Instruction and Training,01-Feb-2016,3081532-TARINV/15400803,710.10,TES GLOBAL LTD.
Assistant Chief Executive,Partnerships & Community Engagement Div.,Cap Exp on Grants & Other Financial Assistance (REFCUS),918004,Contributions to other bodies,01-Feb-2016,3081223-SMLGRNT-04,665.00,CROOK TOWN AFC YOUTH FOOTBALL CLUB.
Assistant Chief Executive,Partnerships & Community Engagement Div.,Cap Exp on Grants & Other Financial Assistance (REFCUS),918004,Contributions to other bodies,01-Feb-2016,3081345-SPEN001SPENPB15-02,"2,864.00",LEARNING LIBRARY.
Assistant Chief Executive,Partnerships & Community Engagement Div.,Supplies and Services,384085,Miscellaneous Expenses,01-Feb-2016,3081392-MAIJ03-15NAPA05-15,"2,000.00",MURTON HERITAGE SOCIETY.
Assistant Chief Executive,Partnerships & Community Engagement Div.,Cap Exp on Grants & Other Financial Assistance (REFCUS),918004,Contributions to other bodies,01-Feb-2016,3081420-SMLGRNT-06,"2,000.00",OAKENSHAW COMMUNITY ASSOCIATION.
Assistant Chief Executive,Partnerships & Community Engagement Div.,Cap Exp on Grants & Other Financial Assistance (REFCUS),918004,Contributions to other bodies,01-Feb-2016,3081474-SMLGRNT-14,"1,356.00",SALAMANDER TAEKWONDO CLUB.
Assistant Chief Executive,Partnerships & Community Engagement Div.,Cap Exp on Grants & Other Financial Assistance (REFCUS),918004,Contributions to other bodies,01-Feb-2016,3081503-SPEN001SPENPB15-07,"3,000.00",SPENNYMOOR STAGE & SONG.
Assistant Chief Executive,Partnerships & Community Engagement Div.,Supplies and Services,384085,Miscellaneous Expenses,01-Feb-2016,3081543-DAVK14-15HENK13-15,600.00,THE STORY LADIES CIC.
Assistant Chief Executive,Partnerships & Community Engagement Div.,Cap Exp on Grants & Other Financial Assistance (REFCUS),918004,Contributions to other bodies,01-Feb-2016,3081557-SPEN001SPENPB15-03,"3,000.00",TUDHOE CRICKET CLUB.
Assistant Chief Executive,Partnerships & Community Engagement Div.,Transfer Payments,525030,Other,01-Feb-2016,3081575-SPEN001SPENPB15-15,"1,152.00",WHITWORTH PARK SCHOOL.
Neighbourhood Services,Projects and Business services,Premises,125009,Rents,01-Feb-2016,3081198-RGEI/00000701,"7,564.86",CESTRIA HOUSING.
Neighbourhood Services,Technical Services,Supplies and Services,338029,Services,01-Feb-2016,3081323-B2108600-005,"8,930.04",JACOBS UK LTD.
Neighbourhood Services,Culture & Sport,Premises,145023,Cleaning and Domestic Supplies,01-Feb-2016,3081177-22SI2210935,"1,199.00",BRENNTAG UK LTD.
Neighbourhood Services,Direct Services,Third Party Payments,430100,Rendered by Private Contractors,01-Feb-2016,3081126-30842815-61,557.00,ADT FIRE & SECURITY PLC.
Neighbourhood Services,Direct Services,Third Party Payments,430100,Rendered by Private Contractors,01-Feb-2016,3081126-31099354-61,"13,409.70",ADT FIRE & SECURITY PLC.
Neighbourhood Services,Technical Services,Supplies and Services,304047,Equipment and Materials,01-Feb-2016,3081414-DI20233550,"5,145.93",NORTHERN POWERGRID (NORTHEAST) LTD.
Neighbourhood Services,Technical Services,Supplies and Services,304221,Equipment and Materials,01-Feb-2016,3081522-9033787460,"3,131.10",TARMAC TRADING LTD.
Neighbourhood Services,Direct Services,Supplies and Services,304259,Equipment and Materials,01-Feb-2016,3081511-0000022815,"7,407.84",STRAIGHT MANUFACTURING LTD.
Neighbourhood Services,Culture & Sport,Supplies and Services,324117,Provisions,01-Feb-2016,3081452-0000002851,"1,279.85",RAMSIDE HALL HOTEL & GOLF CLUB.
Neighbourhood Services,Direct Services,Third Party Payments,430100,Rendered by Private Contractors,01-Feb-2016,3081542-0000089943,740.00,THE SEKURA GROUP.
Neighbourhood Services,Technical Services,Stock,926900,Stock in hand-Inventory system,01-Feb-2016,3081500-SI16000199,"1,051.00",SOLON SECURITY LTD.
Neighbourhood Services,Technical Services,Stock,926900,Stock in hand-Inventory system,01-Feb-2016,3081546-N/IN163597,"1,356.42",THOMAS OWEN & SONS (NEWCASTLE) LTD.
Neighbourhood Services,Technical Services,Supplies and Services,304221,Equipment and Materials,01-Feb-2016,3081317-190000898,"1,466.04",ICL UK (SALES) LTD.
Neighbourhood Services,Technical Services,Supplies and Services,304221,Equipment and Materials,01-Feb-2016,3081333-BII180881,671.04,JT DOVE LTD.
Neighbourhood Services,Culture & Sport,Supplies and Services,324117,Provisions,01-Feb-2016,3081190-842270634,869.94,CARLSBERG UK LTD.
Neighbourhood Services,Technical Services,Supplies and Services,304221,Equipment and Materials,01-Feb-2016,3081128-22542789,"1,262.78",AGGREGATE INDUSTRIES UK LTD.
Neighbourhood Services,Technical Services,Supplies and Services,304221,Equipment and Materials,01-Feb-2016,3081128-22542792,607.70,AGGREGATE INDUSTRIES UK LTD.
Neighbourhood Services,Technical Services,Supplies and Services,304221,Equipment and Materials,01-Feb-2016,3081128-22542793,"1,776.87",AGGREGATE INDUSTRIES UK LTD.
Neighbourhood Services,Technical Services,Supplies and Services,304221,Equipment and Materials,01-Feb-2016,3081128-22542797,652.08,AGGREGATE INDUSTRIES UK LTD.
Neighbourhood Services,Technical Services,Supplies and Services,304221,Equipment and Materials,01-Feb-2016,3081128-22542798,"1,125.41",AGGREGATE INDUSTRIES UK LTD.
Neighbourhood Services,Technical Services,Supplies and Services,304221,Equipment and Materials,01-Feb-2016,3081128-22542799,"1,260.27",AGGREGATE INDUSTRIES UK LTD.
Neighbourhood Services,Technical Services,Supplies and Services,304221,Equipment and Materials,01-Feb-2016,3081128-22547159,515.01,AGGREGATE INDUSTRIES UK LTD.
Neighbourhood Services,Technical Services,Supplies and Services,304221,Equipment and Materials,01-Feb-2016,3081128-22547261,723.84,AGGREGATE INDUSTRIES UK LTD.
Neighbourhood Services,Technical Services,Supplies and Services,304221,Equipment and Materials,01-Feb-2016,3081128-22547262,929.25,AGGREGATE INDUSTRIES UK LTD.
Neighbourhood Services,Technical Services,Supplies and Services,304221,Equipment and Materials,01-Feb-2016,3081128-22547263,854.53,AGGREGATE INDUSTRIES UK LTD.
Neighbourhood Services,Direct Services,Third Party Payments,430100,Rendered by Private Contractors,01-Feb-2016,3081340-15070003,"12,779.79",KIER SERVICES LTD - MAINTENANCE NORTH.
Neighbourhood Services,Culture & Sport,Supplies and Services,338047,Services,01-Feb-2016,3081438-INV07894,"2,017.13",PICTUREHOUSE ENTERTAINMENT LTD.
Neighbourhood Services,Technical Services,Stock,926900,Stock in hand-Inventory system,01-Feb-2016,3081579-29208906,756.29,WOLSELEY UK LTD.
Neighbourhood Services,Technical Services,Stock,926900,Stock in hand-Inventory system,01-Feb-2016,3081579-29208907,"2,318.37",WOLSELEY UK LTD.
Neighbourhood Services,Direct Services,Supplies and Services,304221,Equipment and Materials,01-Feb-2016,3081302-SI-3188,"3,393.44",HARELAW SAWMILL LTD.
Neighbourhood Services,Direct Services,Supplies and Services,304221,Equipment and Materials,01-Feb-2016,3081520-1836746,598.53,T CROSSLING & CO LTD.
Neighbourhood Services,Direct Services,Supplies and Services,304221,Equipment and Materials,01-Feb-2016,3081520-1836930,"10,616.46",T CROSSLING & CO LTD.
Neighbourhood Services,Direct Services,Supplies and Services,304221,Equipment and Materials,01-Feb-2016,3081520-1837038,592.34,T CROSSLING & CO LTD.
Neighbourhood Services,Direct Services,Supplies and Services,304221,Equipment and Materials,01-Feb-2016,3081520-1839193,"11,654.76",T CROSSLING & CO LTD.
Neighbourhood Services,Direct Services,Supplies and Services,304221,Equipment and Materials,01-Feb-2016,3081520-1843437,881.46,T CROSSLING & CO LTD.
Neighbourhood Services,Direct Services,Supplies and Services,304221,Equipment and Materials,01-Feb-2016,3081520-1844949,"1,722.63",T CROSSLING & CO LTD.
Neighbourhood Services,Direct Services,Supplies and Services,304259,Equipment and Materials,01-Feb-2016,3081416-1845083,"2,541.00",NORTHERN TOOLS & ACCESSORIES.
Neighbourhood Services,Technical Services,Stock,926900,Stock in hand-Inventory system,01-Feb-2016,3081199-0396439,840.00,CHAMBERLAIN DOORS LTD.
Neighbourhood Services,Technical Services,Stock,926900,Stock in hand-Inventory system,01-Feb-2016,3081416-1840659,924.00,NORTHERN TOOLS & ACCESSORIES.
Neighbourhood Services,Technical Services,Stock,926900,Stock in hand-Inventory system,01-Feb-2016,3081416-1840667,519.00,NORTHERN TOOLS & ACCESSORIES.
Neighbourhood Services,Technical Services,Stock,926900,Stock in hand-Inventory system,01-Feb-2016,3081210-176340,612.00,COLAS LTD.
Neighbourhood Services,Direct Services,Supplies and Services,304259,Equipment and Materials,01-Feb-2016,3081327-00242,684.00,JN KEARTON.
Neighbourhood Services,Technical Services,Supplies and Services,304358,Equipment and Materials,01-Feb-2016,3081329-24504,"2,175.50",JOHN R BUTTERFIELD LTD.
Neighbourhood Services,Technical Services,Stock,926900,Stock in hand-Inventory system,01-Feb-2016,3081173-11695,560.00,BOXCLEVER TOTAL WASTE MANAGEMENT LTD.
Neighbourhood Services,Technical Services,Stock,926900,Stock in hand-Inventory system,01-Feb-2016,3081173-11759,560.00,BOXCLEVER TOTAL WASTE MANAGEMENT LTD.
Neighbourhood Services,Technical Services,Stock,926900,Stock in hand-Inventory system,01-Feb-2016,3081489-40151,"4,048.00",SG BAKER LTD.
Neighbourhood Services,Technical Services,Stock,926900,Stock in hand-Inventory system,01-Feb-2016,3081489-40183,"4,923.00",SG BAKER LTD.
Neighbourhood Services,Technical Services,Stock,926900,Stock in hand-Inventory system,01-Feb-2016,3081510-07817,634.78,STONEGRAVE AGGREGATES LTD.
Neighbourhood Services,Direct Services,Supplies and Services,304221,Equipment and Materials,01-Feb-2016,3081576-7829,"2,780.00",WILF HUSBAND PLANT HIRE.
Neighbourhood Services,Technical Services,Employees,040149,Recruitment Instruction and Training,01-Feb-2016,3081315-1907,"1,350.00",HSF TRAINING LTD.
Neighbourhood Services,Technical Services,Employees,040149,Recruitment Instruction and Training,01-Feb-2016,3081315-2179,"1,850.00",HSF TRAINING LTD.
Neighbourhood Services,Technical Services,Third Party Payments,430127,Rendered by Private Contractors,01-Feb-2016,3081307-4459,"3,058.50",HAWTHORN PLANT HIRE.
Neighbourhood Services,Direct Services,Supplies and Services,304221,Equipment and Materials,01-Feb-2016,3081135-674,620.00,ALL SEASONS ARBORISTS.
Resources,Corporate Finance,Supplies and Services,342051,Computers and Communications,01-Feb-2016,3081205-C/PE140171,"30,094.10",CIVICA UK LTD.
Resources,Human Resources,Third Party Payments,479112,Purchase of Care,01-Feb-2016,3081208-3910008353,612.53,CO DURHAM & DARLINGTON NHS FOUNDATION TRUST.
Resources,Corporate Finance,Supplies and Services,338099,Services,01-Feb-2016,3081222-586393,"4,600.00",CREDITSAFE BUSINESS SOLUTIONS LTD.
Resources,I.C.T. Services,Vehicles Equipment Furniture and Fittings,912529,Purchase-equipment,01-Feb-2016,3081400-91982168,"27,080.90",NEOPOST LTD.
Resources,I.C.T. Services,Vehicles Equipment Furniture and Fittings,912529,Purchase-equipment,01-Feb-2016,3081400-92032780,"2,321.22",NEOPOST LTD.
Resources,Financial Services,Supplies and Services,364993,Grants to Voluntary Organisations,01-Feb-2016,3081466-RES-01-2016-151,"2,000.00",RUTH FIRST EDUCATIONAL TRUST.
Resources,I.C.T. Services,Supplies and Services,342051,Computers and Communications,01-Feb-2016,3081499-INV01293524,"1,189.00",SOFTCAT LTD.
Resources,I.C.T. Services,Stock,926900,Stock in hand-Inventory system,01-Feb-2016,3081513-7943388,642.61,SUPPLIES TEAM LTD (NOW KNOWN AS BANNER).
Resources,I.C.T. Services,Supplies and Services,342033,Computers and Communications,01-Feb-2016,3081518-123070,"2,778.00",SWITCHSHOP LTD.
Children and Adult Services,Head of Adults,Transport,230005,Contract Hire,02-Feb-2016,3082303-181,598.40,I CLYDESDALE T/A BURNOPFIELD TAXIS.
Children and Adult Services,Planning & Service Strategy,Employees,040149,Recruitment Instruction and Training,02-Feb-2016,3082311-MANAGERSWORKSHOPS,"1,950.00",JOANNE DAVIDSON HARE - SOCIAL CARE.
Children and Adult Services,Planning & Service Strategy,Supplies and Services,384540,Miscellaneous Expenses,02-Feb-2016,3082285-SINV00079993,"3,450.00",EXTERION MEDIA.
Children and Adult Services,Education,Transport,230007,Contract Hire,02-Feb-2016,3082234-84,504.00,ANDY CABS.
Children and Adult Services,Education,Transport,230007,Contract Hire,02-Feb-2016,3082224-512,608.00,ADAMSONS TAXIS.
Children and Adult Services,Education,Transport,230007,Contract Hire,02-Feb-2016,3082341-5-JAN16-4076,"1,200.00",MR REES WILKINSON T/A B & L MINIBUS HIRE.
Children and Adult Services,Education,Construction Work,908105,Construction work,02-Feb-2016,3082305-DURH/0673,936.50,INSPIREDSPACES DURHAM LTD.
Children and Adult Services,Education,Transport,230007,Contract Hire,02-Feb-2016,3082279-5,800.00,DUNCAN G CUMMINGS T/A DC TAXIS.
Children and Adult Services,Education,Transport,230007,Contract Hire,02-Feb-2016,3082341-5194-JAN16,900.00,MR REES WILKINSON T/A B & L MINIBUS HIRE.
Children and Adult Services,Education,Transport,230008,Contract Hire,02-Feb-2016,3082243-119-JANUARY2016,"1,862.00",BG TAXIS.
Children and Adult Services,Education,Transport,230006,Contract Hire,02-Feb-2016,3082314-0023,"1,045.00",JOHN WARE T/A J & K TAXIS.
Children and Adult Services,Education,Transport,230008,Contract Hire,02-Feb-2016,3082317-JAN2016,"1,216.00",K & R TAXIS.
Children and Adult Services,Education,Transport,230008,Contract Hire,02-Feb-2016,3082234-83,"1,000.00",ANDY CABS.
Children and Adult Services,Education,Transport,230008,Contract Hire,02-Feb-2016,3082270-G/HEAD012,"1,500.00",D IRVING T/A BJ TAXIS.
Children and Adult Services,Education,Transport,230008,Contract Hire,02-Feb-2016,3082238-112,819.00,AVENUE TAXIS.
Children and Adult Services,Education,Transport,230008,Contract Hire,02-Feb-2016,3082241-52,"2,079.39",BEELINE TAXIS.
Children and Adult Services,Education,Transport,230008,Contract Hire,02-Feb-2016,3082237-2901016,"1,050.32",AVALON TAXIS.
Children and Adult Services,Education,Transport,230008,Contract Hire,02-Feb-2016,3082271-1449,"1,200.00",DA TAXIS.
Children and Adult Services,Education,Transport,230008,Contract Hire,02-Feb-2016,3082272-164,"1,100.00",DA TRAVEL.
Children and Adult Services,Education,Transport,230008,Contract Hire,02-Feb-2016,3082269-71,"1,090.26",D CROOK T/A CK TAXIS.
Children and Adult Services,Childrens Services,Employees,080025,Agency Staff,02-Feb-2016,3082276-329735,"150,117.27",DE POEL MANAGED SERVICES LTD.
Children and Adult Services,Childrens Services,Third Party Payments,440036,Other Third Party Payments,02-Feb-2016,3081719-1080714,586.40,REDACTED - PAYMENT TO INDIVIDUAL
Children and Adult Services,Childrens Services,Supplies and Services,364301,Grants to Voluntary Organisations,02-Feb-2016,3082308-CAS-02-2016-005,622.09,REDACTED - PAYMENT TO INDIVIDUAL
Children and Adult Services,Childrens Services,Supplies and Services,364353,Grants to Voluntary Organisations,02-Feb-2016,3082282-CAS-02-2016-001,"1,472.16",REDACTED - PAYMENT TO INDIVIDUAL
Children and Adult Services,Childrens Services,Supplies and Services,308011,Furniture,02-Feb-2016,3082230-154288,750.00,ALBANY CONTRACT FURNITURE.
Children and Adult Services,Childrens Services,Third Party Payments,440001,Other Third Party Payments,02-Feb-2016,3081947-1080753,972.00,REDACTED - PAYMENT TO INDIVIDUAL
Children and Adult Services,Childrens Services,Employees,080025,Agency Staff,02-Feb-2016,3082253-2319175,"1,160.00",CELSIAN.
Children and Adult Services,Childrens Services,Supplies and Services,342225,Computers and Communications,02-Feb-2016,3082226-30607706-61,"1,103.30",ADT FIRE & SECURITY PLC.
Children and Adult Services,Childrens Services,Supplies and Services,384302,Miscellaneous Expenses,02-Feb-2016,3082335-10/1/16,"1,000.00",MID DURHAM PROJECTS CLUB.
Assistant Chief Executive,Partnerships & Community Engagement Div.,Cap Exp on Grants & Other Financial Assistance (REFCUS),918004,Contributions to other bodies,02-Feb-2016,3082261-AH-TEES001SGF016,"1,000.00",COPLEY VILLAGE HALL ASSOCIATION.
Assistant Chief Executive,Partnerships & Community Engagement Div.,Transfer Payments,525030,Other,02-Feb-2016,3082262-PH-TEES001,"5,000.00",CORNFORTH PARTNERSHIP.
Assistant Chief Executive,Partnerships & Community Engagement Div.,Cap Exp on Grants & Other Financial Assistance (REFCUS),918004,Contributions to other bodies,02-Feb-2016,3082301-SPEN009,"2,040.00",HETT VILLAGE HALL ASSOCIATION.
Assistant Chief Executive,Partnerships & Community Engagement Div.,Cap Exp on Grants & Other Financial Assistance (REFCUS),918004,Contributions to other bodies,02-Feb-2016,3082394-EDUR039,"6,000.00",WINGATE & DISTRICT COMMUNITY ASSOCIATON.
Neighbourhood Services,Culture & Sport,Supplies and Services,338047,Services,02-Feb-2016,3082389-22314070160-1,"1,569.11",UNIVERSAL PICTURES INTERNATIONAL UK & EIRE LTD.
Neighbourhood Services,Technical Services,Supplies and Services,304259,Equipment and Materials,02-Feb-2016,3082380-9029756771,541.50,TARMAC TRADING LTD.
Neighbourhood Services,Technical Services,Supplies and Services,304259,Equipment and Materials,02-Feb-2016,3082380-9030597898,565.31,TARMAC TRADING LTD.
Neighbourhood Services,Technical Services,Supplies and Services,304259,Equipment and Materials,02-Feb-2016,3082380-9031292411,558.95,TARMAC TRADING LTD.
Neighbourhood Services,Technical Services,Stock,926900,Stock in hand-Inventory system,02-Feb-2016,3082235-926374779,711.20,ARCO LTD.
Neighbourhood Services,Technical Services,Supplies and Services,304221,Equipment and Materials,02-Feb-2016,3082229-22551207,652.15,AGGREGATE INDUSTRIES UK LTD.
Neighbourhood Services,Technical Services,Supplies and Services,304221,Equipment and Materials,02-Feb-2016,3082229-22551208,"1,011.68",AGGREGATE INDUSTRIES UK LTD.
Neighbourhood Services,Direct Services,Third Party Payments,430100,Rendered by Private Contractors,02-Feb-2016,3082249-82576256,"1,028.45",BRISTOL STREET MOTORS.
Neighbourhood Services,Direct Services,Third Party Payments,430100,Rendered by Private Contractors,02-Feb-2016,3082249-82576292,"1,054.49",BRISTOL STREET MOTORS.
Neighbourhood Services,Culture & Sport,Supplies and Services,312013,Newspapers Books and Periodicals,02-Feb-2016,3082236-4913074,567.42,ASKEWS & HOLTS LIBRARY SERVICES LTD.
Neighbourhood Services,Culture & Sport,Supplies and Services,312013,Newspapers Books and Periodicals,02-Feb-2016,3082236-4913118,796.98,ASKEWS & HOLTS LIBRARY SERVICES LTD.
Neighbourhood Services,Culture & Sport,Supplies and Services,312013,Newspapers Books and Periodicals,02-Feb-2016,3082236-4918283,618.24,ASKEWS & HOLTS LIBRARY SERVICES LTD.
Neighbourhood Services,Direct Services,Third Party Payments,430100,Rendered by Private Contractors,02-Feb-2016,3082293-SI30753,"3,241.50",GEOFFREY ROBINSON LTD.
Neighbourhood Services,Direct Services,Supplies and Services,304259,Equipment and Materials,02-Feb-2016,3082251-464690,755.00,CARRS BILLINGTON AGRICULTURE.
Neighbourhood Services,Direct Services,Transport,210057,Repair and Maintenance of Vehicles,02-Feb-2016,3082297-126816,570.78,GREENLAY (GRASS MACHINERY) LTD.
Neighbourhood Services,Direct Services,Transport,210057,Repair and Maintenance of Vehicles,02-Feb-2016,3082309-154261,675.90,JG PAXTON & SONS LTD.
Neighbourhood Services,Direct Services,Transport,210057,Repair and Maintenance of Vehicles,02-Feb-2016,3082328-123543,"1,063.74",LONDONDERRY GARAGE (S.E) LTD.
Neighbourhood Services,Direct Services,Premises,145009,Cleaning and Domestic Supplies,02-Feb-2016,3082346-53876,764.50,NIRAMAX GROUP LTD.
Neighbourhood Services,Technical Services,Supplies and Services,384194,Miscellaneous Expenses,02-Feb-2016,3082346-53877,"2,375.00",NIRAMAX GROUP LTD.
Neighbourhood Services,Technical Services,Third Party Payments,430127,Rendered by Private Contractors,02-Feb-2016,3082306-0983A,"1,311.00",J & JG GILL & SONS LTD.
Neighbourhood Services,Direct Services,Third Party Payments,430100,Rendered by Private Contractors,02-Feb-2016,3082298-J5288,876.00,GROVE REED.
Neighbourhood Services,Direct Services,Transport,210057,Repair and Maintenance of Vehicles,02-Feb-2016,3082347-68065,604.50,NORPLAST LTD.
Neighbourhood Services,Technical Services,Supplies and Services,304221,Equipment and Materials,02-Feb-2016,3082379-1348,"3,156.50",SUPAMOLE DIRECTIONAL DRILLING SPECIALISTS.
Neighbourhood Services,Technical Services,Supplies and Services,304358,Equipment and Materials,02-Feb-2016,3082318-1221,"1,840.50",KEVIN SNOWDON GROUNDWORKS LTD.
Neighbourhood Services,Technical Services,Supplies and Services,304358,Equipment and Materials,02-Feb-2016,3082318-1226,"1,301.50",KEVIN SNOWDON GROUNDWORKS LTD.
Neighbourhood Services,Technical Services,Supplies and Services,304358,Equipment and Materials,02-Feb-2016,3082318-1230,"1,841.50",KEVIN SNOWDON GROUNDWORKS LTD.
Neighbourhood Services,Technical Services,Supplies and Services,304358,Equipment and Materials,02-Feb-2016,3082318-1233,898.00,KEVIN SNOWDON GROUNDWORKS LTD.
Neighbourhood Services,Technical Services,Supplies and Services,304358,Equipment and Materials,02-Feb-2016,3082318-1234,"3,006.00",KEVIN SNOWDON GROUNDWORKS LTD.
Neighbourhood Services,Technical Services,Supplies and Services,304358,Equipment and Materials,02-Feb-2016,3082318-1235,839.00,KEVIN SNOWDON GROUNDWORKS LTD.
Neighbourhood Services,Technical Services,Supplies and Services,304358,Equipment and Materials,02-Feb-2016,3082318-1236,"2,125.50",KEVIN SNOWDON GROUNDWORKS LTD.
Neighbourhood Services,Technical Services,Supplies and Services,304358,Equipment and Materials,02-Feb-2016,3082318-1237,"2,480.75",KEVIN SNOWDON GROUNDWORKS LTD.
Neighbourhood Services,Technical Services,Supplies and Services,304358,Equipment and Materials,02-Feb-2016,3082318-1243,"1,881.00",KEVIN SNOWDON GROUNDWORKS LTD.
Neighbourhood Services,Technical Services,Supplies and Services,304358,Equipment and Materials,02-Feb-2016,3082395-5294,609.75,YOULL CONSTRUCTION LTD.
Neighbourhood Services,Culture & Sport,Supplies and Services,338047,Services,02-Feb-2016,3082258-4583,"2,900.00",CLIVE CONWAY CELEBRITY PRODUCTIONS LTD.
Neighbourhood Services,Direct Services,Third Party Payments,430105,Rendered by Private Contractors,02-Feb-2016,3082343-326,"3,752.18",NE GREEN WASTE RECYCLING LTD.
Neighbourhood Services,Culture & Sport,Supplies and Services,338047,Services,02-Feb-2016,3082345-547,"23,801.38",NEW WRITING NORTH LTD.
Neighbourhood Services,Technical Services,Third Party Payments,430127,Rendered by Private Contractors,02-Feb-2016,3082268-11,"1,611.00",D & L HOPPS.
Resources,I.C.T. Services,Debtors,930168,Debtor - Mobile Telephone Holding Account,02-Feb-2016,3082281-01221949282,"8,857.73",EE LTD.
Children and Adult Services,Head of Adults,Transport,230005,Contract Hire,03-Feb-2016,3082448-CLS058-JAN2016,528.00,AXLE TAXIS.
Children and Adult Services,Head of Adults,Transport,230005,Contract Hire,03-Feb-2016,3082893-9316,848.00,TRANSPORT.ADVENTURE.XI.
Children and Adult Services,Head of Adults,Transport,230005,Contract Hire,03-Feb-2016,3082893-9416,"1,140.00",TRANSPORT.ADVENTURE.XI.
Children and Adult Services,Head of Adults,Transport,230005,Contract Hire,03-Feb-2016,3082407-A1DCC/531,531.44,A1 TAXIS.
Children and Adult Services,Head of Adults,Transport,230005,Contract Hire,03-Feb-2016,3082647-DM1495,836.00,JOVIAL PRIVATE HIRE.
Children and Adult Services,Head of Adults,Transport,230005,Contract Hire,03-Feb-2016,3082831-126-JAN2016,802.00,SIMONS TAXIS.
Children and Adult Services,Commissioning inc Supporting People,Third Party Payments,473111,Purchase of Care,03-Feb-2016,3082442-4THQUARTER15/16,"4,194.50",ASSOCIATION OF TEESDALE DAY CLUBS.
Children and Adult Services,Head of Adults,Transport,230005,Contract Hire,03-Feb-2016,3082414-192,888.00,ACE TAXIS..
Children and Adult Services,Head of Adults,Transport,230005,Contract Hire,03-Feb-2016,3082406-EA220772,"1,600.00",A MURRAY TRAVEL.
Children and Adult Services,Head of Adults,Transport,230005,Contract Hire,03-Feb-2016,3082411-O289,"1,480.00",ABC & OUSTON CABS.
Children and Adult Services,Head of Adults,Transport,230005,Contract Hire,03-Feb-2016,3082682-JANUARYC5,"1,025.60",MA BODDY.
Children and Adult Services,Head of Adults,Supplies and Services,364352,Grants to Voluntary Organisations,03-Feb-2016,3082794-1219,967.65,ROCSOLID.
Children and Adult Services,Head of Adults,Transport,230005,Contract Hire,03-Feb-2016,3082690-590116,"1,300.00",MARK MUSGROVE T/A MARKS TAXIS.
Children and Adult Services,Head of Adults,Transport,230005,Contract Hire,03-Feb-2016,3082795-5/CLS060,900.00,ROUTE 1.
Children and Adult Services,Planning & Service Strategy,Supplies and Services,340001,Postages,03-Feb-2016,3082798-9051364653,805.60,ROYAL MAIL GROUP PLC.
Children and Adult Services,Planning & Service Strategy,Supplies and Services,308011,Furniture,03-Feb-2016,3082424-153723,"1,980.00",ALBANY CONTRACT FURNITURE.
Children and Adult Services,Planning & Service Strategy,Supplies and Services,332047,Printing Stationery and Gen Off Exps,03-Feb-2016,3082736-91362245,"2,957.80",NORTHGATE PUBLIC SERVICES (UK) LTD.
Children and Adult Services,Head of Adults,Supplies and Services,304259,Equipment and Materials,03-Feb-2016,3082691-0000150521,988.50,MARSDEN WEIGHING MACHINE GROUP LTD.
Children and Adult Services,Head of Adults,Supplies and Services,338365,Services,03-Feb-2016,3082818-179664,"1,650.00",SENSORY PLUS.
Children and Adult Services,Public Health,Third Party Payments,460803,Contract Payments,03-Feb-2016,3082525-SINV5405,"4,166.74",CSV COMMUNITY SERVICE VOLUNTEERS.
Children and Adult Services,Education,Supplies and Services,384302,Miscellaneous Expenses,03-Feb-2016,3082881-4108,782.35,THE WORK PLACE (AYCLIFFE) LTD.
Children and Adult Services,Education,Supplies and Services,384199,Miscellaneous Expenses,03-Feb-2016,3082833-216152,740.00,SIMPLY SPORT LTD.
Children and Adult Services,Education,Premises,145009,Cleaning and Domestic Supplies,03-Feb-2016,302367-3887,570.00,A & B INDUSTRIAL CLEANING LTD.
Dedicated Schools Grant,Dedicated Schools Grant,Transport,230010,Contract Hire,03-Feb-2016,3082677-78-JAN2016,"1,445.00",LORRAINES TAXIS.
Children and Adult Services,Education,Transport,230005,Contract Hire,03-Feb-2016,3082587-3048,882.00,GEM TRAVEL.
Children and Adult Services,Education,Construction Work,908105,Construction work,03-Feb-2016,3082662-15192,"1,290.00",LANDFORM SURVEYS LTD.
Children and Adult Services,Education,Transport,230007,Contract Hire,03-Feb-2016,3082641-2486,"1,966.50",JEFF ANDERSON COACHES LTD.
Children and Adult Services,Education,Transport,230007,Contract Hire,03-Feb-2016,3082671-3311,"1,390.06",LINCAB TAXIS.
Children and Adult Services,Education,Construction Work,908105,Construction work,03-Feb-2016,3082681-29534,840.00,LUCION ENVIRONMENTAL LLP LTD.
Children and Adult Services,Education,Transport,230007,Contract Hire,03-Feb-2016,3082464-25-JAN16,800.00,BL TAXIS.
Children and Adult Services,Education,Transport,230008,Contract Hire,03-Feb-2016,3082543-DCT-14-17,"1,280.00",DUNCAN G CUMMINGS T/A DC TAXIS.
Children and Adult Services,Education,Transport,230008,Contract Hire,03-Feb-2016,3082700-INV-96,"1,140.00",MICHAEL COBB (T/A HAIL TAXIS).
Children and Adult Services,Education,Transport,230008,Contract Hire,03-Feb-2016,3082895-76JAN16,"1,520.00",TRIDENT TAXIS.
Children and Adult Services,Education,Transport,230007,Contract Hire,03-Feb-2016,3082791-447,700.00,ROAD RUNNERS (NE) LTD.
Children and Adult Services,Education,Transport,230008,Contract Hire,03-Feb-2016,3082423-388240,"1,266.50",ALAN SOUTHERN T/A ALANS TAXIS PELTON FELL.
Children and Adult Services,Education,Supplies and Services,384199,Miscellaneous Expenses,03-Feb-2016,3082607-2963,"8,250.00",HALLE CONCERTS SOCIETY.
Children and Adult Services,Education,Transport,230008,Contract Hire,03-Feb-2016,3082423-388140,800.00,ALAN SOUTHERN T/A ALANS TAXIS PELTON FELL.
Children and Adult Services,Education,Transport,230008,Contract Hire,03-Feb-2016,3082412-50-29/1/16,810.00,ABLE NOVAK TAXIS.
Children and Adult Services,Education,Transport,230008,Contract Hire,03-Feb-2016,3082697-21,"1,485.00",MAURICE & SONS.
Children and Adult Services,Education,Transport,230008,Contract Hire,03-Feb-2016,3082677-77-JAN2016,"1,508.22",LORRAINES TAXIS.
Children and Adult Services,Education,Supplies and Services,338027,Services,03-Feb-2016,3082497-2807022942,"1,500.00",CITY OF SUNDERLAND.
Children and Adult Services,Education,Supplies and Services,338027,Services,03-Feb-2016,3082645-49,720.00,JOHN RYMASZEWSKI.
Children and Adult Services,Education,Supplies and Services,338027,Services,03-Feb-2016,3082732-730,"2,668.50",NORTH EAST ENVIRONMENT NETWORK LTD.
Children and Adult Services,Education,Supplies and Services,304259,Equipment and Materials,03-Feb-2016,3082440-118,500.00,ASPIRE CHILDREN SERVICES LTD.
Children and Adult Services,Childrens Services,Transport,230005,Contract Hire,03-Feb-2016,3082673-2392,"4,040.00",LOCAL TRANSPORT LTD.
Children and Adult Services,Childrens Services,Transport,230005,Contract Hire,03-Feb-2016,3082791-457,"1,330.00",ROAD RUNNERS (NE) LTD.
Children and Adult Services,Childrens Services,Supplies and Services,364352,Grants to Voluntary Organisations,03-Feb-2016,3082794-1222,730.56,ROCSOLID.
Children and Adult Services,Childrens Services,Third Party Payments,425040,Rendered by Voluntary Organisations,03-Feb-2016,3082577-630177823,"3,232.68",FOSTER CARE ASSOCIATES LTD.
Children and Adult Services,Childrens Services,Third Party Payments,425040,Rendered by Voluntary Organisations,03-Feb-2016,3082857-176765,730.03,SWIIS FOSTER CARE LTD.
Children and Adult Services,Childrens Services,Third Party Payments,425040,Rendered by Voluntary Organisations,03-Feb-2016,3082857-176767,730.03,SWIIS FOSTER CARE LTD.
Children and Adult Services,Childrens Services,Third Party Payments,425040,Rendered by Voluntary Organisations,03-Feb-2016,3082857-176768,980.00,SWIIS FOSTER CARE LTD.
Children and Adult Services,Childrens Services,Third Party Payments,425040,Rendered by Voluntary Organisations,03-Feb-2016,3082857-176771,819.98,SWIIS FOSTER CARE LTD.
Children and Adult Services,Childrens Services,Transport,235073,Public Transport,03-Feb-2016,302374-CAS-02-2016-013,518.95,REDACTED - PAYMENT TO INDIVIDUAL
Children and Adult Services,Childrens Services,Transport,230005,Contract Hire,03-Feb-2016,3082673-2389,900.00,LOCAL TRANSPORT LTD.
Children and Adult Services,Childrens Services,Transport,230005,Contract Hire,03-Feb-2016,3082673-2390,620.00,LOCAL TRANSPORT LTD.
Children and Adult Services,Childrens Services,Transport,230005,Contract Hire,03-Feb-2016,3082673-2432,"1,540.00",LOCAL TRANSPORT LTD.
Children and Adult Services,Childrens Services,Supplies and Services,364310,Grants to Voluntary Organisations,03-Feb-2016,3082849-CAS-02-2016-025,"8,119.80",REDACTED - PAYMENT TO INDIVIDUAL
Children and Adult Services,Childrens Services,Supplies and Services,342033,Computers and Communications,03-Feb-2016,3082533-7402257789,"51,833.54",DELL COMPUTER CORPORATION LTD.
Children and Adult Services,Childrens Services,Supplies and Services,340001,Postages,03-Feb-2016,3082722-CAS-02-2016-022,500.00,NEOPOST LTD.
Children and Adult Services,Childrens Services,Supplies and Services,384491,Miscellaneous Expenses,03-Feb-2016,3082474-CRECHE201601,"1,788.75",BUTTERCUP NURSERIES LTD.
Assistant Chief Executive,Policy & Communications Division,Supplies and Services,384199,Miscellaneous Expenses,03-Feb-2016,3082560-EIN0012781,"2,250.00",EMAP PUBLISHING LTD.
Neighbourhood Services,Technical Services,Third Party Payments,430100,Rendered by Private Contractors,03-Feb-2016,3082491-NEI-EXP-01-2016-044.,"16,667.00",CHARLES LAWRENCE SURFACES LTD.
Neighbourhood Services,Direct Services,Premises,120037,Energy Costs,03-Feb-2016,3082576-0000007370,"1,350.00",FOREVER FUELS LTD
Neighbourhood Services,Direct Services,Supplies and Services,304221,Equipment and Materials,03-Feb-2016,3082734-0000019808,"1,850.00",NORTHERN DRIVES & CONTROLS LTD.
Neighbourhood Services,Direct Services,Supplies and Services,304221,Equipment and Materials,03-Feb-2016,3082845-R050014080,705.10,STANNAH LIFT SERVICE LTD.
Neighbourhood Services,Technical Services,Supplies and Services,304221,Equipment and Materials,03-Feb-2016,3082861-9033790679,617.19,TARMAC TRADING LTD.
Neighbourhood Services,Projects and Business services,Supplies and Services,340001,Postages,03-Feb-2016,3082798-9051352602,"29,834.43",ROYAL MAIL GROUP PLC.
Neighbourhood Services,Projects and Business services,Supplies and Services,340001,Postages,03-Feb-2016,3082798-9051358076,"1,610.84",ROYAL MAIL GROUP PLC.
Neighbourhood Services,Direct Services,Third Party Payments,430100,Rendered by Private Contractors,03-Feb-2016,3082737-IW02708695,987.54,NORTHGATE VEHICLE HIRE LTD.
Neighbourhood Services,Culture & Sport,Employees,080025,Agency Staff,03-Feb-2016,3082530-012016/01,602.20,DAVE WALLER.
Neighbourhood Services,Direct Services,Third Party Payments,430100,Rendered by Private Contractors,03-Feb-2016,3082675-HI0076964,712.56,LOOKERS LEASING LTD.
Neighbourhood Services,Technical Services,Stock,926900,Stock in hand-Inventory system,03-Feb-2016,3082599-06/586172,"2,140.96",GREENHAM TRADING LTD.
Neighbourhood Services,Technical Services,Supplies and Services,304221,Equipment and Materials,03-Feb-2016,3082420-22553420,516.98,AGGREGATE INDUSTRIES UK LTD.
Neighbourhood Services,Technical Services,Supplies and Services,304221,Equipment and Materials,03-Feb-2016,3082420-22553421,645.50,AGGREGATE INDUSTRIES UK LTD.
Neighbourhood Services,Technical Services,Supplies and Services,304221,Equipment and Materials,03-Feb-2016,3082420-22553510,"1,245.22",AGGREGATE INDUSTRIES UK LTD.
Neighbourhood Services,Technical Services,Supplies and Services,304221,Equipment and Materials,03-Feb-2016,3082420-22553511,904.54,AGGREGATE INDUSTRIES UK LTD.
Neighbourhood Services,Technical Services,Supplies and Services,304221,Equipment and Materials,03-Feb-2016,3082420-22553512,"1,057.96",AGGREGATE INDUSTRIES UK LTD.
Neighbourhood Services,Direct Services,Third Party Payments,430100,Rendered by Private Contractors,03-Feb-2016,3082926-C335/758,"8,417.00",WRAM FABRICATIONS LTD.
Neighbourhood Services,Culture & Sport,Supplies and Services,384199,Miscellaneous Expenses,03-Feb-2016,3082755-4395932,"1,516.76",PERFORMING RIGHT SOCIETY LTD T/A PRS FOR MUSIC.
Neighbourhood Services,Culture & Sport,Supplies and Services,312013,Newspapers Books and Periodicals,03-Feb-2016,3082902-I597079,"1,578.40",ULVERSCROFT LARGE PRINT BOOKS LTD.
Neighbourhood Services,Culture & Sport,Supplies and Services,328041,Clothing Uniforms and Laundry,03-Feb-2016,3082856-449571,"1,391.00",SWIFT INDUSTRIAL SUPPLIES LTD.
Neighbourhood Services,Technical Services,Supplies and Services,304221,Equipment and Materials,03-Feb-2016,3082892-617968,850.00,TRAFFIC MANAGEMENT PRODUCTS LTD (TMP).
Neighbourhood Services,Direct Services,Supplies and Services,304259,Equipment and Materials,03-Feb-2016,3082603-133211,"1,497.00",GUSTHARTS.
Neighbourhood Services,Direct Services,Supplies and Services,304259,Equipment and Materials,03-Feb-2016,3082603-133213,"1,447.10",GUSTHARTS.
Neighbourhood Services,Direct Services,Supplies and Services,304259,Equipment and Materials,03-Feb-2016,3082606-041930,"2,463.00",HAGS-SMP LTD.
Neighbourhood Services,Technical Services,Stock,926900,Stock in hand-Inventory system,03-Feb-2016,3082629-515018,915.60,INSTARMAC GROUP PLC.
Neighbourhood Services,Technical Services,Construction Work,908105,Construction work,03-Feb-2016,3082634-12048,510.61,JACK COUPE & SONS LTD T/A COUPE LINE.
Neighbourhood Services,Technical Services,Construction Work,908105,Construction work,03-Feb-2016,3082634-12049,739.09,JACK COUPE & SONS LTD T/A COUPE LINE.
Neighbourhood Services,Technical Services,Supplies and Services,384110,Miscellaneous Expenses,03-Feb-2016,3082931-20922,"4,999.00",XP SOLUTIONS SOFTWARE LTD.
Neighbourhood Services,Technical Services,Stock,926900,Stock in hand-Inventory system,03-Feb-2016,3082830-69938,"6,348.15",SIMMONSIGNS LTD.
Neighbourhood Services,Direct Services,Third Party Payments,460305,Contract Payments,03-Feb-2016,3082503-2182,"1,260.00",CO-WHEELS CAR CLUB CIC.
Neighbourhood Services,Technical Services,Third Party Payments,430127,Rendered by Private Contractors,03-Feb-2016,3082685-5216,783.00,MAKEPEACE MOTORS.
Neighbourhood Services,Technical Services,Third Party Payments,430127,Rendered by Private Contractors,03-Feb-2016,3082685-5217,783.00,MAKEPEACE MOTORS.
Neighbourhood Services,Technical Services,Third Party Payments,430127,Rendered by Private Contractors,03-Feb-2016,3082685-5218,"1,692.00",MAKEPEACE MOTORS.
Neighbourhood Services,Technical Services,Third Party Payments,430127,Rendered by Private Contractors,03-Feb-2016,3082685-5219,"1,692.00",MAKEPEACE MOTORS.
Neighbourhood Services,Technical Services,Third Party Payments,430127,Rendered by Private Contractors,03-Feb-2016,3082685-5221,"3,304.00",MAKEPEACE MOTORS.
Neighbourhood Services,Technical Services,Third Party Payments,430127,Rendered by Private Contractors,03-Feb-2016,3082685-5222,"3,304.00",MAKEPEACE MOTORS.
Neighbourhood Services,Technical Services,Third Party Payments,430127,Rendered by Private Contractors,03-Feb-2016,3082685-5225,"1,759.00",MAKEPEACE MOTORS.
Neighbourhood Services,Technical Services,Third Party Payments,430127,Rendered by Private Contractors,03-Feb-2016,3082685-5226,"1,759.00",MAKEPEACE MOTORS.
Neighbourhood Services,Technical Services,Third Party Payments,430128,Rendered by Private Contractors,03-Feb-2016,3082685-5223,"1,193.50",MAKEPEACE MOTORS.
Neighbourhood Services,Direct Services,Third Party Payments,430100,Rendered by Private Contractors,03-Feb-2016,3082806-2361,"1,400.00",SAFE STRIP UK LTD.
Neighbourhood Services,Direct Services,Supplies and Services,372009,Subscriptions,03-Feb-2016,3082503-2125,"1,260.00",CO-WHEELS CAR CLUB CIC.
Neighbourhood Services,Culture & Sport,Supplies and Services,304259,Equipment and Materials,03-Feb-2016,3082925-146,546.00,WOODCRAFT (UK) LTD.
Resources,Legal & Democratic Services,Supplies and Services,384151,Miscellaneous Expenses,03-Feb-2016,3082502-3980014989,"5,697.00",CO DURHAM & DARLINGTON NHS FOUNDATION TRUST.
Resources,I.C.T. Services,Stock,926900,Stock in hand-Inventory system,03-Feb-2016,3082533-7402258688,"2,425.90",DELL COMPUTER CORPORATION LTD.
Resources,Legal & Democratic Services,Supplies and Services,338025,Services,03-Feb-2016,3082535-00000365,600.00,DERWENTSIDE FUNERAL SERVICE.
Resources,Human Resources,Employees,040149,Recruitment Instruction and Training,03-Feb-2016,3082562-INV-0032,585.00,EMILY SWEETMAN LTD.
Resources,Financial Services,Transport,235058,Public Transport,03-Feb-2016,3082635-46,549.00,JACKS DIRECT TAXI.
Resources,Financial Services,Supplies and Services,384199,Miscellaneous Expenses,03-Feb-2016,3082736-91361442,"1,330.50",NORTHGATE PUBLIC SERVICES (UK) LTD.
Resources,Financial Services,Supplies and Services,338066,Services,03-Feb-2016,3082736-91362735,"5,952.43",NORTHGATE PUBLIC SERVICES (UK) LTD.
Resources,Legal & Democratic Services,Supplies and Services,340001,Postages,03-Feb-2016,3082797-9051369718,"1,017.11",ROYAL MAIL GROUP PLC.
Resources,I.C.T. Services,Supplies and Services,304303,Equipment and Materials,03-Feb-2016,3082890-116300,"4,810.75",TP ELECTRICAL SUPPLIES & FIXINGS LTD.
Children and Adult Services,Head of Adults,Transport,230005,Contract Hire,04-Feb-2016,3083231-915,600.00,MR D DONNELLY.
Children and Adult Services,Head of Adults,Transport,230005,Contract Hire,04-Feb-2016,3083232-66203,"1,640.00",MR GN ROBBINS T/A GNR MINIBUS HIRE.
Children and Adult Services,Head of Adults,Transport,230005,Contract Hire,04-Feb-2016,3083416-03/02/2016,"1,440.00",WAYNE`S TAXIS.
Children and Adult Services,Head of Adults,Transport,230005,Contract Hire,04-Feb-2016,3083122-WV091/033,926.00,GMC TAXIS NORTH EAST.
Children and Adult Services,Head of Adults,Transport,230005,Contract Hire,04-Feb-2016,3083221-00820,"2,720.00",MICHAELS TRAVEL.
Children and Adult Services,Head of Adults,Transport,230005,Contract Hire,04-Feb-2016,3083419-5400,"1,390.00",WEARDALE PRIVATE HIRE.
Children and Adult Services,Head of Adults,Transport,230005,Contract Hire,04-Feb-2016,3083419-5401,"3,868.00",WEARDALE PRIVATE HIRE.
Children and Adult Services,Head of Adults,Transport,230005,Contract Hire,04-Feb-2016,3083421-0116,720.00,WEST AUCKLAND TOWN TRAVEL (WATT).
Children and Adult Services,Commissioning inc Supporting People,Third Party Payments,479111,Purchase of Care,04-Feb-2016,3083075-2015-16Q4,"3,294.00",DERWENTSIDE MIND.
Children and Adult Services,Head of Adults,Transport,230005,Contract Hire,04-Feb-2016,3083106-WV079/022,"1,020.00",FERRYHILL VILLAGE TRAVEL.
Children and Adult Services,Head of Adults,Transport,230005,Contract Hire,04-Feb-2016,3083232-66204,"1,196.00",MR GN ROBBINS T/A GNR MINIBUS HIRE.
Children and Adult Services,Head of Adults,Transport,230005,Contract Hire,04-Feb-2016,3083416-1046,"1,200.00",WAYNE`S TAXIS.
Children and Adult Services,Head of Adults,Transport,230005,Contract Hire,04-Feb-2016,3083038-VA002,640.00,CLUBMAN CABS.
Children and Adult Services,Head of Adults,Transport,230005,Contract Hire,04-Feb-2016,3083142-185,598.40,I CLYDESDALE T/A BURNOPFIELD TAXIS.
Children and Adult Services,Head of Adults,Transport,230005,Contract Hire,04-Feb-2016,3083157-864,960.00,JDS PRIVATE HIRE DURHAM.
Children and Adult Services,Head of Adults,Transport,230005,Contract Hire,04-Feb-2016,3083227-616,"1,640.00",MOLLYS TAXIS.
Children and Adult Services,Head of Adults,Transport,230005,Contract Hire,04-Feb-2016,3083227-617,"2,200.00",MOLLYS TAXIS.
Children and Adult Services,Head of Adults,Transport,230005,Contract Hire,04-Feb-2016,3083230-01-16,"1,140.00",MR CT WALKER T/A COLIN`S TAXIS.
Children and Adult Services,Head of Adults,Transport,230005,Contract Hire,04-Feb-2016,3083382-164,640.00,THE TAXI COMPANY (MURTON) LTD.
Children and Adult Services,Head of Adults,Supplies and Services,308013,Furniture,04-Feb-2016,3083195-004/362/16,"1,200.00",LONGSTAFF FLOORING.
Children and Adult Services,Commissioning inc Supporting People,Third Party Payments,479102,Purchase of Care,04-Feb-2016,3083376-28604,"4,978.75",THE APPROPRIATE ADULT SERVICE LTD.
Children and Adult Services,Planning & Service Strategy,Supplies and Services,338089,Services,04-Feb-2016,3083214-NCS462,"1,051.20",MJ
Children and Adult Services,Education,Supplies and Services,312009,Newspapers Books and Periodicals,04-Feb-2016,3083281-1567642,882.03,PETERS LTD.
Children and Adult Services,Public Health,Third Party Payments,460803,Contract Payments,04-Feb-2016,3083040-3980015281,"15,163.00",CO DURHAM & DARLINGTON NHS FOUNDATION TRUST.
Children and Adult Services,Public Health,Third Party Payments,460803,Contract Payments,04-Feb-2016,3083040-3980015282,"756,337.00",CO DURHAM & DARLINGTON NHS FOUNDATION TRUST.
Children and Adult Services,Public Health,Third Party Payments,460803,Contract Payments,04-Feb-2016,3083040-3980015283,"923,931.00",CO DURHAM & DARLINGTON NHS FOUNDATION TRUST.
Children and Adult Services,Public Health,Supplies and Services,364999,Grants to Voluntary Organisations,04-Feb-2016,3083171-1/11/15-31/3/16STANLEY,"2,500.00",JUST FOR WOMEN CENTRE.
Dedicated Schools Grant,Dedicated Schools Grant,Transport,230008,Contract Hire,04-Feb-2016,3083106-S007-038,"2,150.00",FERRYHILL VILLAGE TRAVEL.
Children and Adult Services,Education,Transport,230007,Contract Hire,04-Feb-2016,3083037-850,950.00,CLIVE HUBERY.
Children and Adult Services,Education,Transport,230008,Contract Hire,04-Feb-2016,3082980-520,"1,319.93",AT TAXIS LTD.
Children and Adult Services,Education,Transport,230008,Contract Hire,04-Feb-2016,3082956-1/1/16,"1,354.70",ABA TAXIS.
Children and Adult Services,Education,Transport,230008,Contract Hire,04-Feb-2016,3082991-10JANUARY16,"1,622.79",BEELINE PRIVATE HIRE.
Children and Adult Services,Education,Transport,230007,Contract Hire,04-Feb-2016,3083157-861,950.00,JDS PRIVATE HIRE DURHAM.
Children and Adult Services,Education,Transport,230007,Contract Hire,04-Feb-2016,3082980-521,693.00,AT TAXIS LTD.
Children and Adult Services,Education,Transport,230007,Contract Hire,04-Feb-2016,3082966-070,777.00,ALANS TAXIS BARNARD CASTLE.
Children and Adult Services,Education,Transport,230007,Contract Hire,04-Feb-2016,3083158-2485,"1,889.80",JEFF ANDERSON COACHES LTD.
Children and Adult Services,Education,Transport,230007,Contract Hire,04-Feb-2016,3083013-326005,570.00,C & R TAXIS.
Dedicated Schools Grant,Dedicated Schools Grant,Transfer Payments,510034,School Children,04-Feb-2016,3083137-RES-01-2016-037,"5,700.00",HERMITAGE ACADEMY.
Dedicated Schools Grant,Dedicated Schools Grant,Transfer Payments,510034,School Children,04-Feb-2016,3083347-RES-01-2016-032,"12,100.00",ST BEDES CATHOLIC ACADEMY (LANCHESTER).
Dedicated Schools Grant,Dedicated Schools Grant,Transfer Payments,510034,School Children,04-Feb-2016,3083348-RES-01-2016-033,"1,900.00",ST JOHN`S SCHOOL & SIXTH FORM COLLEGE A CATHOLIC ACADEMY.
Dedicated Schools Grant,Dedicated Schools Grant,Transfer Payments,510034,School Children,04-Feb-2016,3083350-RES-01-2016-034,"5,100.00",STEPHENSON WAY COMMUNITY PRIMARY SCHOOL.
Dedicated Schools Grant,Dedicated Schools Grant,Transfer Payments,510034,School Children,04-Feb-2016,3083369-RES-01-2016-035,"3,200.00",TEESDALE EDUCATION TRUST.
Dedicated Schools Grant,Dedicated Schools Grant,Transfer Payments,510034,School Children,04-Feb-2016,3083375-RES-01-2016-036,"21,150.00",THE ACADEMY AT SHOTTON HALL.
Children and Adult Services,Education,Construction Work,908105,Construction work,04-Feb-2016,3083240-2279/10,750.00,MTL SCAFFOLDING LTD.
Children and Adult Services,Education,Transport,230007,Contract Hire,04-Feb-2016,3083118-18103,"12,360.60",GARNETTS LTD (COACHES).
Children and Adult Services,Education,Transport,230007,Contract Hire,04-Feb-2016,3083034-45229,"1,342.73",CJ GRIERSON T/A GRIERSONS COACHES.
Children and Adult Services,Education,Transport,230007,Contract Hire,04-Feb-2016,3083034-45230,"4,603.32",CJ GRIERSON T/A GRIERSONS COACHES.
Children and Adult Services,Education,Transport,230007,Contract Hire,04-Feb-2016,3083118-18106,"2,474.37",GARNETTS LTD (COACHES).
Children and Adult Services,Education,Transport,230007,Contract Hire,04-Feb-2016,3083118-18101,"2,666.08",GARNETTS LTD (COACHES).
Children and Adult Services,Education,Transport,230007,Contract Hire,04-Feb-2016,3083118-18105,"17,146.55",GARNETTS LTD (COACHES).
Children and Adult Services,Education,Transport,230007,Contract Hire,04-Feb-2016,3082966-071,"1,260.00",ALANS TAXIS BARNARD CASTLE.
Children and Adult Services,Education,Transport,230007,Contract Hire,04-Feb-2016,3082980-522,560.50,AT TAXIS LTD.
Children and Adult Services,Education,Transport,230007,Contract Hire,04-Feb-2016,3083118-18102,"2,340.00",GARNETTS LTD (COACHES).
Children and Adult Services,Education,Transport,230008,Contract Hire,04-Feb-2016,3082958-O290,"1,026.00",ABC & OUSTON CABS.
Children and Adult Services,Education,Transport,230008,Contract Hire,04-Feb-2016,3083243-184,"1,748.00",N FORBES.
Children and Adult Services,Education,Transport,230007,Contract Hire,04-Feb-2016,3083184-1467,"7,959.60",LEE`S COACHES LTD.
Children and Adult Services,Education,Transport,230007,Contract Hire,04-Feb-2016,3083099-5202/JAN/16,950.00,EMMA RAMSHAW T/A EMMA`S CABS.
Children and Adult Services,Education,Transport,230007,Contract Hire,04-Feb-2016,3083100-0677,859.37,EN ROUTE TRAVEL.
Children and Adult Services,Education,Transport,230007,Contract Hire,04-Feb-2016,3083118-18107,"2,876.58",GARNETTS LTD (COACHES).
Children and Adult Services,Education,Transport,230007,Contract Hire,04-Feb-2016,3083118-18104,"8,773.60",GARNETTS LTD (COACHES).
Children and Adult Services,Education,Transport,230007,Contract Hire,04-Feb-2016,3083118-18108,"2,945.00",GARNETTS LTD (COACHES).
Children and Adult Services,Education,Transport,230007,Contract Hire,04-Feb-2016,3083118-18131,"24,832.04",GARNETTS LTD (COACHES).
Children and Adult Services,Education,Transport,230007,Contract Hire,04-Feb-2016,3083184-1484,"12,696.30",LEE`S COACHES LTD.
Children and Adult Services,Education,Transport,230008,Contract Hire,04-Feb-2016,3082958-O288,"1,140.00",ABC & OUSTON CABS.
Children and Adult Services,Education,Transport,230008,Contract Hire,04-Feb-2016,3083013-A04005,"1,300.00",C & R TAXIS.
Children and Adult Services,Education,Transport,230008,Contract Hire,04-Feb-2016,3083106-A060-016,585.00,FERRYHILL VILLAGE TRAVEL.
Children and Adult Services,Education,Transport,230008,Contract Hire,04-Feb-2016,3083142-183,"2,332.00",I CLYDESDALE T/A BURNOPFIELD TAXIS.
Children and Adult Services,Education,Transport,230008,Contract Hire,04-Feb-2016,3083177-2B-A055-JAN2016,"1,700.00",L & R PRIVATE HIRE.
Children and Adult Services,Education,Transport,230008,Contract Hire,04-Feb-2016,3083206-16,"1,400.00",MALCOLM CARR T/A CARLY CABS.
Children and Adult Services,Education,Transport,230008,Contract Hire,04-Feb-2016,3083260-M0006952068,"1,140.00",NORTH TYNESIDE COUNCIL.
Children and Adult Services,Education,Transport,230008,Contract Hire,04-Feb-2016,3083199-35,"1,064.00",LUMLEY TAXIS.
Children and Adult Services,Education,Transport,230008,Contract Hire,04-Feb-2016,3082958-O287,"2,340.00",ABC & OUSTON CABS.
Children and Adult Services,Education,Transport,230008,Contract Hire,04-Feb-2016,3083202-92,"2,220.00",M BUTCHER T/A KIDDI CABS.
Children and Adult Services,Education,Transport,230008,Contract Hire,04-Feb-2016,3082965-266140,"1,180.00",ALAN SOUTHERN T/A ALANS TAXIS PELTON FELL.
Children and Adult Services,Education,Transport,230008,Contract Hire,04-Feb-2016,3083029-29/2016,"2,550.00",CHRIS`S TAXI.
Children and Adult Services,Education,Transport,230008,Contract Hire,04-Feb-2016,3083052-N212/JAN/16,840.00,CRAIG RAMSHAW T/A CRAIG`S CABS.
Children and Adult Services,Education,Transport,230008,Contract Hire,04-Feb-2016,3083181-1059,"1,400.00",LD TAXIS.
Children and Adult Services,Education,Transport,230008,Contract Hire,04-Feb-2016,3083185-132,"2,074.76",LEE`S TAXIS.
Children and Adult Services,Education,Transport,230008,Contract Hire,04-Feb-2016,3083226-KDC040116,"3,211.00",MJ TIMNEY T/A KDC & C&M TAXIS.
Children and Adult Services,Education,Transport,230008,Contract Hire,04-Feb-2016,3083010-PS0122,"1,200.80",BURNDALE PRIVATE HIRE.
Children and Adult Services,Education,Transport,230008,Contract Hire,04-Feb-2016,3083140-M113/JAN,918.00,HIPPY`S TAXI.
Children and Adult Services,Education,Transport,230008,Contract Hire,04-Feb-2016,3083013-W12005,741.00,C & R TAXIS.
Children and Adult Services,Education,Transport,230008,Contract Hire,04-Feb-2016,3083106-E046-016,"2,989.00",FERRYHILL VILLAGE TRAVEL.
Children and Adult Services,Education,Transport,230008,Contract Hire,04-Feb-2016,3083122-W084/038,"1,695.96",GMC TAXIS NORTH EAST.
Children and Adult Services,Education,Transport,230008,Contract Hire,04-Feb-2016,3082990-512,"1,552.00",BEELINE MINI BUSES.
Children and Adult Services,Education,Transport,230008,Contract Hire,04-Feb-2016,3083010-PS0123,572.00,BURNDALE PRIVATE HIRE.
Children and Adult Services,Education,Transport,230008,Contract Hire,04-Feb-2016,3083100-0678,"1,527.22",EN ROUTE TRAVEL.
Children and Adult Services,Education,Transport,230008,Contract Hire,04-Feb-2016,3083192-2454,"2,014.00",LOCAL TRANSPORT LTD.
Children and Adult Services,Education,Transport,230008,Contract Hire,04-Feb-2016,3083232-66200,"1,637.80",MR GN ROBBINS T/A GNR MINIBUS HIRE.
Children and Adult Services,Education,Transport,230008,Contract Hire,04-Feb-2016,3083232-66201,"1,460.15",MR GN ROBBINS T/A GNR MINIBUS HIRE.
Children and Adult Services,Education,Transport,230008,Contract Hire,04-Feb-2016,3083013-W01705,"1,225.00",C & R TAXIS.
Children and Adult Services,Education,Transport,230008,Contract Hire,04-Feb-2016,3083106-N071-026,"3,466.75",FERRYHILL VILLAGE TRAVEL.
Children and Adult Services,Education,Transport,230008,Contract Hire,04-Feb-2016,3082951-01/JAN,"1,286.20",A & P TAXIS.
Children and Adult Services,Education,Transport,230008,Contract Hire,04-Feb-2016,3082954-A220771,"1,787.00",A MURRAY TRAVEL.
Children and Adult Services,Education,Transport,230008,Contract Hire,04-Feb-2016,3082990-513,"1,507.60",BEELINE MINI BUSES.
Children and Adult Services,Education,Transport,230008,Contract Hire,04-Feb-2016,3082991-JANUARY16,"1,406.60",BEELINE PRIVATE HIRE.
Children and Adult Services,Education,Transport,230008,Contract Hire,04-Feb-2016,3083014-BIL0070,"1,667.00",CA MUSGROVE.
Children and Adult Services,Education,Transport,230008,Contract Hire,04-Feb-2016,3083212-380116,"1,940.00",MARK MUSGROVE T/A MARKS TAXIS.
Children and Adult Services,Education,Transport,230008,Contract Hire,04-Feb-2016,3082958-O286,"1,476.00",ABC & OUSTON CABS.
Children and Adult Services,Education,Transport,230008,Contract Hire,04-Feb-2016,3082962-01/16A,944.82,ADVANCE TRAVEL.
Children and Adult Services,Education,Transport,230008,Contract Hire,04-Feb-2016,3083052-M116/JAN/16,"1,190.00",CRAIG RAMSHAW T/A CRAIG`S CABS.
Children and Adult Services,Education,Transport,230008,Contract Hire,04-Feb-2016,3083122-W082/038-JAN16,"1,489.50",GMC TAXIS NORTH EAST.
Children and Adult Services,Education,Transport,230008,Contract Hire,04-Feb-2016,3083158-2482,"1,860.12",JEFF ANDERSON COACHES LTD.
Children and Adult Services,Education,Transport,230008,Contract Hire,04-Feb-2016,3083158-2483,"2,112.66",JEFF ANDERSON COACHES LTD.
Children and Adult Services,Education,Transport,230008,Contract Hire,04-Feb-2016,3083161-2015/38,"1,229.40",JM HUMBLE COACH HIRE.
Children and Adult Services,Education,Transport,230008,Contract Hire,04-Feb-2016,3083158-2484,"2,382.84",JEFF ANDERSON COACHES LTD.
Children and Adult Services,Education,Transport,230008,Contract Hire,04-Feb-2016,3083161-2015/37,806.40,JM HUMBLE COACH HIRE.
Children and Adult Services,Education,Transport,230008,Contract Hire,04-Feb-2016,3083168-85,"2,197.44",JOHNS TAXIS (CHESTER LE STREET).
Children and Adult Services,Education,Supplies and Services,338027,Services,04-Feb-2016,3083353-37,"1,581.80",SUE SMITH..
Children and Adult Services,Education,Transport,230006,Contract Hire,04-Feb-2016,3082952-535-JAN2016,640.00,A BARKER.
Children and Adult Services,Education,Transport,230006,Contract Hire,04-Feb-2016,3082980-523,"1,590.00",AT TAXIS LTD.
Children and Adult Services,Education,Transport,230006,Contract Hire,04-Feb-2016,3083112-001,"1,355.00",FONACAB DURHAM.
Children and Adult Services,Education,Transport,230006,Contract Hire,04-Feb-2016,3083142-184,980.00,I CLYDESDALE T/A BURNOPFIELD TAXIS.
Children and Adult Services,Education,Transport,230006,Contract Hire,04-Feb-2016,3083177-2B-F568-JAN2016,540.00,L & R PRIVATE HIRE.
Children and Adult Services,Education,Transport,230006,Contract Hire,04-Feb-2016,3083219-0030,"1,183.00",MICHAEL CONNOR.
Children and Adult Services,Education,Supplies and Services,352001,Conference Expenses,04-Feb-2016,3083028-891,"1,500.00",CHERRY TREE TRAINING MANAGEMENT LTD.
Dedicated Schools Grant,Dedicated Schools Grant,Supplies and Services,340001,Postages,04-Feb-2016,3083250-CAS-02-2016-030,"1,000.00",NEOPOST LTD.
Children and Adult Services,Childrens Services,Transport,230005,Contract Hire,04-Feb-2016,3083038-CLUB16001F,516.00,CLUBMAN CABS.
Children and Adult Services,Childrens Services,Transport,230005,Contract Hire,04-Feb-2016,3083131-HT211,600.00,HARRY`S TAXI`S.
Children and Adult Services,Childrens Services,Supplies and Services,384199,Miscellaneous Expenses,04-Feb-2016,3083320-LS/OP/0002,500.00,SACRISTON COMMUNITY ASSOCIATION.
Children and Adult Services,Childrens Services,Transport,235073,Public Transport,04-Feb-2016,3083417-139,"1,223.00",WE AR CABS.
Children and Adult Services,Central Charges (CYPS),Debtors,930062,Debtor-school meals suspense,04-Feb-2016,3083362-SI-TSD-1000790,"246,162.10",TAYLOR SHAW LTD.
Assistant Chief Executive,Partnerships & Community Engagement Div.,Transfer Payments,525030,Other,04-Feb-2016,3083049-DCTY006,"15,000.00",COUNTY DURHAM COMMUNITY FOUNDATION.
Neighbourhood Services,Culture & Sport,Supplies and Services,384700,Miscellaneous Expenses,04-Feb-2016,3083115-NEI-EXP-02-2016-011,"1,580.00",FUTURE LEISURE IN COXHOE (FLIC).
Neighbourhood Services,Projects and Business services,Third Party Payments,430103,Rendered by Private Contractors,04-Feb-2016,3083125-NEI-EXP-02-2016-007,"3,014.31",GREAT NORTH AIR AMBULANCE SERVICE TRADING CO LTD.
Neighbourhood Services,Culture & Sport,Supplies and Services,338094,Services,04-Feb-2016,3083422-SLINV/00000215,"1,439.13",WESTFIRST LTD.
Neighbourhood Services,Culture & Sport,Supplies and Services,304337,Equipment and Materials,04-Feb-2016,3083229-12JANUARY2016,611.00,MONNOW VALLEY ARTS.
Neighbourhood Services,Technical Services,Stock,926900,Stock in hand-Inventory system,04-Feb-2016,3083025-9950/01679229,"3,077.11",CERAMIC TILE DISTRIBUTORS (CTD).
Neighbourhood Services,Technical Services,Supplies and Services,304221,Equipment and Materials,04-Feb-2016,3083170-CNI23799/D,"2,682.00",JT DOVE LTD.
Neighbourhood Services,Technical Services,Supplies and Services,304221,Equipment and Materials,04-Feb-2016,3083213-ZBB0951975,"4,232.40",MARSHALLS MONO LTD.
Neighbourhood Services,Direct Services,Premises,145023,Cleaning and Domestic Supplies,04-Feb-2016,3083126-06/580204,"3,527.60",GREENHAM TRADING LTD.
Neighbourhood Services,Technical Services,Supplies and Services,304357,Equipment and Materials,04-Feb-2016,3083117-DCC240116,"15,948.64",GAP GROUP LTD.
Neighbourhood Services,Technical Services,Stock,926900,Stock in hand-Inventory system,04-Feb-2016,3083126-06/586557,508.00,GREENHAM TRADING LTD.
Neighbourhood Services,Direct Services,Transport,230005,Contract Hire,04-Feb-2016,3083308-IV113448,"3,990.00",RIVERSIDE TRUCK RENTAL LTD (RTR).
Neighbourhood Services,Direct Services,Transport,230005,Contract Hire,04-Feb-2016,3083308-IV113455,"3,990.00",RIVERSIDE TRUCK RENTAL LTD (RTR).
Neighbourhood Services,Direct Services,Transport,230005,Contract Hire,04-Feb-2016,3083308-IV113709,"3,255.00",RIVERSIDE TRUCK RENTAL LTD (RTR).
Neighbourhood Services,Direct Services,Transport,230005,Contract Hire,04-Feb-2016,3083331-10668876,588.00,SHB HIRE LTD.
Neighbourhood Services,Direct Services,Transport,230005,Contract Hire,04-Feb-2016,3083331-10668877,574.00,SHB HIRE LTD.
Neighbourhood Services,Technical Services,Supplies and Services,304221,Equipment and Materials,04-Feb-2016,3082963-22557792,505.62,AGGREGATE INDUSTRIES UK LTD.
Neighbourhood Services,Technical Services,Supplies and Services,304221,Equipment and Materials,04-Feb-2016,3082963-22557890,"1,275.32",AGGREGATE INDUSTRIES UK LTD.
Neighbourhood Services,Technical Services,Supplies and Services,304221,Equipment and Materials,04-Feb-2016,3082963-22557891,"1,393.76",AGGREGATE INDUSTRIES UK LTD.
Neighbourhood Services,Technical Services,Supplies and Services,304221,Equipment and Materials,04-Feb-2016,3082963-22557893,"1,019.50",AGGREGATE INDUSTRIES UK LTD.
Neighbourhood Services,Direct Services,Supplies and Services,304221,Equipment and Materials,04-Feb-2016,3083275-BR537097,"1,138.72",PARK ELECTRICAL DISTRIBUTORS LTD.
Neighbourhood Services,Direct Services,Supplies and Services,304221,Equipment and Materials,04-Feb-2016,3083426-29286517,938.08,WOLSELEY UK LTD.
Neighbourhood Services,Direct Services,Supplies and Services,304221,Equipment and Materials,04-Feb-2016,3083426-29287894,"3,773.52",WOLSELEY UK LTD.
Neighbourhood Services,Culture & Sport,Supplies and Services,384237,Miscellaneous Expenses,04-Feb-2016,3083255-13964054,"12,500.00",NEWSQUEST (YORKSHIRE & NORTH EAST) LTD.
Neighbourhood Services,Culture & Sport,Supplies and Services,384237,Miscellaneous Expenses,04-Feb-2016,3083255-13964055,"2,500.00",NEWSQUEST (YORKSHIRE & NORTH EAST) LTD.
Neighbourhood Services,Technical Services,Stock,926900,Stock in hand-Inventory system,04-Feb-2016,3083275-XL161885,"1,980.00",PARK ELECTRICAL DISTRIBUTORS LTD.
Neighbourhood Services,Technical Services,Stock,926900,Stock in hand-Inventory system,04-Feb-2016,3083275-XL161897,791.28,PARK ELECTRICAL DISTRIBUTORS LTD.
Neighbourhood Services,Technical Services,Stock,926900,Stock in hand-Inventory system,04-Feb-2016,3083426-29286755,"1,309.33",WOLSELEY UK LTD.
Neighbourhood Services,Culture & Sport,Supplies and Services,312013,Newspapers Books and Periodicals,04-Feb-2016,3083204-I089457,"1,570.49",MAGNA LARGE PRINT BOOKS.
Neighbourhood Services,Technical Services,Premises,150015,Apportioned Exps of Operational Blds,04-Feb-2016,3083420-494258,598.29,WERNICK HIRE LTD.
Neighbourhood Services,Technical Services,Premises,150015,Apportioned Exps of Operational Blds,04-Feb-2016,3083420-494273,598.29,WERNICK HIRE LTD.
Neighbourhood Services,Direct Services,Premises,150015,Apportioned Exps of Operational Blds,04-Feb-2016,3083420-494381,664.95,WERNICK HIRE LTD.
Neighbourhood Services,Direct Services,Premises,150015,Apportioned Exps of Operational Blds,04-Feb-2016,3083420-494389,664.95,WERNICK HIRE LTD.
Neighbourhood Services,Culture & Sport,Supplies and Services,304259,Equipment and Materials,04-Feb-2016,3083186-107387,589.35,LEISURETEQ.
Neighbourhood Services,Technical Services,Stock,926900,Stock in hand-Inventory system,04-Feb-2016,3083341-188050,"2,430.72",SNAPFAST.
Neighbourhood Services,Direct Services,Transport,230005,Contract Hire,04-Feb-2016,3083413-68842,548.00,WARREN ACCESS LTD.
Neighbourhood Services,Direct Services,Supplies and Services,304221,Equipment and Materials,04-Feb-2016,3083051-59201,"4,075.00",CPS MANUFACTURING CO LLP.
Neighbourhood Services,Direct Services,Supplies and Services,304221,Equipment and Materials,04-Feb-2016,3083393-30293,875.00,TOTAL PUMP SOLUTIONS LTD.
Neighbourhood Services,Technical Services,Supplies and Services,304358,Equipment and Materials,04-Feb-2016,3083165-24524,"1,723.50",JOHN R BUTTERFIELD LTD.
Neighbourhood Services,Technical Services,Supplies and Services,304358,Equipment and Materials,04-Feb-2016,3083165-24526,731.00,JOHN R BUTTERFIELD LTD.
Neighbourhood Services,Technical Services,Supplies and Services,304358,Equipment and Materials,04-Feb-2016,3083165-24527,588.60,JOHN R BUTTERFIELD LTD.
Neighbourhood Services,Technical Services,Supplies and Services,304358,Equipment and Materials,04-Feb-2016,3083165-24528,"1,105.80",JOHN R BUTTERFIELD LTD.
Neighbourhood Services,Technical Services,Supplies and Services,304358,Equipment and Materials,04-Feb-2016,3083165-24529,914.20,JOHN R BUTTERFIELD LTD.
Neighbourhood Services,Technical Services,Supplies and Services,304358,Equipment and Materials,04-Feb-2016,3083165-24530,914.20,JOHN R BUTTERFIELD LTD.
Neighbourhood Services,Technical Services,Supplies and Services,304358,Equipment and Materials,04-Feb-2016,3083165-24532,572.70,JOHN R BUTTERFIELD LTD.
Neighbourhood Services,Technical Services,Supplies and Services,304358,Equipment and Materials,04-Feb-2016,3083389-27159,500.00,TODDS HIGHWAY MAINTENANCE LTD.
Neighbourhood Services,Technical Services,Supplies and Services,304358,Equipment and Materials,04-Feb-2016,3083389-27160,500.00,TODDS HIGHWAY MAINTENANCE LTD.
Neighbourhood Services,Technical Services,Supplies and Services,304358,Equipment and Materials,04-Feb-2016,3083389-27161,500.00,TODDS HIGHWAY MAINTENANCE LTD.
Neighbourhood Services,Technical Services,Supplies and Services,304358,Equipment and Materials,04-Feb-2016,3083389-27258,500.00,TODDS HIGHWAY MAINTENANCE LTD.
Neighbourhood Services,Direct Services,Supplies and Services,304358,Equipment and Materials,04-Feb-2016,3083413-68858,510.00,WARREN ACCESS LTD.
Neighbourhood Services,Technical Services,Employees,040149,Recruitment Instruction and Training,04-Feb-2016,3083413-68641,"1,700.00",WARREN ACCESS LTD.
Neighbourhood Services,Technical Services,Supplies and Services,304358,Equipment and Materials,04-Feb-2016,3083175-1214,588.00,KEVIN SNOWDON GROUNDWORKS LTD.
Neighbourhood Services,Technical Services,Supplies and Services,304358,Equipment and Materials,04-Feb-2016,3083175-1222,"1,021.50",KEVIN SNOWDON GROUNDWORKS LTD.
Neighbourhood Services,Technical Services,Supplies and Services,304358,Equipment and Materials,04-Feb-2016,3083175-1227,"2,087.00",KEVIN SNOWDON GROUNDWORKS LTD.
Neighbourhood Services,Technical Services,Supplies and Services,304358,Equipment and Materials,04-Feb-2016,3083175-1231,546.00,KEVIN SNOWDON GROUNDWORKS LTD.
Neighbourhood Services,Technical Services,Supplies and Services,304358,Equipment and Materials,04-Feb-2016,3083302-9421,"3,780.00",RD KEARTON & SONS LTD.
Neighbourhood Services,Technical Services,Supplies and Services,304358,Equipment and Materials,04-Feb-2016,3083302-9422,"1,680.00",RD KEARTON & SONS LTD.
Neighbourhood Services,Direct Services,Third Party Payments,430100,Rendered by Private Contractors,04-Feb-2016,3083404-714,"1,300.00",TYNE PLASTERING LTD.
Neighbourhood Services,Culture & Sport,Employees,080025,Agency Staff,04-Feb-2016,3083220-42,777.20,MICHAEL LONG.
Neighbourhood Services,Projects and Business services,Supplies and Services,304357,Equipment and Materials,04-Feb-2016,3083201-31,"1,200.00",M & E & MR WALTON.
Resources,I.C.T. Services,Supplies and Services,304303,Equipment and Materials,04-Feb-2016,3083145-SIN375287,"8,030.00",INFORMATION & DATA NETWORK SUPPLIES LTD (IDN).
Resources,I.C.T. Services,Supplies and Services,304303,Equipment and Materials,04-Feb-2016,3083145-SIN375312,"1,087.47",INFORMATION & DATA NETWORK SUPPLIES LTD (IDN).
Resources,I.C.T. Services,Supplies and Services,304303,Equipment and Materials,04-Feb-2016,3083222-0000088747,"6,730.00",MILLENNIUM BUSINESS SYSTEMS LTD.
Resources,I.C.T. Services,Supplies and Services,342051,Computers and Communications,04-Feb-2016,3083271-1515947,"5,041.40",ORACLE CORPORATION UK LTD.
Resources,I.C.T. Services,Supplies and Services,342033,Computers and Communications,04-Feb-2016,3083310-DE4225317,700.00,RM EDUCATION PLC.
Resources,I.C.T. Services,Supplies and Services,342051,Computers and Communications,04-Feb-2016,3083342-INV79023,"1,729.88",SOFTWARE BOX LTD.
Resources,I.C.T. Services,Supplies and Services,342051,Computers and Communications,04-Feb-2016,3083342-INV79632,"3,586.81",SOFTWARE BOX LTD.
Children and Adult Services,Head of Adults,Transport,230005,Contract Hire,05-Feb-2016,3083529-5871,754.44,CROFT BUSINESS SERVICES (UK) LTD T/A CROFT TAXIS.
Children and Adult Services,Head of Adults,Transport,230005,Contract Hire,05-Feb-2016,3083621-854,"1,069.00",JDS PRIVATE HIRE DURHAM.
Children and Adult Services,Head of Adults,Transport,230005,Contract Hire,05-Feb-2016,3083492-PSO124,960.00,BURNDALE PRIVATE HIRE.
Children and Adult Services,Head of Adults,Transport,230005,Contract Hire,05-Feb-2016,3083676-KDKHC05,573.00,MR I KELSEY.
Children and Adult Services,Head of Adults,Transport,230005,Contract Hire,05-Feb-2016,3083678-201603,600.00,MR JR FORT.
Children and Adult Services,Head of Adults,Transport,230005,Contract Hire,05-Feb-2016,3083467-03385,914.00,ATLAS TAXIS CONSETT.
Children and Adult Services,Head of Adults,Transport,230005,Contract Hire,05-Feb-2016,3083529-5867,"1,694.40",CROFT BUSINESS SERVICES (UK) LTD T/A CROFT TAXIS.
Children and Adult Services,Head of Adults,Supplies and Services,384616,Miscellaneous Expenses,05-Feb-2016,3083727-1300001861,832.60,PROGRESS CARE HOUSING ASSOCIATION LTD.
Children and Adult Services,Planning & Service Strategy,Supplies and Services,364358,Grants to Voluntary Organisations,05-Feb-2016,3083689-SLINV/00001432,"5,000.00",NEW COLLEGE DURHAM.
Children and Adult Services,Public Health,Premises,145009,Cleaning and Domestic Supplies,05-Feb-2016,3083475-0000021878,889.64,BETTAKLEEN LTD.
Children and Adult Services,Public Health,Premises,145009,Cleaning and Domestic Supplies,05-Feb-2016,3083514-3980015515,806.62,CO DURHAM & DARLINGTON NHS FOUNDATION TRUST.
Children and Adult Services,Public Health,Third Party Payments,460803,Contract Payments,05-Feb-2016,3083610-VF071,"7,250.00",IF U CARE SHARE.
Children and Adult Services,Public Health,Third Party Payments,460803,Contract Payments,05-Feb-2016,3083716-13727/16,"24,137.50",PIONEERING CARE PARTNERSHIP.
Children and Adult Services,Public Health,Third Party Payments,460803,Contract Payments,05-Feb-2016,3083716-13823/16,"24,137.50",PIONEERING CARE PARTNERSHIP.
Children and Adult Services,Public Health,Third Party Payments,460803,Contract Payments,05-Feb-2016,3083716-13884/16,"24,137.50",PIONEERING CARE PARTNERSHIP.
Dedicated Schools Grant,Dedicated Schools Grant,Employees,080025,Agency Staff,05-Feb-2016,3083785-1074727,880.00,TEACHING PERSONNEL LTD.
Children and Adult Services,Education,Supplies and Services,384199,Miscellaneous Expenses,05-Feb-2016,3083480-INV16003,"2,360.00",BLAST PROGRAMME LTD.
Children and Adult Services,Education,Transfer Payments,510028,School Children,05-Feb-2016,3083590-CAS-01-2016-047,"16,837.39",GIANT STEPS LTD.
Children and Adult Services,Education,Transfer Payments,510026,School Children,05-Feb-2016,3083641-SI-002357,"1,419.75",LEISUREWORKS.
Children and Adult Services,Education,Transfer Payments,510028,School Children,05-Feb-2016,3083763-CAS-02-2016-029,847.00,SMALL WORLD DAY NURSERY.
Children and Adult Services,Education,Transport,230007,Contract Hire,05-Feb-2016,3083674-16,760.00,MR BW YOUNG T/A ESH TAXIS.
Children and Adult Services,Education,Transport,230008,Contract Hire,05-Feb-2016,3083663-MCD44505,"1,216.00",MCDONALD TRAVEL.
Children and Adult Services,Education,Transport,230007,Contract Hire,05-Feb-2016,3083621-869,666.00,JDS PRIVATE HIRE DURHAM.
Children and Adult Services,Education,Transport,230008,Contract Hire,05-Feb-2016,3083680-N053/01/16,"1,634.00",MR M ALLISON T/A MACBETH TAXIS/COACHES.
Children and Adult Services,Education,Transport,230008,Contract Hire,05-Feb-2016,3083680-N059/01/16,"1,520.00",MR M ALLISON T/A MACBETH TAXIS/COACHES.
Children and Adult Services,Education,Construction Work,908105,Construction work,05-Feb-2016,3083747-2422,"5,840.00",SAFE STRIP UK LTD.
Children and Adult Services,Education,Transport,230008,Contract Hire,05-Feb-2016,3083540-103,"1,710.00",DAVES TAXIS.
Children and Adult Services,Education,Transport,230008,Contract Hire,05-Feb-2016,3083659-480116,874.00,MARK MUSGROVE T/A MARKS TAXIS.
Children and Adult Services,Education,Transport,230007,Contract Hire,05-Feb-2016,3083529-5853,"1,034.80",CROFT BUSINESS SERVICES (UK) LTD T/A CROFT TAXIS.
Children and Adult Services,Education,Transport,230007,Contract Hire,05-Feb-2016,3083671-005,"1,520.00",MORGAN`S TRAVEL.
Children and Adult Services,Education,Transport,230007,Contract Hire,05-Feb-2016,3083577-0352,551.00,FMR SILVA PITA.
Children and Adult Services,Education,Transport,230009,Contract Hire,05-Feb-2016,3083577-0351,570.00,FMR SILVA PITA.
Children and Adult Services,Education,Transport,230007,Contract Hire,05-Feb-2016,3083477-01022016,912.00,BIG MAMMA`S EXPRESS.
Children and Adult Services,Education,Transport,230007,Contract Hire,05-Feb-2016,3083653-39,"1,140.00",M BEHAN T/A M & M`S TAXIS.
Children and Adult Services,Education,Transport,230008,Contract Hire,05-Feb-2016,3083621-870,"1,159.00",JDS PRIVATE HIRE DURHAM.
Children and Adult Services,Education,Transport,230007,Contract Hire,05-Feb-2016,3083639-1462,"4,779.80",LEE`S COACHES LTD.
Children and Adult Services,Education,Transport,230007,Contract Hire,05-Feb-2016,3083722-309,"1,531.59",PREMIER PRIVATE HIRE.
Children and Adult Services,Education,Transport,230008,Contract Hire,05-Feb-2016,3083439-11603,"1,242.03",24/7 TAXI SERVICES LTD.
Children and Adult Services,Education,Transport,230007,Contract Hire,05-Feb-2016,3083525-DCC/4029/JAN16,"1,890.50",COUNTY COACHES.
Children and Adult Services,Education,Transport,230007,Contract Hire,05-Feb-2016,3083621-859,"1,160.00",JDS PRIVATE HIRE DURHAM.
Children and Adult Services,Education,Transport,230007,Contract Hire,05-Feb-2016,3083720-160186,"1,800.00",PRATTS TAXIS.
Children and Adult Services,Education,Transport,230007,Contract Hire,05-Feb-2016,3083439-11601,"1,420.00",24/7 TAXI SERVICES LTD.
Children and Adult Services,Education,Transport,230007,Contract Hire,05-Feb-2016,3083639-1464,"2,502.60",LEE`S COACHES LTD.
Children and Adult Services,Education,Transport,230007,Contract Hire,05-Feb-2016,3083529-5784,688.38,CROFT BUSINESS SERVICES (UK) LTD T/A CROFT TAXIS.
Children and Adult Services,Education,Transport,230007,Contract Hire,05-Feb-2016,3083677-JP/01/15,"1,031.40",MR J AGAR T/A PARK TAXIS.
Children and Adult Services,Education,Transport,230008,Contract Hire,05-Feb-2016,3083512-16-SC14,"1,200.00",CLUBMAN CABS.
Children and Adult Services,Education,Transport,230008,Contract Hire,05-Feb-2016,3083519-1000,"1,880.00",CONNORS MINI BUSES.
Children and Adult Services,Education,Transport,230008,Contract Hire,05-Feb-2016,3083529-5856,"1,557.40",CROFT BUSINESS SERVICES (UK) LTD T/A CROFT TAXIS.
Children and Adult Services,Education,Transport,230008,Contract Hire,05-Feb-2016,3083621-865,"2,400.00",JDS PRIVATE HIRE DURHAM.
Children and Adult Services,Education,Transport,230008,Contract Hire,05-Feb-2016,3083621-866,"2,270.00",JDS PRIVATE HIRE DURHAM.
Children and Adult Services,Education,Transport,230008,Contract Hire,05-Feb-2016,3083621-867,"2,600.00",JDS PRIVATE HIRE DURHAM.
Children and Adult Services,Education,Transport,230008,Contract Hire,05-Feb-2016,3083621-868,"2,760.00",JDS PRIVATE HIRE DURHAM.
Children and Adult Services,Education,Transport,230008,Contract Hire,05-Feb-2016,3083680-A057/01/16,"1,148.40",MR M ALLISON T/A MACBETH TAXIS/COACHES.
Children and Adult Services,Education,Transport,230008,Contract Hire,05-Feb-2016,3083687-016,"1,200.00",NEIL PASSMOOR T/A NEIL`S TAXI.
Children and Adult Services,Education,Transport,230008,Contract Hire,05-Feb-2016,3083687-16,"1,700.00",NEIL PASSMOOR T/A NEIL`S TAXI.
Children and Adult Services,Education,Transport,230008,Contract Hire,05-Feb-2016,3083720-160184,"1,600.00",PRATTS TAXIS.
Children and Adult Services,Education,Transport,230007,Contract Hire,05-Feb-2016,3083679-06A,"1,180.00",MR KJB BOWERY T/A KJB TAXIS.
Children and Adult Services,Education,Transport,230007,Contract Hire,05-Feb-2016,3083691-4029,"1,786.00",NIGHTINGALE COACHES.
Children and Adult Services,Education,Transport,230007,Contract Hire,05-Feb-2016,3083691-4030,"2,482.54",NIGHTINGALE COACHES.
Children and Adult Services,Education,Transport,230007,Contract Hire,05-Feb-2016,3083691-4031,"1,938.00",NIGHTINGALE COACHES.
Children and Adult Services,Education,Transport,230008,Contract Hire,05-Feb-2016,3083507-WS05,692.00,CHIPPERS TAXIS.
Children and Adult Services,Education,Transport,230008,Contract Hire,05-Feb-2016,3083625-025,"1,600.00",JK TAXIS.
Children and Adult Services,Education,Transport,230008,Contract Hire,05-Feb-2016,3083519-1002,"1,760.00",CONNORS MINI BUSES.
Children and Adult Services,Education,Transport,230008,Contract Hire,05-Feb-2016,3083663-MCD44504,"1,978.00",MCDONALD TRAVEL.
Children and Adult Services,Education,Transport,230008,Contract Hire,05-Feb-2016,3083519-1003,"1,482.00",CONNORS MINI BUSES.
Children and Adult Services,Education,Transport,230008,Contract Hire,05-Feb-2016,3083519-1004,"1,634.00",CONNORS MINI BUSES.
Children and Adult Services,Education,Transport,230008,Contract Hire,05-Feb-2016,3083539-2721,"1,805.00",DAVES MINIBUSES.
Children and Adult Services,Education,Transport,230008,Contract Hire,05-Feb-2016,3083634-05,912.00,KD TAXIS.
Children and Adult Services,Education,Transport,230008,Contract Hire,05-Feb-2016,3083675-WAL101-16,"2,017.00",MR CT WALKER T/A COLIN`S TAXIS.
Children and Adult Services,Education,Transport,230008,Contract Hire,05-Feb-2016,3083675-WAL201-16,"2,200.00",MR CT WALKER T/A COLIN`S TAXIS.
Children and Adult Services,Education,Transport,230008,Contract Hire,05-Feb-2016,3083720-160183,"1,069.51",PRATTS TAXIS.
Children and Adult Services,Education,Transport,230008,Contract Hire,05-Feb-2016,3083621-855,"1,435.20",JDS PRIVATE HIRE DURHAM.
Children and Adult Services,Education,Transport,230008,Contract Hire,05-Feb-2016,3083529-5862,"1,745.35",CROFT BUSINESS SERVICES (UK) LTD T/A CROFT TAXIS.
Children and Adult Services,Education,Transport,230008,Contract Hire,05-Feb-2016,3083529-5868,797.60,CROFT BUSINESS SERVICES (UK) LTD T/A CROFT TAXIS.
Children and Adult Services,Education,Transport,230008,Contract Hire,05-Feb-2016,3083529-5870,"1,643.80",CROFT BUSINESS SERVICES (UK) LTD T/A CROFT TAXIS.
Children and Adult Services,Education,Transport,230008,Contract Hire,05-Feb-2016,3083539-2722,"2,000.00",DAVES MINIBUSES.
Children and Adult Services,Education,Transport,230008,Contract Hire,05-Feb-2016,3083540-101,"1,024.00",DAVES TAXIS.
Children and Adult Services,Education,Transport,230008,Contract Hire,05-Feb-2016,3083540-102,"1,024.00",DAVES TAXIS.
Children and Adult Services,Education,Transport,230008,Contract Hire,05-Feb-2016,3083653-40,"1,500.00",M BEHAN T/A M & M`S TAXIS.
Children and Adult Services,Education,Transport,230008,Contract Hire,05-Feb-2016,3083675-VLR01-16,856.00,MR CT WALKER T/A COLIN`S TAXIS.
Children and Adult Services,Education,Transport,230008,Contract Hire,05-Feb-2016,3083691-4044-JAN2016,"1,400.00",NIGHTINGALE COACHES.
Children and Adult Services,Education,Transport,230008,Contract Hire,05-Feb-2016,3083439-11604,859.37,24/7 TAXI SERVICES LTD.
Children and Adult Services,Education,Transport,230008,Contract Hire,05-Feb-2016,3083439-11609,"1,805.00",24/7 TAXI SERVICES LTD.
Children and Adult Services,Education,Transport,230008,Contract Hire,05-Feb-2016,3083507-KJ037,"1,187.31",CHIPPERS TAXIS.
Children and Adult Services,Education,Transport,230008,Contract Hire,05-Feb-2016,3083664-INV-94,"1,824.00",MICHAEL COBB (T/A HAIL TAXIS).
Children and Adult Services,Education,Transport,230008,Contract Hire,05-Feb-2016,3083539-2719,"1,708.60",DAVES MINIBUSES.
Children and Adult Services,Education,Transport,230008,Contract Hire,05-Feb-2016,3083539-2723,960.00,DAVES MINIBUSES.
Children and Adult Services,Education,Transport,230008,Contract Hire,05-Feb-2016,3083621-856,"1,767.80",JDS PRIVATE HIRE DURHAM.
Children and Adult Services,Education,Transport,230008,Contract Hire,05-Feb-2016,3083621-858,"1,608.20",JDS PRIVATE HIRE DURHAM.
Children and Adult Services,Education,Transport,230008,Contract Hire,05-Feb-2016,3083630-M03616,980.00,JOVIAL PRIVATE HIRE.
Children and Adult Services,Education,Transport,230008,Contract Hire,05-Feb-2016,3083630-N03016,"1,720.00",JOVIAL PRIVATE HIRE.
Children and Adult Services,Education,Transport,230008,Contract Hire,05-Feb-2016,3083677-SV/01/16,680.00,MR J AGAR T/A PARK TAXIS.
Children and Adult Services,Education,Transport,230008,Contract Hire,05-Feb-2016,3083682-2892,"2,209.20",MR S BOWERS.
Children and Adult Services,Education,Transport,230008,Contract Hire,05-Feb-2016,3083682-2893,"1,527.80",MR S BOWERS.
Children and Adult Services,Education,Transport,230008,Contract Hire,05-Feb-2016,3083712-0430,"1,360.00",PETER`S PRIVATE HIRE/PETER BEST.
Children and Adult Services,Education,Transport,230008,Contract Hire,05-Feb-2016,3083710-513,"1,280.00",PETERLEE EXECUTIVE CARS.
Children and Adult Services,Education,Transport,230008,Contract Hire,05-Feb-2016,3083713-732,"3,436.00",PG TRIPS.
Children and Adult Services,Education,Transport,230008,Contract Hire,05-Feb-2016,3083720-160182,"2,556.80",PRATTS TAXIS.
Children and Adult Services,Education,Transport,230008,Contract Hire,05-Feb-2016,3083439-11605,897.00,24/7 TAXI SERVICES LTD.
Children and Adult Services,Education,Transport,230008,Contract Hire,05-Feb-2016,3083535-OSJAN1601,"1,817.10",DALELINK PRIVATE HIRE.
Children and Adult Services,Education,Transport,230008,Contract Hire,05-Feb-2016,3083640-131,"1,779.14",LEE`S TAXIS.
Children and Adult Services,Education,Transport,230008,Contract Hire,05-Feb-2016,3083682-2891,944.64,MR S BOWERS.
Children and Adult Services,Education,Transport,230008,Contract Hire,05-Feb-2016,3083507-CB05,540.00,CHIPPERS TAXIS.
Children and Adult Services,Education,Transport,230008,Contract Hire,05-Feb-2016,3083634-5-JAN2016,"2,268.00",KD TAXIS.
Children and Adult Services,Education,Transport,230008,Contract Hire,05-Feb-2016,3083665-00816,"1,889.82",MICHAELS TRAVEL.
Children and Adult Services,Education,Transport,230008,Contract Hire,05-Feb-2016,3083665-00817,"1,925.10",MICHAELS TRAVEL.
Children and Adult Services,Education,Transport,230006,Contract Hire,05-Feb-2016,3083439-11606,880.00,24/7 TAXI SERVICES LTD.
Children and Adult Services,Education,Transport,230006,Contract Hire,05-Feb-2016,3083529-5863,"1,074.80",CROFT BUSINESS SERVICES (UK) LTD T/A CROFT TAXIS.
Children and Adult Services,Education,Transport,230006,Contract Hire,05-Feb-2016,3083663-MCD44502,583.00,MCDONALD TRAVEL.
Children and Adult Services,Education,Transport,230006,Contract Hire,05-Feb-2016,3083712-0433,"1,005.00",PETER`S PRIVATE HIRE/PETER BEST.
Children and Adult Services,Education,Third Party Payments,440999,Other Third Party Payments,05-Feb-2016,3083580-0000005487,"8,859.42",FOUNDATION OF LIGHT.
Dedicated Schools Grant,Dedicated Schools Grant,Central Support and Capital,615208,Support Services,05-Feb-2016,3083688-RES-01-2016-041,"6,873.32",NEW COLLEGE ACADEMIES TRUST - CONSETT ACADEMY.
Children and Adult Services,Childrens Services,Third Party Payments,425040,Rendered by Voluntary Organisations,05-Feb-2016,3083579-125441,730.00,FOSTER CARES LTD.
Children and Adult Services,Childrens Services,Third Party Payments,425040,Rendered by Voluntary Organisations,05-Feb-2016,3083579-125446,"1,180.00",FOSTER CARES LTD.
Children and Adult Services,Childrens Services,Third Party Payments,425040,Rendered by Voluntary Organisations,05-Feb-2016,3083579-125451,820.00,FOSTER CARES LTD.
Children and Adult Services,Childrens Services,Third Party Payments,425040,Rendered by Voluntary Organisations,05-Feb-2016,3083579-125452,730.00,FOSTER CARES LTD.
Children and Adult Services,Childrens Services,Third Party Payments,425040,Rendered by Voluntary Organisations,05-Feb-2016,3083579-125458,730.00,FOSTER CARES LTD.
Children and Adult Services,Childrens Services,Third Party Payments,425040,Rendered by Voluntary Organisations,05-Feb-2016,3083579-125461,730.00,FOSTER CARES LTD.
Children and Adult Services,Childrens Services,Third Party Payments,425040,Rendered by Voluntary Organisations,05-Feb-2016,3083579-125466,730.00,FOSTER CARES LTD.
Children and Adult Services,Childrens Services,Third Party Payments,425040,Rendered by Voluntary Organisations,05-Feb-2016,3083579-125472,730.00,FOSTER CARES LTD.
Children and Adult Services,Childrens Services,Third Party Payments,425040,Rendered by Voluntary Organisations,05-Feb-2016,3083579-125473,730.00,FOSTER CARES LTD.
Children and Adult Services,Childrens Services,Third Party Payments,425040,Rendered by Voluntary Organisations,05-Feb-2016,3083579-125478,760.00,FOSTER CARES LTD.
Children and Adult Services,Childrens Services,Third Party Payments,425040,Rendered by Voluntary Organisations,05-Feb-2016,3083579-125479,700.00,FOSTER CARES LTD.
Children and Adult Services,Childrens Services,Supplies and Services,384302,Miscellaneous Expenses,05-Feb-2016,3083745-13/01/16,"1,000.00",SACRISTON YOUTH PROJECT.
Children and Adult Services,Childrens Services,Supplies and Services,364999,Grants to Voluntary Organisations,05-Feb-2016,3083554-CAS-01-2016-053,"2,580.00",EAST DURHAM COMMUNITY EDUCATION COMMITTEE.
Children and Adult Services,Childrens Services,Supplies and Services,364999,Grants to Voluntary Organisations,05-Feb-2016,3083666-CAS-01-2016-054,"4,300.00",MID DURHAM PROJECTS CLUB.
Assistant Chief Executive,Partnerships & Community Engagement Div.,Cap Exp on Grants & Other Financial Assistance (REFCUS),918004,Contributions to other bodies,05-Feb-2016,3083828-EDUR0392NDINST,"1,000.00",WINGATE & DISTRICT COMMUNITY ASSOCIATON.
Neighbourhood Services,Culture & Sport,Supplies and Services,338047,Services,05-Feb-2016,3083814-22314071599-1,854.79,UNIVERSAL PICTURES INTERNATIONAL UK & EIRE LTD.
Neighbourhood Services,Technical Services,Construction Work,908112,Capital - Drainage,05-Feb-2016,3083798-IC/1325091,500.00,TILLY BAILEY & IRVINE LLP.
Neighbourhood Services,Direct Services,Supplies and Services,304221,Equipment and Materials,05-Feb-2016,3083556-059-178320,"1,869.28",EDMUNDSON ELECTRICAL LTD.
Neighbourhood Services,Technical Services,Supplies and Services,304221,Equipment and Materials,05-Feb-2016,3083660-ZBB0952652,"4,381.47",MARSHALLS MONO LTD.
Neighbourhood Services,Direct Services,Supplies and Services,304221,Equipment and Materials,05-Feb-2016,3083815-6890204043,"2,251.82",VIESSMANN LTD.
Neighbourhood Services,Culture & Sport,Income,720810,Fees and Charges,05-Feb-2016,3083517-PSINV00128,"27,123.16",COMPETITION LINE UK LTD.
Neighbourhood Services,Culture & Sport,Income,720810,Fees and Charges,05-Feb-2016,3083517-PSINV00129,"23,334.86",COMPETITION LINE UK LTD.
Neighbourhood Services,Culture & Sport,Income,720810,Fees and Charges,05-Feb-2016,3083517-PSINV00130,"5,236.59",COMPETITION LINE UK LTD.
Neighbourhood Services,Projects and Business services,Third Party Payments,430119,Rendered by Private Contractors,05-Feb-2016,3083600-SIN7046505,"7,455.57",HCS DRAIN SERVICES LTD.
Neighbourhood Services,Direct Services,Third Party Payments,430101,Rendered by Private Contractors,05-Feb-2016,3083605-5067665169,885.60,HI Q TYRESERVICES.
Neighbourhood Services,Direct Services,Third Party Payments,430101,Rendered by Private Contractors,05-Feb-2016,3083605-5067666614,585.76,HI Q TYRESERVICES.
Neighbourhood Services,Technical Services,Stock,926900,Stock in hand-Inventory system,05-Feb-2016,3083656-0000958193,638.10,MAGDEN LTD.
Neighbourhood Services,Culture & Sport,Supplies and Services,338047,Services,05-Feb-2016,3083764-1086277-1,"23,075.84",SONY PICTURES RELEASING.
Neighbourhood Services,Technical Services,Stock,926900,Stock in hand-Inventory system,05-Feb-2016,3083594-06/585427,"1,066.60",GREENHAM TRADING LTD.
Neighbourhood Services,Direct Services,Supplies and Services,304083,Equipment and Materials,05-Feb-2016,3083692-12252872,704.97,NISBETS PLC.
Neighbourhood Services,Direct Services,Supplies and Services,304083,Equipment and Materials,05-Feb-2016,3083692-12256192,623.62,NISBETS PLC.
Neighbourhood Services,Technical Services,Supplies and Services,304221,Equipment and Materials,05-Feb-2016,3083454-22562544,516.70,AGGREGATE INDUSTRIES UK LTD.
Neighbourhood Services,Technical Services,Supplies and Services,304221,Equipment and Materials,05-Feb-2016,3083454-22562631,"1,707.06",AGGREGATE INDUSTRIES UK LTD.
Neighbourhood Services,Technical Services,Supplies and Services,304221,Equipment and Materials,05-Feb-2016,3083454-22562633,615.80,AGGREGATE INDUSTRIES UK LTD.
Neighbourhood Services,Direct Services,Supplies and Services,304221,Equipment and Materials,05-Feb-2016,3083705-XL161934,597.80,PARK ELECTRICAL DISTRIBUTORS LTD.
Neighbourhood Services,Culture & Sport,Supplies and Services,304259,Equipment and Materials,05-Feb-2016,3083692-12275910,"3,675.49",NISBETS PLC.
Neighbourhood Services,Culture & Sport,Third Party Payments,430100,Rendered by Private Contractors,05-Feb-2016,3083517-INV00098,"8,165.07",COMPETITION LINE UK LTD.
Neighbourhood Services,Culture & Sport,Third Party Payments,430100,Rendered by Private Contractors,05-Feb-2016,3083517-INV00099,"26,865.92",COMPETITION LINE UK LTD.
Neighbourhood Services,Direct Services,Third Party Payments,430100,Rendered by Private Contractors,05-Feb-2016,3083794-NE263445,907.00,THOMPSONS OF PRUDHOE LTD.
Neighbourhood Services,Technical Services,Stock,926900,Stock in hand-Inventory system,05-Feb-2016,3083705-XL162039,"1,031.00",PARK ELECTRICAL DISTRIBUTORS LTD.
Neighbourhood Services,Technical Services,Stock,926900,Stock in hand-Inventory system,05-Feb-2016,3083829-29339752,602.58,WOLSELEY UK LTD.
Neighbourhood Services,Technical Services,Stock,926900,Stock in hand-Inventory system,05-Feb-2016,3083829-29339753,"1,132.95",WOLSELEY UK LTD.
Neighbourhood Services,Technical Services,Stock,926900,Stock in hand-Inventory system,05-Feb-2016,3083829-29339754,"1,017.40",WOLSELEY UK LTD.
Neighbourhood Services,Technical Services,Stock,926900,Stock in hand-Inventory system,05-Feb-2016,3083829-29340862,510.14,WOLSELEY UK LTD.
Neighbourhood Services,Direct Services,Transport,230005,Contract Hire,05-Feb-2016,3083565-8126789,"1,059.80",ENTERPRISE FLEX-E-RENT T/A BURNT TREE GROUP LTD.
Neighbourhood Services,Direct Services,Transport,230005,Contract Hire,05-Feb-2016,3083565-8126791,"1,059.80",ENTERPRISE FLEX-E-RENT T/A BURNT TREE GROUP LTD.
Neighbourhood Services,Direct Services,Transport,230005,Contract Hire,05-Feb-2016,3083565-8126793,"1,059.80",ENTERPRISE FLEX-E-RENT T/A BURNT TREE GROUP LTD.
Neighbourhood Services,Direct Services,Transport,230005,Contract Hire,05-Feb-2016,3083565-8126800,"1,059.80",ENTERPRISE FLEX-E-RENT T/A BURNT TREE GROUP LTD.
Neighbourhood Services,Direct Services,Transport,230005,Contract Hire,05-Feb-2016,3083565-8126810,578.43,ENTERPRISE FLEX-E-RENT T/A BURNT TREE GROUP LTD.
Neighbourhood Services,Direct Services,Transport,230005,Contract Hire,05-Feb-2016,3083565-8126813,"1,059.80",ENTERPRISE FLEX-E-RENT T/A BURNT TREE GROUP LTD.
Neighbourhood Services,Technical Services,Premises,150015,Apportioned Exps of Operational Blds,05-Feb-2016,3083824-494254,733.29,WERNICK HIRE LTD.
Neighbourhood Services,Direct Services,Premises,150015,Apportioned Exps of Operational Blds,05-Feb-2016,3083824-494385,775.00,WERNICK HIRE LTD.
Neighbourhood Services,Culture & Sport,Supplies and Services,342051,Computers and Communications,05-Feb-2016,3083593-119185,893.63,GRAITEC LTD.
Neighbourhood Services,Technical Services,Supplies and Services,304221,Equipment and Materials,05-Feb-2016,3083644-900015,"17,956.00",LIGHTING & ILLUMINATION TECHNOLOGY EXPERIENCE LTD (LITE).
Neighbourhood Services,Technical Services,Third Party Payments,430100,Rendered by Private Contractors,05-Feb-2016,3083723-137839,"30,816.74",PREMIER TRAFFIC MANAGEMENT LTD.
Neighbourhood Services,Technical Services,Premises,150015,Apportioned Exps of Operational Blds,05-Feb-2016,3083510-35687,862.47,CLEE HILL PLANT LTD.
Neighbourhood Services,Technical Services,Premises,150015,Apportioned Exps of Operational Blds,05-Feb-2016,3083511-35685,821.40,CLEE HILL PLANT LTD.
Neighbourhood Services,Technical Services,Premises,150015,Apportioned Exps of Operational Blds,05-Feb-2016,3083511-35686,862.47,CLEE HILL PLANT LTD.
Neighbourhood Services,Technical Services,Premises,150015,Apportioned Exps of Operational Blds,05-Feb-2016,3083511-35688,862.47,CLEE HILL PLANT LTD.
Neighbourhood Services,Technical Services,Premises,150015,Apportioned Exps of Operational Blds,05-Feb-2016,3083511-35690,821.40,CLEE HILL PLANT LTD.
Neighbourhood Services,Direct Services,Supplies and Services,304259,Equipment and Materials,05-Feb-2016,3083627-00244,580.00,JN KEARTON.
Neighbourhood Services,Technical Services,Supplies and Services,304358,Equipment and Materials,05-Feb-2016,3083628-24347,998.45,JOHN R BUTTERFIELD LTD.
Neighbourhood Services,Technical Services,Supplies and Services,304358,Equipment and Materials,05-Feb-2016,3083628-24425,616.60,JOHN R BUTTERFIELD LTD.
Neighbourhood Services,Technical Services,Third Party Payments,430100,Rendered by Private Contractors,05-Feb-2016,3083618-12091,"2,776.10",JACK COUPE & SONS LTD T/A COUPE LINE.
Neighbourhood Services,Technical Services,Construction Work,908105,Construction work,05-Feb-2016,3083747-2421,"6,116.00",SAFE STRIP UK LTD.
Neighbourhood Services,Direct Services,Third Party Payments,430100,Rendered by Private Contractors,05-Feb-2016,3083619-3514,605.00,JAMES INGLEFORD SCAFFOLDING LTD.
Neighbourhood Services,Direct Services,Third Party Payments,430100,Rendered by Private Contractors,05-Feb-2016,3083769-5131,600.00,ST ASTIER LTD.
Neighbourhood Services,Technical Services,Stock,926900,Stock in hand-Inventory system,05-Feb-2016,3083623-7562,679.00,JG UNIFORMS.
Neighbourhood Services,Technical Services,Employees,040149,Recruitment Instruction and Training,05-Feb-2016,3083451-719,765.00,ACAD.
Resources,Legal & Democratic Services,Supplies and Services,372009,Subscriptions,05-Feb-2016,3083795-6800244842,"1,752.00",THOMSON REUTERS.
Children and Adult Services,Head of Adults,Transport,230005,Contract Hire,08-Feb-2016,3084216-DCC63,600.00,PAUL`S TAXIS..
Children and Adult Services,Commissioning inc Supporting People,Supplies and Services,338099,Services,08-Feb-2016,3084318-D1IN/00017943,"1,020.00",STONHAM HOUSING ASSOCIATION LTD.
Children and Adult Services,Commissioning inc Supporting People,Supplies and Services,342033,Computers and Communications,08-Feb-2016,3083978-7402259902,611.18,DELL COMPUTER CORPORATION LTD.
Children and Adult Services,Head of Adults,Transport,230005,Contract Hire,08-Feb-2016,3084010-13,712.00,EXTREME TAXI`S.
Children and Adult Services,Head of Adults,Transport,230005,Contract Hire,08-Feb-2016,3084106-05-JAN2016,840.00,KD TAXIS.
Children and Adult Services,Head of Adults,Transport,230005,Contract Hire,08-Feb-2016,3084071-IR1601009,"1,240.00",I & R EXECUTIVE TRAVEL.
Children and Adult Services,Head of Adults,Transport,230005,Contract Hire,08-Feb-2016,3084174-2014-177,"1,980.00",MR D KEMP T/A ACE EXECUTIVE.
Children and Adult Services,Planning & Service Strategy,Supplies and Services,338089,Services,08-Feb-2016,3084099-1603,"1,400.00",JOHN WHEELER SOLUTIONS LTD.
Children and Adult Services,Education,Supplies and Services,312011,Newspapers Books and Periodicals,08-Feb-2016,3083869-4913168,960.34,ASKEWS & HOLTS LIBRARY SERVICES LTD.
Children and Adult Services,Head of Adults,Supplies and Services,304259,Equipment and Materials,08-Feb-2016,3083957-846328,599.95,COMPLETE CARE NETWORK LTD.
Children and Adult Services,Public Health,Third Party Payments,460803,Contract Payments,08-Feb-2016,3083881-DYPD/00000032SC,956.00,BESTWAY NATIONAL CHEMIST LTD T/A WELL.
Children and Adult Services,Public Health,Third Party Payments,460803,Contract Payments,08-Feb-2016,3083900-DRJY/00000026SC2,914.00,BOOTS THE CHEMISTS LTD.
Children and Adult Services,Public Health,Third Party Payments,460803,Contract Payments,08-Feb-2016,3083908-FHRN/00000035SC2,588.00,BOOTS THE CHEMISTS LTD.
Children and Adult Services,Public Health,Third Party Payments,460803,Contract Payments,08-Feb-2016,3083898-FLAP/00000034SC,984.00,BOOTS THE CHEMISTS LTD.
Children and Adult Services,Public Health,Third Party Payments,460803,Contract Payments,08-Feb-2016,3083903-DYTC/00000033SC,504.00,BOOTS THE CHEMISTS LTD.
Children and Adult Services,Public Health,Third Party Payments,460803,Contract Payments,08-Feb-2016,3084026-FNCW/00000038SC2,588.00,G WHITFIELD LTD.
Children and Adult Services,Public Health,Third Party Payments,460803,Contract Payments,08-Feb-2016,3084040-FBFN/00000031SC,668.00,GILL & SCHOFIELD PHARMACEUTICAL CHEMISTS LTD.
Children and Adult Services,Public Health,Third Party Payments,460803,Contract Payments,08-Feb-2016,3084084-DQPW/00000033SC2,588.00,INTRAHEALTH LTD.
Children and Adult Services,Public Health,Third Party Payments,460803,Contract Payments,08-Feb-2016,3084130-0000007183,"466,357.75",LIFELINE PROJECT LTD.
Children and Adult Services,Public Health,Third Party Payments,460803,Contract Payments,08-Feb-2016,3084130-0000007249,"466,357.75",LIFELINE PROJECT LTD.
Children and Adult Services,Public Health,Third Party Payments,460803,Contract Payments,08-Feb-2016,3084130-0000007321,"466,357.75",LIFELINE PROJECT LTD.
Children and Adult Services,Public Health,Third Party Payments,460803,Contract Payments,08-Feb-2016,3084137-DZTR/00000033SC2,546.00,LLOYDS PHARMACY.
Children and Adult Services,Public Health,Third Party Payments,460803,Contract Payments,08-Feb-2016,3084138-FLRB/00000035SC2,670.00,LLOYDS PHARMACY.
Children and Adult Services,Public Health,Third Party Payments,460803,Contract Payments,08-Feb-2016,3084134-DWGM/00000036SC,614.00,LLOYDS PHARMACY.
Children and Adult Services,Public Health,Third Party Payments,460803,Contract Payments,08-Feb-2016,3084147-DWMD/00000037SC2,534.00,M & M PHARMACIES LTD.
Children and Adult Services,Public Health,Third Party Payments,460803,Contract Payments,08-Feb-2016,3084313-LQPJ/00000030SC2,836.00,STATION ROAD SURGERY.
Children and Adult Services,Public Health,Third Party Payments,460803,Contract Payments,08-Feb-2016,3084344-DPNG/00000023SC2,758.00,TESCO PHARMACY.
Children and Adult Services,Education,Supplies and Services,338094,Services,08-Feb-2016,3083837-18002668,821.50,1LIFE MANAGEMENT SOLUTIONS LTD.
Dedicated Schools Grant,Dedicated Schools Grant,Transport,230010,Contract Hire,08-Feb-2016,3084170-619,"1,024.00",MOLLYS TAXIS.
Dedicated Schools Grant,Dedicated Schools Grant,Transport,230010,Contract Hire,08-Feb-2016,3084240-160185,"1,624.00",PRATTS TAXIS.
Dedicated Schools Grant,Dedicated Schools Grant,Transport,230010,Contract Hire,08-Feb-2016,3084091-L107E/JAN,950.00,JAFFAS TAXIS.
Children and Adult Services,Education,Transfer Payments,510026,School Children,08-Feb-2016,3084059-SEPT/DEC2015,780.00,HAPPY TIMES DAYCARE LTD.
Children and Adult Services,Education,Transfer Payments,510026,School Children,08-Feb-2016,3084295-SEPT/DEC,930.00,SMALL WORLD DAY NURSERY.
Children and Adult Services,Education,Transfer Payments,510026,School Children,08-Feb-2016,3084377-SEPT/DEC2015,"1,170.00",WESTMINSTER DAY NURSERIES LTD.
Children and Adult Services,Education,Transport,230008,Contract Hire,08-Feb-2016,3084288-71956,"1,353.60",SHOTTON PRIVATE HIRE.
Children and Adult Services,Education,Transport,230008,Contract Hire,08-Feb-2016,3084066-INV103,"1,615.00",HORNDALE TAXIS LTD.
Children and Adult Services,Education,Transport,230008,Contract Hire,08-Feb-2016,3084236-1138,520.00,PODA LTD.
Children and Adult Services,Education,Transport,230007,Contract Hire,08-Feb-2016,3084314-347,"1,407.95",STEPHEN MAUDE LTD T/A MAUDES COACHES.
Dedicated Schools Grant,Dedicated Schools Grant,Transfer Payments,510034,School Children,08-Feb-2016,3084284-RES-01-2016-045,"3,800.00",SHIELD ROW ACADEMY.
Children and Adult Services,Education,Income,740298,Other Income,08-Feb-2016,3084062-CAS-01-2016-151,"1,665.40",HERMITAGE ACADEMY.
Children and Adult Services,Education,Transport,230007,Contract Hire,08-Feb-2016,3084327-23001A,632.00,T MOORE & SON.
Children and Adult Services,Education,Transport,230007,Contract Hire,08-Feb-2016,3084182-TN027,687.42,MR THOMAS G GRIFFITHS T/A TNL TAXIS.
Children and Adult Services,Education,Transport,230007,Contract Hire,08-Feb-2016,3084327-23201C,684.00,T MOORE & SON.
Children and Adult Services,Education,Transport,230009,Contract Hire,08-Feb-2016,3084330-01/2016/004,950.00,TARNS TAXIS LTD.
Children and Adult Services,Education,Transport,230007,Contract Hire,08-Feb-2016,3084332-DCC/2015/72,532.00,TAYLOR`S TAXIS.
Children and Adult Services,Education,Transport,230007,Contract Hire,08-Feb-2016,3084172-CEW2JANUARY9,646.00,MOOR PRIVATE HIRE.
Children and Adult Services,Education,Transport,230008,Contract Hire,08-Feb-2016,3084066-INV102,855.00,HORNDALE TAXIS LTD.
Children and Adult Services,Education,Transport,230007,Contract Hire,08-Feb-2016,3084110-2008,792.00,KEN HINDS.
Children and Adult Services,Education,Transport,230007,Contract Hire,08-Feb-2016,3084314-346,"2,012.29",STEPHEN MAUDE LTD T/A MAUDES COACHES.
Children and Adult Services,Education,Transport,230007,Contract Hire,08-Feb-2016,3084314-344,"1,914.25",STEPHEN MAUDE LTD T/A MAUDES COACHES.
Children and Adult Services,Education,Transport,230007,Contract Hire,08-Feb-2016,3084314-345,"2,105.96",STEPHEN MAUDE LTD T/A MAUDES COACHES.
Children and Adult Services,Education,Transport,230008,Contract Hire,08-Feb-2016,3084290-125-JAN2016,"1,985.50",SIMONS TAXIS.
Children and Adult Services,Education,Transport,230007,Contract Hire,08-Feb-2016,3084117-1C,540.00,L & R PRIVATE HIRE.
Children and Adult Services,Education,Transport,230007,Contract Hire,08-Feb-2016,3084257-37B,"2,180.60",RAYNERS COACHES.
Children and Adult Services,Education,Transport,230007,Contract Hire,08-Feb-2016,3083968-169,680.00,D MCDONNELL.
Children and Adult Services,Education,Transport,230007,Contract Hire,08-Feb-2016,3084001-5182/0116,648.00,ELLIOTTS OF TRIMDON.
Children and Adult Services,Education,Transport,230008,Contract Hire,08-Feb-2016,3084091-E136/JAN,540.00,JAFFAS TAXIS.
Children and Adult Services,Education,Transport,230007,Contract Hire,08-Feb-2016,3084221-34A,720.00,PETER HOLMES T/A PETERS TAXIS.
Children and Adult Services,Education,Transport,230007,Contract Hire,08-Feb-2016,3083948-45231,"2,120.00",CJ GRIERSON T/A GRIERSONS COACHES.
Children and Adult Services,Education,Transport,230007,Contract Hire,08-Feb-2016,3083948-45232,"2,800.00",CJ GRIERSON T/A GRIERSONS COACHES.
Children and Adult Services,Education,Transport,230007,Contract Hire,08-Feb-2016,3083948-45233,"2,500.00",CJ GRIERSON T/A GRIERSONS COACHES.
Children and Adult Services,Education,Transport,230007,Contract Hire,08-Feb-2016,3083948-45234,"2,600.00",CJ GRIERSON T/A GRIERSONS COACHES.
Children and Adult Services,Education,Transport,230007,Contract Hire,08-Feb-2016,3083948-45235,"5,007.20",CJ GRIERSON T/A GRIERSONS COACHES.
Children and Adult Services,Education,Transport,230007,Contract Hire,08-Feb-2016,3083989-7390,"21,376.25",DURHAM CITY COACHES.
Children and Adult Services,Education,Transport,230007,Contract Hire,08-Feb-2016,3084127-1283,"12,641.70",LEE`S COACHES LTD.
Children and Adult Services,Education,Transport,230009,Contract Hire,08-Feb-2016,3084217-DCC102,900.00,PB PRIVATE HIRE.
Children and Adult Services,Education,Transport,230007,Contract Hire,08-Feb-2016,3084327-24101A,"3,748.00",T MOORE & SON.
Children and Adult Services,Education,Transport,230007,Contract Hire,08-Feb-2016,3084327-23301D,"1,544.00",T MOORE & SON.
Children and Adult Services,Education,Transport,230008,Contract Hire,08-Feb-2016,3084088-1585,760.00,J YOUNG T/A VIP TAXIS.
Children and Adult Services,Education,Transport,230008,Contract Hire,08-Feb-2016,3084088-1587,836.00,J YOUNG T/A VIP TAXIS.
Children and Adult Services,Education,Transport,230008,Contract Hire,08-Feb-2016,3084117-2B-A046-JAN16,"1,305.00",L & R PRIVATE HIRE.
Children and Adult Services,Education,Transport,230008,Contract Hire,08-Feb-2016,3084140-2451,"1,798.00",LOCAL TRANSPORT LTD.
Children and Adult Services,Education,Transport,230008,Contract Hire,08-Feb-2016,3084151-JANUARYC2,"1,600.00",MA BODDY.
Children and Adult Services,Education,Transport,230008,Contract Hire,08-Feb-2016,3084170-614,"2,600.00",MOLLYS TAXIS.
Children and Adult Services,Education,Transport,230008,Contract Hire,08-Feb-2016,3084172-CEW28-JAN2016,"1,700.00",MOOR PRIVATE HIRE.
Children and Adult Services,Education,Transport,230006,Contract Hire,08-Feb-2016,3084176-0161,760.00,MR DEREK HENDERSON.
Children and Adult Services,Education,Transport,230006,Contract Hire,08-Feb-2016,3084225-0432,600.00,PETER`S PRIVATE HIRE/PETER BEST.
Children and Adult Services,Education,Transport,230008,Contract Hire,08-Feb-2016,3084225-0427,"2,340.00",PETER`S PRIVATE HIRE/PETER BEST.
Children and Adult Services,Education,Transport,230008,Contract Hire,08-Feb-2016,3084225-0428,"2,250.00",PETER`S PRIVATE HIRE/PETER BEST.
Children and Adult Services,Education,Transport,230008,Contract Hire,08-Feb-2016,3084330-01/2016/002,960.00,TARNS TAXIS LTD.
Children and Adult Services,Education,Transport,230008,Contract Hire,08-Feb-2016,3084363-01,816.00,TRIDENT TAXIS.
Children and Adult Services,Education,Transport,230007,Contract Hire,08-Feb-2016,3084038-3081,"1,330.00",GEM TRAVEL.
Children and Adult Services,Education,Transport,230008,Contract Hire,08-Feb-2016,3084216-DCC67,"1,425.00",PAUL`S TAXIS..
Children and Adult Services,Education,Transport,230008,Contract Hire,08-Feb-2016,3084088-1593,960.00,J YOUNG T/A VIP TAXIS.
Children and Adult Services,Education,Transport,230008,Contract Hire,08-Feb-2016,3084216-DCC66,"1,257.30",PAUL`S TAXIS..
Children and Adult Services,Education,Transport,230008,Contract Hire,08-Feb-2016,3084286-024,"1,411.40",SHOEY`S TAXIS.
Children and Adult Services,Education,Transport,230008,Contract Hire,08-Feb-2016,3083838-11602,"1,929.88",24/7 TAXI SERVICES LTD.
Children and Adult Services,Education,Transport,230008,Contract Hire,08-Feb-2016,3083838-11608,"2,157.54",24/7 TAXI SERVICES LTD.
Children and Adult Services,Education,Transport,230008,Contract Hire,08-Feb-2016,3084048-000017,"1,472.00",GP TAXIS.
Children and Adult Services,Education,Transport,230008,Contract Hire,08-Feb-2016,3084088-1590,"1,055.46",J YOUNG T/A VIP TAXIS.
Children and Adult Services,Education,Transport,230008,Contract Hire,08-Feb-2016,3084181-14A,"1,696.00",MR RAYMOND RENWICK.
Children and Adult Services,Education,Transport,230008,Contract Hire,08-Feb-2016,3084181-13B-JAN2016,"1,273.00",MR RAYMOND RENWICK.
Children and Adult Services,Education,Transport,230008,Contract Hire,08-Feb-2016,3084197-4034-JAN2016,"1,349.00",NIGHTINGALE COACHES.
Children and Adult Services,Education,Transport,230008,Contract Hire,08-Feb-2016,3084197-4036-JAN2016,"1,235.00",NIGHTINGALE COACHES.
Children and Adult Services,Education,Transport,230008,Contract Hire,08-Feb-2016,3084197-4032,665.00,NIGHTINGALE COACHES.
Children and Adult Services,Education,Transport,230008,Contract Hire,08-Feb-2016,3084197-4035,"1,235.00",NIGHTINGALE COACHES.
Children and Adult Services,Education,Transport,230008,Contract Hire,08-Feb-2016,3084197-4038,836.00,NIGHTINGALE COACHES.
Children and Adult Services,Education,Transport,230008,Contract Hire,08-Feb-2016,3084197-4039,"1,406.00",NIGHTINGALE COACHES.
Children and Adult Services,Education,Transport,230008,Contract Hire,08-Feb-2016,3084170-615,"2,109.95",MOLLYS TAXIS.
Children and Adult Services,Education,Transport,230008,Contract Hire,08-Feb-2016,3084197-4048-JAN2016,780.00,NIGHTINGALE COACHES.
Children and Adult Services,Education,Transport,230008,Contract Hire,08-Feb-2016,3084197-4040,"1,470.00",NIGHTINGALE COACHES.
Children and Adult Services,Education,Transport,230008,Contract Hire,08-Feb-2016,3084197-4041,"1,600.00",NIGHTINGALE COACHES.
Children and Adult Services,Education,Transport,230008,Contract Hire,08-Feb-2016,3084197-4043,"1,800.00",NIGHTINGALE COACHES.
Children and Adult Services,Education,Transport,230008,Contract Hire,08-Feb-2016,3084197-4046,840.00,NIGHTINGALE COACHES.
Children and Adult Services,Education,Transport,230008,Contract Hire,08-Feb-2016,3084197-4047,"1,020.00",NIGHTINGALE COACHES.
Children and Adult Services,Education,Transport,230008,Contract Hire,08-Feb-2016,3084001-E014/0116,"1,518.10",ELLIOTTS OF TRIMDON.
Children and Adult Services,Education,Transport,230008,Contract Hire,08-Feb-2016,3084001-E112/0116,"1,292.00",ELLIOTTS OF TRIMDON.
Children and Adult Services,Education,Transport,230008,Contract Hire,08-Feb-2016,3084071-IR1601006,"2,429.99",I & R EXECUTIVE TRAVEL.
Children and Adult Services,Education,Transport,230008,Contract Hire,08-Feb-2016,3084071-IR1601007,"2,168.20",I & R EXECUTIVE TRAVEL.
Children and Adult Services,Education,Transport,230008,Contract Hire,08-Feb-2016,3084071-IR1601010,660.00,I & R EXECUTIVE TRAVEL.
Children and Adult Services,Education,Transport,230008,Contract Hire,08-Feb-2016,3084140-2456,"1,406.00",LOCAL TRANSPORT LTD.
Children and Adult Services,Education,Transport,230008,Contract Hire,08-Feb-2016,3083956-E0420116,"2,252.50",COLIN FRANKS T/A FRANKS COACHES.
Children and Adult Services,Education,Transport,230008,Contract Hire,08-Feb-2016,3084010-14,540.00,EXTREME TAXI`S.
Children and Adult Services,Education,Transport,230008,Contract Hire,08-Feb-2016,3084010-15,820.00,EXTREME TAXI`S.
Children and Adult Services,Education,Transport,230008,Contract Hire,08-Feb-2016,3084088-1588,760.00,J YOUNG T/A VIP TAXIS.
Children and Adult Services,Education,Transport,230008,Contract Hire,08-Feb-2016,3084170-613,"1,680.00",MOLLYS TAXIS.
Children and Adult Services,Education,Transport,230008,Contract Hire,08-Feb-2016,3084216-DCC65,"1,608.20",PAUL`S TAXIS..
Children and Adult Services,Education,Transport,230008,Contract Hire,08-Feb-2016,3084217-DCC97,900.00,PB PRIVATE HIRE.
Children and Adult Services,Education,Transport,230008,Contract Hire,08-Feb-2016,3084217-DCC98,900.00,PB PRIVATE HIRE.
Children and Adult Services,Education,Transport,230008,Contract Hire,08-Feb-2016,3084225-0429,"1,900.00",PETER`S PRIVATE HIRE/PETER BEST.
Children and Adult Services,Education,Transport,230008,Contract Hire,08-Feb-2016,3084211-6395,"1,660.68",OVERLANDER LTD.
Children and Adult Services,Education,Transport,230008,Contract Hire,08-Feb-2016,3084327-23101B,"1,499.04",T MOORE & SON.
Children and Adult Services,Education,Transport,230008,Contract Hire,08-Feb-2016,3084330-01/2016/003,"1,325.16",TARNS TAXIS LTD.
Children and Adult Services,Education,Transport,230008,Contract Hire,08-Feb-2016,3084332-DCC/2015/71,"1,710.00",TAYLOR`S TAXIS.
Children and Adult Services,Education,Transport,230008,Contract Hire,08-Feb-2016,3083970-1446,999.36,DA TAXIS.
Children and Adult Services,Education,Transport,230008,Contract Hire,08-Feb-2016,3084363-012,756.00,TRIDENT TAXIS.
Children and Adult Services,Education,Transport,230006,Contract Hire,08-Feb-2016,3084001-F643/0116,681.00,ELLIOTTS OF TRIMDON.
Children and Adult Services,Education,Transport,230006,Contract Hire,08-Feb-2016,3084215-005,"2,540.00",PAUL ROSE T/A PAUL`S TAXIS.
Children and Adult Services,Education,Transport,230006,Contract Hire,08-Feb-2016,3084217-DCC101,754.00,PB PRIVATE HIRE.
Children and Adult Services,Education,Third Party Payments,440999,Other Third Party Payments,08-Feb-2016,3084297-PO4100506288,"10,129.71",SMARTT NORTH EAST LTD.
Children and Adult Services,Education,Third Party Payments,440999,Other Third Party Payments,08-Feb-2016,3084297-PO4100506289,"6,840.82",SMARTT NORTH EAST LTD.
Children and Adult Services,Education,Supplies and Services,338035,Services,08-Feb-2016,3083947-804015991,"1,710.00",CITY & GUILDS OF LONDON INSTITUTE.
Dedicated Schools Grant,Dedicated Schools Grant,Transport,230011,Contract Hire,08-Feb-2016,3084216-DCC62,592.00,PAUL`S TAXIS..
Children and Adult Services,Childrens Services,Supplies and Services,338044,Services,08-Feb-2016,3083852-130559,553.00,ALERE TOXICOLOGY PLC.
Children and Adult Services,Childrens Services,Supplies and Services,308013,Furniture,08-Feb-2016,3083932-38118,627.45,CARPETTIME LTD.
Children and Adult Services,Childrens Services,Third Party Payments,425040,Rendered by Voluntary Organisations,08-Feb-2016,3083843-16/1927,"3,232.68",ACORN HOUSE (FOSTERING SERVICES) LTD.
Children and Adult Services,Childrens Services,Transport,240045,Car Allowances,08-Feb-2016,3084300-4833,"49,145.59",SOCIAL RESOURCE CENTRE LTD.
Children and Adult Services,Childrens Services,Supplies and Services,384638,Miscellaneous Expenses,08-Feb-2016,3084306-SI-524,"8,250.00",SPORT WORKS LTD.
Children and Adult Services,Childrens Services,Premises,145015,Cleaning and Domestic Supplies,08-Feb-2016,3084213-XL162194,735.00,PARK ELECTRICAL DISTRIBUTORS LTD.
Children and Adult Services,Childrens Services,Employees,080025,Agency Staff,08-Feb-2016,3084234-1176,980.00,PK EDUCATION.
Children and Adult Services,Childrens Services,Supplies and Services,308011,Furniture,08-Feb-2016,3083963-44797,"3,008.16",CRAFTWORK UPHOLSTERY LTD.
Children and Adult Services,Childrens Services,Premises,108099,Service Repairs and Maintenance,08-Feb-2016,3084261-170105,"2,688.00",RIELLO UPS LTD.
Children and Adult Services,Childrens Services,Supplies and Services,384302,Miscellaneous Expenses,08-Feb-2016,3084173-SINVCO7402,692.00,MOTHERCARE UK LTD.
Children and Adult Services,Childrens Services,Supplies and Services,338094,Services,08-Feb-2016,3084280-245852,"1,298.04",SCIENCE MUSEUM GROUP ENTERPRISES LTD.
Children and Adult Services,Education,Employees,040001,Recruitment Instruction and Training,08-Feb-2016,3084342-TARINV/15401774,710.10,TES GLOBAL LTD.
Children and Adult Services,Education,Employees,040001,Recruitment Instruction and Training,08-Feb-2016,3084342-TARINV/15401880,710.10,TES GLOBAL LTD.
Assistant Chief Executive,Partnerships & Community Engagement Div.,Supplies and Services,384540,Miscellaneous Expenses,08-Feb-2016,3084101-3413430,542.34,JOHNSTON PUBLISHING LTD.
Assistant Chief Executive,Partnerships & Community Engagement Div.,Supplies and Services,384540,Miscellaneous Expenses,08-Feb-2016,3084196-13981586,"1,320.00",NEWSQUEST (YORKSHIRE & NORTH EAST) LTD.
Assistant Chief Executive,Partnerships & Community Engagement Div.,Cap Exp on Grants & Other Financial Assistance (REFCUS),918004,Contributions to other bodies,08-Feb-2016,3084235-TEES001SGF017,998.00,PLAY @ COTHERSTONE.
Neighbourhood Services,Technical Services,Supplies and Services,338042,Services,08-Feb-2016,3083979-314080/INVCGI94,540.00,DERE STREET BARRISTERS.
Neighbourhood Services,Direct Services,Transport,230005,Contract Hire,08-Feb-2016,3084204-SL03670791INV,627.00,NORTHGATE VEHICLE HIRE LTD.
Neighbourhood Services,Technical Services,Third Party Payments,430100,Rendered by Private Contractors,08-Feb-2016,3084192-NC10/C423/BW,"1,178.13",NEDCO CONTRACTS (NE) LTD.
Neighbourhood Services,Technical Services,Supplies and Services,338027,Services,08-Feb-2016,3084090-B225H006-013,"11,268.87",JACOBS UK LTD.
Neighbourhood Services,Technical Services,Supplies and Services,338027,Services,08-Feb-2016,3084090-B225H006-014,"25,016.59",JACOBS UK LTD.
Neighbourhood Services,Technical Services,Supplies and Services,338027,Services,08-Feb-2016,3084090-B225H007-004,"4,710.07",JACOBS UK LTD.
Neighbourhood Services,Direct Services,Supplies and Services,304221,Equipment and Materials,08-Feb-2016,3084017-1601-181037,"1,008.00",FLAME HEATING SPARES LTD.
Neighbourhood Services,Direct Services,Supplies and Services,304221,Equipment and Materials,08-Feb-2016,3084017-1601-181099,827.82,FLAME HEATING SPARES LTD.
Neighbourhood Services,Technical Services,Third Party Payments,430100,Rendered by Private Contractors,08-Feb-2016,3084192-NC9/C423/BW,"7,115.42",NEDCO CONTRACTS (NE) LTD.
Neighbourhood Services,Direct Services,Supplies and Services,304221,Equipment and Materials,08-Feb-2016,3083891-3033915119,577.25,BOC LTD.
Neighbourhood Services,Technical Services,Supplies and Services,304221,Equipment and Materials,08-Feb-2016,3084329-9033808052,622.00,TARMAC TRADING LTD.
Neighbourhood Services,Direct Services,Supplies and Services,304259,Equipment and Materials,08-Feb-2016,3084157-ZJB0036901,"3,730.00",MARSHALLS MONO LTD.
Neighbourhood Services,Technical Services,Supplies and Services,304358,Equipment and Materials,08-Feb-2016,3084007-0000050676,"7,425.00",EURO ENVIRONMENTAL GROUP.
Neighbourhood Services,Direct Services,Third Party Payments,430100,Rendered by Private Contractors,08-Feb-2016,3084143-HI0076660.,712.56,LOOKERS LEASING LTD.
Neighbourhood Services,Technical Services,Supplies and Services,338027,Services,08-Feb-2016,3084060-0040177531,"3,323.00",HARTLEPOOL BOROUGH COUNCIL.
Neighbourhood Services,Technical Services,Stock,926900,Stock in hand-Inventory system,08-Feb-2016,3084352-0037286870,934.80,THOMAS & BETTS NETHERLANDS BV.
Neighbourhood Services,Technical Services,Stock,926900,Stock in hand-Inventory system,08-Feb-2016,3084353-N/IN164036,"2,289.86",THOMAS OWEN & SONS (NEWCASTLE) LTD.
Neighbourhood Services,Technical Services,Stock,926900,Stock in hand-Inventory system,08-Feb-2016,3084353-N/IN164068,941.19,THOMAS OWEN & SONS (NEWCASTLE) LTD.
Neighbourhood Services,Culture & Sport,Supplies and Services,304221,Equipment and Materials,08-Feb-2016,3083868-SIN162207,722.25,ASA AWARDS.
Neighbourhood Services,Direct Services,Supplies and Services,304221,Equipment and Materials,08-Feb-2016,3084103-BII181281,806.30,JT DOVE LTD.
Neighbourhood Services,Direct Services,Supplies and Services,304259,Equipment and Materials,08-Feb-2016,3083870-INV102462,"1,369.00",AZTEC CHEMICALS LTD.
Neighbourhood Services,Technical Services,Employees,040149,Recruitment Instruction and Training,08-Feb-2016,3084186-SI/005925,979.00,NATIONAL CRIME AGENCY.
Neighbourhood Services,Technical Services,Stock,926900,Stock in hand-Inventory system,08-Feb-2016,3084052-06/586965,966.30,GREENHAM TRADING LTD.
Neighbourhood Services,Direct Services,Premises,106082,Centrally Controlled Rep and Maint,08-Feb-2016,3083842-90112521,749.32,ABACUS LIGHTING LTD.
Neighbourhood Services,Culture & Sport,Premises,106082,Centrally Controlled Rep and Maint,08-Feb-2016,3084004-15501568,847.50,ENER-G COMBINED POWER LTD.
Neighbourhood Services,Culture & Sport,Premises,106082,Centrally Controlled Rep and Maint,08-Feb-2016,3084004-15501891,847.50,ENER-G COMBINED POWER LTD.
Neighbourhood Services,Culture & Sport,Premises,106082,Centrally Controlled Rep and Maint,08-Feb-2016,3084004-15502135,847.50,ENER-G COMBINED POWER LTD.
Neighbourhood Services,Technical Services,Supplies and Services,304221,Equipment and Materials,08-Feb-2016,3083849-22557892,"1,927.56",AGGREGATE INDUSTRIES UK LTD.
Neighbourhood Services,Technical Services,Supplies and Services,304221,Equipment and Materials,08-Feb-2016,3083849-22568043,520.09,AGGREGATE INDUSTRIES UK LTD.
Neighbourhood Services,Technical Services,Supplies and Services,304221,Equipment and Materials,08-Feb-2016,3083849-22568150,"1,142.78",AGGREGATE INDUSTRIES UK LTD.
Neighbourhood Services,Technical Services,Supplies and Services,304221,Equipment and Materials,08-Feb-2016,3083849-22568151,"1,022.01",AGGREGATE INDUSTRIES UK LTD.
Neighbourhood Services,Technical Services,Supplies and Services,304221,Equipment and Materials,08-Feb-2016,3083849-22573441,"1,037.63",AGGREGATE INDUSTRIES UK LTD.
Neighbourhood Services,Technical Services,Supplies and Services,304221,Equipment and Materials,08-Feb-2016,3083849-22573547,"2,224.40",AGGREGATE INDUSTRIES UK LTD.
Neighbourhood Services,Technical Services,Supplies and Services,304221,Equipment and Materials,08-Feb-2016,3083849-22573548,"1,493.13",AGGREGATE INDUSTRIES UK LTD.
Neighbourhood Services,Direct Services,Supplies and Services,304259,Equipment and Materials,08-Feb-2016,3083988-INV00141,"1,350.00",DURHAM ARB LTD.
Neighbourhood Services,Direct Services,Transport,210057,Repair and Maintenance of Vehicles,08-Feb-2016,3083877-15094311,606.80,BELL TRUCK SALES LTD.
Neighbourhood Services,Direct Services,Transport,210057,Repair and Maintenance of Vehicles,08-Feb-2016,3084019-IN129872,787.40,FM STEELSTOCK LTD.
Neighbourhood Services,Technical Services,Stock,926900,Stock in hand-Inventory system,08-Feb-2016,3084097-NI030188,"19,140.00",JOHN MACLEAN & SONS ELECTRICAL (DINGWALL) LTD.
Neighbourhood Services,Technical Services,Stock,926900,Stock in hand-Inventory system,08-Feb-2016,3084213-XL162098,"4,714.75",PARK ELECTRICAL DISTRIBUTORS LTD.
Neighbourhood Services,Technical Services,Stock,926900,Stock in hand-Inventory system,08-Feb-2016,3084213-XL162123,823.25,PARK ELECTRICAL DISTRIBUTORS LTD.
Neighbourhood Services,Technical Services,Stock,926900,Stock in hand-Inventory system,08-Feb-2016,3084213-XL162170,768.00,PARK ELECTRICAL DISTRIBUTORS LTD.
Neighbourhood Services,Technical Services,Stock,926900,Stock in hand-Inventory system,08-Feb-2016,3084381-29426971,"1,530.00",WOLSELEY UK LTD.
Neighbourhood Services,Direct Services,Supplies and Services,304221,Equipment and Materials,08-Feb-2016,3084100-1091796,"1,194.00",JOHNSONS OF WHIXLEY LTD.
Neighbourhood Services,Direct Services,Supplies and Services,304221,Equipment and Materials,08-Feb-2016,3084325-1846078,712.58,T CROSSLING & CO LTD.
Neighbourhood Services,Direct Services,Supplies and Services,304221,Equipment and Materials,08-Feb-2016,3084325-1849133,549.03,T CROSSLING & CO LTD.
Neighbourhood Services,Direct Services,Supplies and Services,304259,Equipment and Materials,08-Feb-2016,3084203-1847796,645.00,NORTHERN TOOLS & ACCESSORIES.
Neighbourhood Services,Direct Services,Supplies and Services,304259,Equipment and Materials,08-Feb-2016,3084203-1849155,"1,860.00",NORTHERN TOOLS & ACCESSORIES.
Neighbourhood Services,Direct Services,Supplies and Services,304999,Equipment and Materials,08-Feb-2016,3084203-1847925,758.00,NORTHERN TOOLS & ACCESSORIES.
Neighbourhood Services,Direct Services,Supplies and Services,304221,Equipment and Materials,08-Feb-2016,3084024-135319,516.00,G & S SMIRTHWAITE LTD.
Neighbourhood Services,Direct Services,Supplies and Services,304221,Equipment and Materials,08-Feb-2016,3084358-105581,"1,906.28",TOMMY WARDLE.
Neighbourhood Services,Culture & Sport,Supplies and Services,304259,Equipment and Materials,08-Feb-2016,3084164-150596,650.00,MIKE AYRES DESIGN LTD.
Neighbourhood Services,Culture & Sport,Supplies and Services,324117,Provisions,08-Feb-2016,3084156-187002,505.13,MARK TONEY & CO LTD.
Neighbourhood Services,Technical Services,Third Party Payments,430100,Rendered by Private Contractors,08-Feb-2016,3084315-568937,"20,837.52",STOCKTON ON TEES BOROUGH COUNCIL.
Neighbourhood Services,Direct Services,Third Party Payments,430100,Rendered by Private Contractors,08-Feb-2016,3084388-100369,681.71,ZOELLER WASTE SYSTEMS LTD.
Neighbourhood Services,Direct Services,Transport,210057,Repair and Maintenance of Vehicles,08-Feb-2016,3084274-253895,509.25,S JENNINGS LTD.
Neighbourhood Services,Culture & Sport,Supplies and Services,338047,Services,08-Feb-2016,3083942-CT0046,"10,509.57",CHAMBERS TOURING LTD.
Neighbourhood Services,Technical Services,Stock,926900,Stock in hand-Inventory system,08-Feb-2016,3084077-515651,"2,424.80",INSTARMAC GROUP PLC.
Neighbourhood Services,Technical Services,Stock,926900,Stock in hand-Inventory system,08-Feb-2016,3084299-188059,"3,790.08",SNAPFAST.
Neighbourhood Services,Technical Services,Stock,926900,Stock in hand-Inventory system,08-Feb-2016,3084299-188060,"2,430.72",SNAPFAST.
Neighbourhood Services,Technical Services,Premises,150015,Apportioned Exps of Operational Blds,08-Feb-2016,3083950-35689,862.47,CLEE HILL PLANT LTD.
Neighbourhood Services,Direct Services,Transport,230005,Contract Hire,08-Feb-2016,3084373-40707,660.00,W MARLEY AGRICULTURAL CONTRACTORS LTD.
Neighbourhood Services,Technical Services,Third Party Payments,460308,Contract Payments,08-Feb-2016,3084035-GRI80,764.00,GAVIN RIDDLE.
Neighbourhood Services,Technical Services,Third Party Payments,460308,Contract Payments,08-Feb-2016,3084259-RHU80,562.44,REX HUDSON.
Neighbourhood Services,Direct Services,Supplies and Services,304221,Equipment and Materials,08-Feb-2016,3084055-J5357,869.76,GROVE REED.
Neighbourhood Services,Direct Services,Third Party Payments,430100,Rendered by Private Contractors,08-Feb-2016,3083850-49418,"1,981.20",ALAN REED LTD.
Neighbourhood Services,Direct Services,Third Party Payments,430100,Rendered by Private Contractors,08-Feb-2016,3084089-12083,603.00,JACK COUPE & SONS LTD T/A COUPE LINE.
Neighbourhood Services,Technical Services,Third Party Payments,430100,Rendered by Private Contractors,08-Feb-2016,3084248-84521,550.00,PROTECTOR SECURITY GROUP LTD.
Neighbourhood Services,Technical Services,Third Party Payments,430100,Rendered by Private Contractors,08-Feb-2016,3084248-84522,550.00,PROTECTOR SECURITY GROUP LTD.
Neighbourhood Services,Technical Services,Stock,926900,Stock in hand-Inventory system,08-Feb-2016,3083917-11873,560.00,BOXCLEVER TOTAL WASTE MANAGEMENT LTD.
Neighbourhood Services,Technical Services,Stock,926900,Stock in hand-Inventory system,08-Feb-2016,3084141-11031,"1,563.00",LOGIC STREET & PARK FURNITURE LTD.
Neighbourhood Services,Technical Services,Supplies and Services,304221,Equipment and Materials,08-Feb-2016,3084111-7811,800.00,KEN THOMAS (SITE CLEARANCE LTD).
Neighbourhood Services,Technical Services,Supplies and Services,304221,Equipment and Materials,08-Feb-2016,3084116-1890,"33,406.08",L & G PLANT HIRE & SALES LTD.
Neighbourhood Services,Direct Services,Supplies and Services,304259,Equipment and Materials,08-Feb-2016,3084111-7319,"1,006.54",KEN THOMAS (SITE CLEARANCE LTD).
Neighbourhood Services,Direct Services,Third Party Payments,430100,Rendered by Private Contractors,08-Feb-2016,3083854-676,"2,200.00",ALL SEASONS ARBORISTS.
Neighbourhood Services,EnvironmentHealth & Consumer Protection,Third Party Payments,430100,Rendered by Private Contractors,08-Feb-2016,3084226-387,520.00,PETE`S REMOVALS & CLEARANCES.
Resources,Legal & Democratic Services,Supplies and Services,332029,Printing Stationery and Gen Off Exps,08-Feb-2016,3083844-IS1270033,"2,100.00",ADARE INSPIRED COMMUNICATIONS.
Resources,I.C.T. Services,Vehicles Equipment Furniture and Fittings,912701,Computer equipment,08-Feb-2016,3083978-7402259491,"19,557.76",DELL COMPUTER CORPORATION LTD.
Resources,I.C.T. Services,Supplies and Services,338066,Services,08-Feb-2016,3084033-102071962,"13,796.75",GATESHEAD COUNCIL.
Resources,I.C.T. Services,Supplies and Services,338066,Services,08-Feb-2016,3084033-102071980,"10,000.00",GATESHEAD COUNCIL.
Resources,Corporate Finance,Supplies and Services,384199,Miscellaneous Expenses,08-Feb-2016,3084073-00001792,"3,715.00",IBIS WORLD.
Resources,I.C.T. Services,Stock,926900,Stock in hand-Inventory system,08-Feb-2016,3084076-2720908,"1,830.00",INSIGHT DIRECT (UK) LTD.
Resources,I.C.T. Services,Supplies and Services,304303,Equipment and Materials,08-Feb-2016,3084105-37592,"37,235.60",KBR IT & NETWORKING SOLUTIONS.
Resources,Financial Services,Supplies and Services,384180,Miscellaneous Expenses,08-Feb-2016,3084144-0865285,"4,922.58",LOOMIS UK LTD.
Resources,I.C.T. Services,Supplies and Services,338066,Services,08-Feb-2016,3084205-122254,"10,000.00",NORTHUMBERLAND COUNTY COUNCIL.
Resources,Legal & Democratic Services,Supplies and Services,338057,Services,08-Feb-2016,3084266-0000022310,"2,230.00",ROAR FORENSICS LTD.
Resources,Financial Services,Supplies and Services,332047,Printing Stationery and Gen Off Exps,08-Feb-2016,3084321-7958586,633.75,SUPPLIES TEAM LTD (NOW KNOWN AS BANNER).
Children and Adult Services,Head of Adults,Transport,230005,Contract Hire,09-Feb-2016,3085046-DCC6JAN16,"3,295.00",ATLAS TAXIS BISHOP AUCKLAND.
Children and Adult Services,Public Health,Third Party Payments,460803,Contract Payments,09-Feb-2016,3085184-13635/16,"24,137.50",PIONEERING CARE PARTNERSHIP.
Children and Adult Services,Education,Supplies and Services,384199,Miscellaneous Expenses,09-Feb-2016,3085137-1481,729.00,LEE`S COACHES LTD.
Children and Adult Services,Childrens Services,Premises,145050,Cleaning and Domestic Supplies,09-Feb-2016,3085075-3910007816,"5,374.85",CO DURHAM & DARLINGTON NHS FOUNDATION TRUST.
Children and Adult Services,Childrens Services,Premises,145050,Cleaning and Domestic Supplies,09-Feb-2016,3085075-3910007817,"1,379.80",CO DURHAM & DARLINGTON NHS FOUNDATION TRUST.
Children and Adult Services,Education,Transfer Payments,510028,School Children,09-Feb-2016,3085058-CAS-02-2016-052,"1,603.50",BRANDON HAPPYTIMES DAYCARE.
Children and Adult Services,Education,Transfer Payments,510028,School Children,09-Feb-2016,3085063-CAS-02-2016-042,698.56,BUTTERCUP NURSERIES LTD.
Children and Adult Services,Education,Transfer Payments,510028,School Children,09-Feb-2016,3085097-CAS-02-2016-044,"1,286.79",EARLY LEARNERS PRIVATE DAY NURSERY.
Children and Adult Services,Education,Transfer Payments,510028,School Children,09-Feb-2016,3085112-CAS-02-2016-043,"1,704.14",GIANT STEPS LTD.
Children and Adult Services,Education,Transfer Payments,510028,School Children,09-Feb-2016,3085120-CAS-02-2016-054,"1,559.19",HOUSE OF EDEN CHILDRENS NURSERY.
Children and Adult Services,Education,Transfer Payments,510028,School Children,09-Feb-2016,3085121-CAS-02-2016-048,"1,776.53",HOWLETCH & SHOTTON CHILDCARE LTD.
Children and Adult Services,Education,Transfer Payments,510028,School Children,09-Feb-2016,3085122-CAS-02-2016-049,"1,962.72",HOWLETCH & SHOTTON CHILDCARE LTD.
Children and Adult Services,Education,Transfer Payments,510028,School Children,09-Feb-2016,3085201-CAS-02-2016-051,"1,609.33",SEAHAM HOUSE DAY NURSERY.
Children and Adult Services,Education,Transfer Payments,510028,School Children,09-Feb-2016,3085212-CAS-02-2016-046,"2,826.33",SUNSHINE DAY NURSERY.
Children and Adult Services,Education,Transfer Payments,510028,School Children,09-Feb-2016,3085213-CAS-02-2016-047,937.72,SUNSHINE DAY NURSERY.
Children and Adult Services,Education,Transfer Payments,510028,School Children,09-Feb-2016,3085225-CAS-02-2016-055,"2,065.30",TM NURSERY ENTERPRISES LTD T/A JACK IN THE BOX DAYCARE.
Children and Adult Services,Education,Transfer Payments,510028,School Children,09-Feb-2016,3085238-CAS-02-2016-045,"1,010.20",WHEATLEY HILL COMMUNITY NURSERY LTD.
Children and Adult Services,Education,Income,740298,Other Income,09-Feb-2016,3085207-CAS-02-2016-072,"1,430.21",STAINDROP SCHOOL.
Dedicated Schools Grant,Dedicated Schools Grant,Third Party Payments,425005,Rendered by Voluntary Organisations,09-Feb-2016,3085059-1471,"19,667.00",BRECKENBROUGH SCHOOL.
Dedicated Schools Grant,Dedicated Schools Grant,Third Party Payments,425005,Rendered by Voluntary Organisations,09-Feb-2016,3085059-1472,"19,333.00",BRECKENBROUGH SCHOOL.
Dedicated Schools Grant,Dedicated Schools Grant,Third Party Payments,410037,Rendered by Other Local Authorities,09-Feb-2016,3085219-155,"33,745.30",THE CEDARS ACADEMY TRUST.
Dedicated Schools Grant,Dedicated Schools Grant,Supplies and Services,352001,Conference Expenses,09-Feb-2016,3085220-3513,"1,711.00",THE DURHAM CENTRE LTD.
Dedicated Schools Grant,Dedicated Schools Grant,Central Support and Capital,615208,Support Services,09-Feb-2016,3085160-RES-02-2016-027,"9,644.82",NEW COLLEGE ACADEMIES TRUST - CONSETT ACADEMY.
Children and Adult Services,Childrens Services,Supplies and Services,338044,Services,09-Feb-2016,3085040-134215,833.00,ALERE TOXICOLOGY PLC.
Children and Adult Services,Childrens Services,Transport,230005,Contract Hire,09-Feb-2016,3085049-12JANUARY16,507.00,BEELINE PRIVATE HIRE.
Children and Adult Services,Childrens Services,Transport,230005,Contract Hire,09-Feb-2016,3085196-465,"1,900.00",ROAD RUNNERS (NE) LTD.
Children and Adult Services,Childrens Services,Transport,230005,Contract Hire,09-Feb-2016,3085149-KDC010116,825.00,MJ TIMNEY T/A KDC & C&M TAXIS.
Children and Adult Services,Childrens Services,Transport,230005,Contract Hire,09-Feb-2016,3085140-2388,"1,660.00",LOCAL TRANSPORT LTD.
Children and Adult Services,Childrens Services,Transport,230005,Contract Hire,09-Feb-2016,3085140-2426,"1,130.00",LOCAL TRANSPORT LTD.
Children and Adult Services,Childrens Services,Supplies and Services,364301,Grants to Voluntary Organisations,09-Feb-2016,3085127-CAS-02-2016-064,622.09,REDACTED - PAYMENT TO INDIVIDUAL
Children and Adult Services,Childrens Services,Transport,230005,Contract Hire,09-Feb-2016,3085074-CLUB16003F,572.00,CLUBMAN CABS.
Children and Adult Services,Childrens Services,Supplies and Services,364310,Grants to Voluntary Organisations,09-Feb-2016,3085210-CAS-02-2016-073,541.32,REDACTED - PAYMENT TO INDIVIDUAL
Children and Adult Services,Childrens Services,Third Party Payments,440001,Other Third Party Payments,09-Feb-2016,3084885-1081559,536.22,REDACTED - PAYMENT TO INDIVIDUAL
Children and Adult Services,Childrens Services,Employees,080025,Agency Staff,09-Feb-2016,3085068-2319533,"1,030.00",CELSIAN.
Children and Adult Services,Childrens Services,Supplies and Services,384491,Miscellaneous Expenses,09-Feb-2016,3085238-201539,650.00,WHEATLEY HILL COMMUNITY NURSERY LTD.
Neighbourhood Services,Technical Services,Cap Exp on Grants & Other Financial Assistance (REFCUS),918004,Contributions to other bodies,09-Feb-2016,3085093-RED-02-2016-059,"14,233.00",DURHAM & DARLINGTON FIRE & RESCUE.
Neighbourhood Services,Culture & Sport,Supplies and Services,312013,Newspapers Books and Periodicals,09-Feb-2016,3085061-SIN001508,"13,084.00",BRIDGEALL LIBRARIES LTD.
Neighbourhood Services,Culture & Sport,Premises,120021,Energy Costs,09-Feb-2016,3085080-10563790,592.11,CORONA ENERGY RETAIL 2 LTD.
Neighbourhood Services,Technical Services,Third Party Payments,460351,Contract Payments,09-Feb-2016,3085166-033828,755.03,NORTHERN DISPOSAL SERVICES LTD.
Neighbourhood Services,Direct Services,Supplies and Services,304221,Equipment and Materials,09-Feb-2016,3085226-105677,"2,969.10",TOMMY WARDLE.
Neighbourhood Services,Technical Services,Supplies and Services,384194,Miscellaneous Expenses,09-Feb-2016,3085163-54326,"2,375.00",NIRAMAX GROUP LTD.
Neighbourhood Services,Technical Services,Third Party Payments,430100,Rendered by Private Contractors,09-Feb-2016,3085060-460,"3,750.00",BRIAN J STRONG.
Neighbourhood Services,Technical Services,Third Party Payments,430100,Rendered by Private Contractors,09-Feb-2016,3085060-461,"1,150.00",BRIAN J STRONG.
Neighbourhood Services,Culture & Sport,Supplies and Services,338047,Services,09-Feb-2016,3085095-130,"4,147.38",DURHAM SCENIC WORKSHOPS LTD.
Resources,Corporate Finance,Supplies and Services,338066,Services,09-Feb-2016,3085070-3114449,500.00,CIPFA BUSINESS LTD.
Children and Adult Services,Head of Adults,Transport,230005,Contract Hire,10-Feb-2016,3085541-4061,"1,078.00",NIGHTINGALE COACHES.
Children and Adult Services,Head of Adults,Transport,230005,Contract Hire,10-Feb-2016,3085673-DCC081/SLD005,"1,580.00",STEPHEN COXON.
Children and Adult Services,Head of Adults,Transport,230005,Contract Hire,10-Feb-2016,3085281-DCC3JAN16,"2,192.00",ATLAS TAXIS BISHOP AUCKLAND.
Children and Adult Services,Head of Adults,Transport,230005,Contract Hire,10-Feb-2016,3085281-DCC1JAN16,"2,580.00",ATLAS TAXIS BISHOP AUCKLAND.
Children and Adult Services,Head of Adults,Transport,230005,Contract Hire,10-Feb-2016,3085541-4060A,"1,180.00",NIGHTINGALE COACHES.
Children and Adult Services,Head of Adults,Transport,230005,Contract Hire,10-Feb-2016,3085541-4058,"1,040.00",NIGHTINGALE COACHES.
Children and Adult Services,Head of Adults,Transport,230005,Contract Hire,10-Feb-2016,3085541-4060,720.00,NIGHTINGALE COACHES.
Children and Adult Services,Head of Adults,Transport,230005,Contract Hire,10-Feb-2016,3085668-17732,536.00,STANLEY TRAVEL (NORTH EAST) LTD.
Children and Adult Services,Head of Adults,Transport,230005,Contract Hire,10-Feb-2016,3085727-16,514.80,TREVOR GARDNER T/A TCG TAXIS.
Children and Adult Services,Head of Adults,Transport,230005,Contract Hire,10-Feb-2016,3085268-0005A,"1,320.00",AIRPORT TAXIS 4U.
Children and Adult Services,Head of Adults,Transport,230005,Contract Hire,10-Feb-2016,3085668-17731,"1,198.00",STANLEY TRAVEL (NORTH EAST) LTD.
Children and Adult Services,Head of Adults,Transport,230005,Contract Hire,10-Feb-2016,3085691-B778,"1,372.18",TALBOTS TRAVEL LTD.
Children and Adult Services,Planning & Service Strategy,Supplies and Services,338089,Services,10-Feb-2016,3085452-2200,900.00,HSF TRAINING LTD.
Children and Adult Services,Planning & Service Strategy,Supplies and Services,384540,Miscellaneous Expenses,10-Feb-2016,3085274-UK16-6210,"3,346.00",ALVERN MEDIA.
Children and Adult Services,Public Health,Third Party Payments,460802,Contract Payments,10-Feb-2016,3085295-A83037/DEC2015HC,525.00,BEWICK CRESCENT SURGERY.
Children and Adult Services,Public Health,Third Party Payments,460802,Contract Payments,10-Feb-2016,3085339-A83011/DEC2015HC,725.00,CLAYPATH & UNIVERSITY MEDICAL GROUP.
Children and Adult Services,Public Health,Third Party Payments,460802,Contract Payments,10-Feb-2016,3085488-A83066/DEC2015HC,515.00,JUBILEE MEDICAL GROUP.
Children and Adult Services,Public Health,Third Party Payments,460802,Contract Payments,10-Feb-2016,3085526-A83041/DEC2015HC,735.00,MURTON MEDICAL GROUP.
Children and Adult Services,Public Health,Third Party Payments,460802,Contract Payments,10-Feb-2016,3085606-A83049/DEC2015HC,550.00,QUEENS ROAD SURGERY.
Children and Adult Services,Public Health,Third Party Payments,460802,Contract Payments,10-Feb-2016,3085758-A83003/DEC2015HC,585.00,WILLINGTON MEDICAL GROUP.
Children and Adult Services,Education,Premises,145009,Cleaning and Domestic Supplies,10-Feb-2016,302454-4002,570.00,A & B INDUSTRIAL CLEANING LTD.
Dedicated Schools Grant,Dedicated Schools Grant,Transport,230010,Contract Hire,10-Feb-2016,3085510-011604,"1,520.00",MARK & JOHN CHISHOLM T/A (CHEVRON).
Dedicated Schools Grant,Dedicated Schools Grant,Transport,230010,Contract Hire,10-Feb-2016,3085521-QC/01/16,"1,120.00",MR J AGAR T/A PARK TAXIS.
Dedicated Schools Grant,Dedicated Schools Grant,Transport,230010,Contract Hire,10-Feb-2016,3085694-DCC/2015/70,"1,768.50",TAYLOR`S TAXIS.
Dedicated Schools Grant,Dedicated Schools Grant,Transport,230010,Contract Hire,10-Feb-2016,3085722-TS14S-38,"1,960.00",TOP STAR TRAVEL.
Dedicated Schools Grant,Dedicated Schools Grant,Transport,230010,Contract Hire,10-Feb-2016,3085752-487840,836.00,WENDYS` TAXIS.
Children and Adult Services,Education,Transfer Payments,510028,School Children,10-Feb-2016,3085450-CAS-02-2016-053,"2,042.48",HOUSE OF EDEN CHILDRENS NURSERY.
Children and Adult Services,Education,Transfer Payments,510026,School Children,10-Feb-2016,3085708-THENURSERY0008,904.50,THE NURSERY.
Children and Adult Services,Education,Transport,230007,Contract Hire,10-Feb-2016,3085751-5389,814.00,WEARDALE PRIVATE HIRE.
Children and Adult Services,Education,Transport,230007,Contract Hire,10-Feb-2016,302461-12/153298,826.00,COLLINS TAXIS.
Children and Adult Services,Education,Transport,230007,Contract Hire,10-Feb-2016,3085610-37A,"1,286.60",RAYNERS COACHES.
Children and Adult Services,Education,Transport,230008,Contract Hire,10-Feb-2016,3085454-27,"1,235.00",IAN SHEPLEY T/A SHEPPA`S TAXIS.
Children and Adult Services,Education,Transport,230008,Contract Hire,10-Feb-2016,3085471-1598,"1,482.00",J YOUNG T/A VIP TAXIS.
Children and Adult Services,Education,Transport,230008,Contract Hire,10-Feb-2016,3085510-011606,902.50,MARK & JOHN CHISHOLM T/A (CHEVRON).
Children and Adult Services,Education,Transport,230008,Contract Hire,10-Feb-2016,3085748-420,"1,558.00",WAYSIDE TAXIS.
Children and Adult Services,Education,Transport,230007,Contract Hire,10-Feb-2016,3085262-587,950.00,AC TAXIS.
Children and Adult Services,Education,Transport,230007,Contract Hire,10-Feb-2016,3085631-3080/19,"1,453.68",S & S TRAVEL LTD.
Children and Adult Services,Education,Transport,230007,Contract Hire,10-Feb-2016,3085520-0015,990.00,MR A MILLWARD T/A SWISS CABS PRIVATE HIRE.
Children and Adult Services,Education,Construction Work,908105,Construction work,10-Feb-2016,3085463-DURH/0678,"375,419.10",INSPIREDSPACES DURHAM LTD.
Children and Adult Services,Education,Transport,230007,Contract Hire,10-Feb-2016,3085751-5390,"4,185.51",WEARDALE PRIVATE HIRE.
Children and Adult Services,Education,Transport,230007,Contract Hire,10-Feb-2016,302463-21,954.00,DAVID WILKINSON...
Children and Adult Services,Education,Transport,230007,Contract Hire,10-Feb-2016,3085755-290116,988.00,WIL TRAVEL.
Children and Adult Services,Education,Transport,230008,Contract Hire,10-Feb-2016,3085282-03386,"1,060.20",ATLAS TAXIS CONSETT.
Children and Adult Services,Education,Transport,230007,Contract Hire,10-Feb-2016,3085572-1481,"1,026.00",PAUL WATSON TRAVEL.
Children and Adult Services,Education,Transport,230007,Contract Hire,10-Feb-2016,3085572-1482,"2,280.00",PAUL WATSON TRAVEL.
Children and Adult Services,Education,Transport,230007,Contract Hire,10-Feb-2016,3085304-1356,"2,090.00",BOB SMITH COACHES.
Children and Adult Services,Education,Transport,230007,Contract Hire,10-Feb-2016,3085719-2915,"2,242.00",TM TRAVEL.
Children and Adult Services,Education,Transport,230007,Contract Hire,10-Feb-2016,3085719-2916,"2,242.00",TM TRAVEL.
Children and Adult Services,Education,Transport,230007,Contract Hire,10-Feb-2016,3085726-8816,523.40,TRANSPORT.ADVENTURE.XI.
Children and Adult Services,Education,Transport,230007,Contract Hire,10-Feb-2016,3085610-37C,"6,030.60",RAYNERS COACHES.
Children and Adult Services,Education,Transport,230007,Contract Hire,10-Feb-2016,3085618-464,700.00,ROAD RUNNERS (NE) LTD.
Children and Adult Services,Education,Transport,230007,Contract Hire,10-Feb-2016,3085621-150501,"5,588.64",ROBERTS TOURS.
Children and Adult Services,Education,Transport,230007,Contract Hire,10-Feb-2016,3085700-29/31/1/2016,"2,079.72",TED WILFORD COACHES.
Children and Adult Services,Education,Transport,230007,Contract Hire,10-Feb-2016,3085471-1594,"1,160.00",J YOUNG T/A VIP TAXIS.
Children and Adult Services,Education,Transport,230007,Contract Hire,10-Feb-2016,3085471-1595,608.00,J YOUNG T/A VIP TAXIS.
Children and Adult Services,Education,Transport,230009,Contract Hire,10-Feb-2016,3085682-7003-JAN2016,820.00,SWAN TAXIS.
Children and Adult Services,Education,Transport,230008,Contract Hire,10-Feb-2016,3085354-0019,"3,000.00",DAVID WALKER TAXIS.
Children and Adult Services,Education,Transport,230006,Contract Hire,10-Feb-2016,302473-34,721.60,GILLY`S TAXIS.
Children and Adult Services,Education,Transport,230008,Contract Hire,10-Feb-2016,3085505-JANUARYC3,"1,771.00",MA BODDY.
Children and Adult Services,Education,Transport,230008,Contract Hire,10-Feb-2016,3085523-A069/01/16,"1,466.80",MR M ALLISON T/A MACBETH TAXIS/COACHES.
Children and Adult Services,Education,Transport,230007,Contract Hire,10-Feb-2016,3085611-RDS012,660.00,RDS TAXI.
Children and Adult Services,Education,Transport,230008,Contract Hire,10-Feb-2016,3085618-463,"2,200.00",ROAD RUNNERS (NE) LTD.
Children and Adult Services,Education,Transport,230008,Contract Hire,10-Feb-2016,3085646-71954,"1,440.00",SHOTTON PRIVATE HIRE.
Children and Adult Services,Education,Transport,230008,Contract Hire,10-Feb-2016,3085646-71955,"3,040.00",SHOTTON PRIVATE HIRE.
Children and Adult Services,Education,Transport,230008,Contract Hire,10-Feb-2016,3085659-426A,"1,064.00",SODA TAXIS.
Children and Adult Services,Education,Transport,230008,Contract Hire,10-Feb-2016,3085673-DCC005/A045,"1,920.00",STEPHEN COXON.
Children and Adult Services,Education,Transport,230007,Contract Hire,10-Feb-2016,3085700-6032-JAN2016,"1,710.00",TED WILFORD COACHES.
Children and Adult Services,Education,Transport,230007,Contract Hire,10-Feb-2016,3085719-2919,"1,805.00",TM TRAVEL.
Children and Adult Services,Education,Transport,230007,Contract Hire,10-Feb-2016,3085751-5391,"3,455.91",WEARDALE PRIVATE HIRE.
Children and Adult Services,Education,Transport,230007,Contract Hire,10-Feb-2016,3085282-03382,792.00,ATLAS TAXIS CONSETT.
Children and Adult Services,Education,Transport,230008,Contract Hire,10-Feb-2016,3085654-200A,"3,135.00",SJ MACKENZIE T/A SCOTTS TAXIS.
Children and Adult Services,Education,Transport,230008,Contract Hire,10-Feb-2016,3085618-462,"1,040.00",ROAD RUNNERS (NE) LTD.
Children and Adult Services,Education,Transport,230008,Contract Hire,10-Feb-2016,3085663-AAK15999,"1,665.20",SPENNYMOOR TAXIS.
Children and Adult Services,Education,Transport,230008,Contract Hire,10-Feb-2016,3085754-WESTLEA290116,"1,005.20",WESTLEA TAXIS.
Children and Adult Services,Education,Transport,230008,Contract Hire,10-Feb-2016,3085541-4037,"1,790.00",NIGHTINGALE COACHES.
Children and Adult Services,Education,Transport,230008,Contract Hire,10-Feb-2016,3085615-3020,"1,938.00",RICHIES TAXIS.
Children and Adult Services,Education,Transport,230008,Contract Hire,10-Feb-2016,3085659-002A,"1,900.00",SODA TAXIS.
Children and Adult Services,Education,Transport,230008,Contract Hire,10-Feb-2016,3085659-162A,544.00,SODA TAXIS.
Children and Adult Services,Education,Transport,230008,Contract Hire,10-Feb-2016,3085281-DCC10JAN16,"1,520.00",ATLAS TAXIS BISHOP AUCKLAND.
Children and Adult Services,Education,Transport,230008,Contract Hire,10-Feb-2016,3085689-1188,"2,761.43",TAILORMADE TRAVEL.
Children and Adult Services,Education,Transport,230008,Contract Hire,10-Feb-2016,3085728-38,"1,799.00",TT TAXIS.
Children and Adult Services,Education,Transport,230008,Contract Hire,10-Feb-2016,302458-MO47/27,"1,600.00",C STEWART.
Children and Adult Services,Education,Transport,230008,Contract Hire,10-Feb-2016,3085312-BZ00172,"1,560.00",BREZ`S TAXIS.
Children and Adult Services,Education,Transport,230008,Contract Hire,10-Feb-2016,3085618-460,"2,128.00",ROAD RUNNERS (NE) LTD.
Children and Adult Services,Education,Transport,230008,Contract Hire,10-Feb-2016,3085618-461,"1,824.00",ROAD RUNNERS (NE) LTD.
Children and Adult Services,Education,Transport,230008,Contract Hire,10-Feb-2016,3085620-159,"1,874.31",ROBBIE`S PRIVATE HIRE.
Children and Adult Services,Education,Transport,230008,Contract Hire,10-Feb-2016,3085623-1652,"2,025.00",RON`S TAXIS (FISHBURN).
Children and Adult Services,Education,Transport,230008,Contract Hire,10-Feb-2016,3085654-199A,"1,766.59",SJ MACKENZIE T/A SCOTTS TAXIS.
Children and Adult Services,Education,Transport,230008,Contract Hire,10-Feb-2016,3085748-427,"1,330.00",WAYSIDE TAXIS.
Children and Adult Services,Education,Transport,230008,Contract Hire,10-Feb-2016,3085510-011605,"1,102.00",MARK & JOHN CHISHOLM T/A (CHEVRON).
Children and Adult Services,Education,Transport,230008,Contract Hire,10-Feb-2016,3085630-SA059,608.00,S & A TAXIS.
Children and Adult Services,Education,Transport,230008,Contract Hire,10-Feb-2016,3085748-421,"1,254.00",WAYSIDE TAXIS.
Children and Adult Services,Education,Transport,230008,Contract Hire,10-Feb-2016,3085748-426,"1,855.00",WAYSIDE TAXIS.
Children and Adult Services,Education,Transport,230008,Contract Hire,10-Feb-2016,3085305-1398,"3,333.20",BOBBY DOVE.
Children and Adult Services,Education,Transport,230008,Contract Hire,10-Feb-2016,302461-12/15154,"1,106.00",COLLINS TAXIS.
Children and Adult Services,Education,Transport,230008,Contract Hire,10-Feb-2016,3085593-1139,900.00,PODA LTD.
Children and Adult Services,Education,Transport,230008,Contract Hire,10-Feb-2016,3085593-1140,"1,772.00",PODA LTD.
Children and Adult Services,Education,Transport,230008,Contract Hire,10-Feb-2016,3085615-3022,720.00,RICHIES TAXIS.
Children and Adult Services,Education,Transport,230008,Contract Hire,10-Feb-2016,3085622-026,"1,700.00",RONS TAXI (CHESTER LE ST).
Children and Adult Services,Education,Transport,230008,Contract Hire,10-Feb-2016,3085654-201A,"1,100.00",SJ MACKENZIE T/A SCOTTS TAXIS.
Children and Adult Services,Education,Transport,230008,Contract Hire,10-Feb-2016,3085659-140A,920.00,SODA TAXIS.
Children and Adult Services,Education,Transport,230008,Contract Hire,10-Feb-2016,3085281-DCC8JAN16,"1,490.00",ATLAS TAXIS BISHOP AUCKLAND.
Children and Adult Services,Education,Transport,230008,Contract Hire,10-Feb-2016,3085298-06840,"1,835.28",BIRDS TAXIS.
Children and Adult Services,Education,Transport,230008,Contract Hire,10-Feb-2016,302462-AA011,"2,537.50",COUNDON TAXIS.
Children and Adult Services,Education,Transport,230008,Contract Hire,10-Feb-2016,3085631-SO11/38,"1,635.48",S & S TRAVEL LTD.
Children and Adult Services,Education,Transport,230008,Contract Hire,10-Feb-2016,3085631-W075/38,"1,616.40",S & S TRAVEL LTD.
Children and Adult Services,Education,Transport,230008,Contract Hire,10-Feb-2016,3085631-WO85/05,"1,620.00",S & S TRAVEL LTD.
Children and Adult Services,Education,Transport,230008,Contract Hire,10-Feb-2016,3085644-5-29/1/16,"1,080.00",SHARON`S TAXI.
Children and Adult Services,Education,Transport,230008,Contract Hire,10-Feb-2016,3085646-71957,"1,620.00",SHOTTON PRIVATE HIRE.
Children and Adult Services,Education,Transport,230008,Contract Hire,10-Feb-2016,3085663-LLMD054121,900.00,SPENNYMOOR TAXIS.
Children and Adult Services,Education,Transport,230008,Contract Hire,10-Feb-2016,3085663-NUBJC39477,640.00,SPENNYMOOR TAXIS.
Children and Adult Services,Education,Transport,230008,Contract Hire,10-Feb-2016,3085663-JJJC24449,"1,634.58",SPENNYMOOR TAXIS.
Children and Adult Services,Education,Transport,230008,Contract Hire,10-Feb-2016,3085722-TS91-05,756.00,TOP STAR TRAVEL.
Children and Adult Services,Education,Transport,230008,Contract Hire,10-Feb-2016,3085746-0001084,"2,102.22",WATSON OF SPENNYMOOR.
Children and Adult Services,Education,Transport,230008,Contract Hire,10-Feb-2016,3085281-DCC2JAN16,"2,202.76",ATLAS TAXIS BISHOP AUCKLAND.
Children and Adult Services,Education,Transport,230008,Contract Hire,10-Feb-2016,3085281-DCC4JAN16,"2,130.00",ATLAS TAXIS BISHOP AUCKLAND.
Children and Adult Services,Education,Transport,230008,Contract Hire,10-Feb-2016,3085281-DCC7JAN16,"2,250.00",ATLAS TAXIS BISHOP AUCKLAND.
Children and Adult Services,Education,Transport,230008,Contract Hire,10-Feb-2016,302461-12/15135,966.00,COLLINS TAXIS.
Children and Adult Services,Education,Transport,230008,Contract Hire,10-Feb-2016,302461-12/15137,"1,372.00",COLLINS TAXIS.
Children and Adult Services,Education,Transport,230008,Contract Hire,10-Feb-2016,3085631-WO52/27,"3,052.98",S & S TRAVEL LTD.
Children and Adult Services,Education,Transport,230008,Contract Hire,10-Feb-2016,3085631-WO67/05,"1,732.50",S & S TRAVEL LTD.
Children and Adult Services,Education,Transport,230008,Contract Hire,10-Feb-2016,3085651-S027-01-16,"1,764.00",SIMON ELLIFF.
Children and Adult Services,Education,Transport,230008,Contract Hire,10-Feb-2016,3085694-DCC/2015/68,"1,134.00",TAYLOR`S TAXIS.
Children and Adult Services,Education,Transport,230008,Contract Hire,10-Feb-2016,3085722-TS20-38,"1,817.10",TOP STAR TRAVEL.
Children and Adult Services,Education,Transport,230008,Contract Hire,10-Feb-2016,3085747-1044,"1,800.00",WAYNE`S TAXIS.
Children and Adult Services,Education,Transport,230008,Contract Hire,10-Feb-2016,3085747-1045,"1,584.00",WAYNE`S TAXIS.
Children and Adult Services,Education,Transport,230006,Contract Hire,10-Feb-2016,3085247-11607,646.00,24/7 TAXI SERVICES LTD.
Children and Adult Services,Education,Transport,230006,Contract Hire,10-Feb-2016,3085363-16/01,910.00,DMG PRIVATE HIRE.
Children and Adult Services,Education,Transport,230006,Contract Hire,10-Feb-2016,3085495-1058,"2,040.00",LD TAXIS.
Children and Adult Services,Education,Transport,230006,Contract Hire,10-Feb-2016,3085615-3026,748.00,RICHIES TAXIS.
Children and Adult Services,Education,Transport,230006,Contract Hire,10-Feb-2016,3085694-DCC/2015/69,"1,378.00",TAYLOR`S TAXIS.
Children and Adult Services,Education,Transport,230006,Contract Hire,10-Feb-2016,3085751-5394,"1,580.00",WEARDALE PRIVATE HIRE.
Children and Adult Services,Education,Transport,230006,Contract Hire,10-Feb-2016,3085755-250116,650.00,WIL TRAVEL.
Children and Adult Services,Education,Third Party Payments,440999,Other Third Party Payments,10-Feb-2016,3085321-046,"5,989.76",CAPITAL 4 TRAINING LTD
Children and Adult Services,Education,Third Party Payments,440999,Other Third Party Payments,10-Feb-2016,3085321-047,"1,141.58",CAPITAL 4 TRAINING LTD
Dedicated Schools Grant,Dedicated Schools Grant,Third Party Payments,440080,Other Third Party Payments,10-Feb-2016,3085377-0000037551,"102,032.59",EAST DURHAM COLLEGE.
Children and Adult Services,Education,Supplies and Services,304259,Equipment and Materials,10-Feb-2016,3085419-SINV00059452,"1,152.12",GL ASSESSMENT LTD.
Children and Adult Services,Education,Supplies and Services,304259,Equipment and Materials,10-Feb-2016,3085419-SINV00060507,"1,152.12",GL ASSESSMENT LTD.
Children and Adult Services,Childrens Services,Supplies and Services,384302,Miscellaneous Expenses,10-Feb-2016,3085300-CAS-01-2016-075,"1,640.00",BISHOP BARRINGTON SCHOOL FUND.
Children and Adult Services,Childrens Services,Supplies and Services,364352,Grants to Voluntary Organisations,10-Feb-2016,302459-710,889.58,CITY OF SUNDERLAND YMCA LTD.
Children and Adult Services,Childrens Services,Supplies and Services,364352,Grants to Voluntary Organisations,10-Feb-2016,3085675-D1IN/00021318,"1,440.78",STONHAM HOUSING ASSOCIATION LTD.
Children and Adult Services,Childrens Services,Supplies and Services,364352,Grants to Voluntary Organisations,10-Feb-2016,3085675-D1IN/00021367,"1,440.78",STONHAM HOUSING ASSOCIATION LTD.
Children and Adult Services,Childrens Services,Supplies and Services,364352,Grants to Voluntary Organisations,10-Feb-2016,3085675-D1IN/00021368,"1,952.48",STONHAM HOUSING ASSOCIATION LTD.
Children and Adult Services,Childrens Services,Supplies and Services,364352,Grants to Voluntary Organisations,10-Feb-2016,3085675-D1IN/00021369,"1,747.58",STONHAM HOUSING ASSOCIATION LTD.
Children and Adult Services,Childrens Services,Supplies and Services,364352,Grants to Voluntary Organisations,10-Feb-2016,3085675-68606JAN16,924.76,STONHAM HOUSING ASSOCIATION LTD.
Children and Adult Services,Childrens Services,Third Party Payments,425040,Rendered by Voluntary Organisations,10-Feb-2016,3085402-0000058395,"3,065.71",FIVE RIVERS CHILD CARE LTD.
Children and Adult Services,Childrens Services,Third Party Payments,425040,Rendered by Voluntary Organisations,10-Feb-2016,3085407-2200018147,"1,092.00",FOSTER CARE ASSOCIATES LTD.
Children and Adult Services,Childrens Services,Third Party Payments,425040,Rendered by Voluntary Organisations,10-Feb-2016,3085408-125295,730.00,FOSTER CARES LTD.
Children and Adult Services,Childrens Services,Third Party Payments,425040,Rendered by Voluntary Organisations,10-Feb-2016,3085408-125347,730.00,FOSTER CARES LTD.
Children and Adult Services,Childrens Services,Third Party Payments,425040,Rendered by Voluntary Organisations,10-Feb-2016,3085408-125425,730.00,FOSTER CARES LTD.
Children and Adult Services,Childrens Services,Third Party Payments,425040,Rendered by Voluntary Organisations,10-Feb-2016,3085408-125474,730.00,FOSTER CARES LTD.
Children and Adult Services,Childrens Services,Employees,040001,Recruitment Instruction and Training,10-Feb-2016,3085539-13987889,"1,211.76",NEWSQUEST (YORKSHIRE & NORTH EAST) LTD.
Children and Adult Services,Childrens Services,Third Party Payments,425040,Rendered by Voluntary Organisations,10-Feb-2016,3085665-1161384,"3,100.00",ST CUTHBERTS CARE.
Children and Adult Services,Childrens Services,Third Party Payments,425040,Rendered by Voluntary Organisations,10-Feb-2016,3085684-177174,700.00,SWIIS FOSTER CARE LTD.
Children and Adult Services,Childrens Services,Third Party Payments,425040,Rendered by Voluntary Organisations,10-Feb-2016,3085684-177175,819.98,SWIIS FOSTER CARE LTD.
Children and Adult Services,Childrens Services,Third Party Payments,425040,Rendered by Voluntary Organisations,10-Feb-2016,3085684-177177,730.03,SWIIS FOSTER CARE LTD.
Children and Adult Services,Childrens Services,Third Party Payments,425040,Rendered by Voluntary Organisations,10-Feb-2016,3085684-177178,730.03,SWIIS FOSTER CARE LTD.
Children and Adult Services,Childrens Services,Third Party Payments,425040,Rendered by Voluntary Organisations,10-Feb-2016,3085684-177179,730.03,SWIIS FOSTER CARE LTD.
Children and Adult Services,Childrens Services,Third Party Payments,425040,Rendered by Voluntary Organisations,10-Feb-2016,3085684-177180,980.00,SWIIS FOSTER CARE LTD.
Children and Adult Services,Childrens Services,Third Party Payments,425040,Rendered by Voluntary Organisations,10-Feb-2016,3085684-177181,700.00,SWIIS FOSTER CARE LTD.
Children and Adult Services,Childrens Services,Third Party Payments,425040,Rendered by Voluntary Organisations,10-Feb-2016,3085684-177182,759.99,SWIIS FOSTER CARE LTD.
Children and Adult Services,Childrens Services,Third Party Payments,425040,Rendered by Voluntary Organisations,10-Feb-2016,3085684-177183,819.98,SWIIS FOSTER CARE LTD.
Children and Adult Services,Childrens Services,Third Party Payments,425040,Rendered by Voluntary Organisations,10-Feb-2016,3085684-177184,730.03,SWIIS FOSTER CARE LTD.
Children and Adult Services,Childrens Services,Third Party Payments,425040,Rendered by Voluntary Organisations,10-Feb-2016,3085684-177185,980.00,SWIIS FOSTER CARE LTD.
Children and Adult Services,Childrens Services,Premises,120009,Energy Costs,10-Feb-2016,3085553-79305943270/JAN2016,"1,062.95",NPOWER.
Children and Adult Services,Childrens Services,Premises,145009,Cleaning and Domestic Supplies,10-Feb-2016,3085585-63314830,"3,308.19",PHS GROUP PLC.
Assistant Chief Executive,Partnerships & Community Engagement Div.,Cap Exp on Grants & Other Financial Assistance (REFCUS),918004,Contributions to other bodies,10-Feb-2016,3085331-CHES039,"4,041.00",CHESTER LE ST RIVERSIDE BAND.
Assistant Chief Executive,Partnerships & Community Engagement Div.,Transfer Payments,525030,Other,10-Feb-2016,3085346-WR-4TOG001,"10,000.00",COUNTY DURHAM FURNITURE HELP SCHEME (CDFHS).
Assistant Chief Executive,Planning & Performance Division,Supplies and Services,304259,Equipment and Materials,10-Feb-2016,3085456-105356184,"2,188.00",IBM UNITED KINGDOM LTD.
Assistant Chief Executive,Planning & Performance Division,Supplies and Services,338099,Services,10-Feb-2016,3085457-4225,"1,200.00",IDOX SOFTWARE LTD.
Assistant Chief Executive,Planning & Performance Division,Supplies and Services,338099,Services,10-Feb-2016,3085457-4226,855.00,IDOX SOFTWARE LTD.
Assistant Chief Executive,Planning & Performance Division,Supplies and Services,338099,Services,10-Feb-2016,3085457-4234,"4,450.00",IDOX SOFTWARE LTD.
Assistant Chief Executive,Partnerships & Community Engagement Div.,Cap Exp on Grants & Other Financial Assistance (REFCUS),918004,Contributions to other bodies,10-Feb-2016,3085661-SPEN002,"8,340.00",SOUTH DURHAM GYMNASTICS CLUB.
Neighbourhood Services,Direct Services,Supplies and Services,384700,Miscellaneous Expenses,10-Feb-2016,3085428-NEI-EXP-02-2016-016,500.00,GREAT LUMLEY MILLENIUM GREEN TRUST.
Neighbourhood Services,Sport & Leisure,Cap Exp on Grants & Other Financial Assistance (REFCUS),918004,Contributions to other bodies,10-Feb-2016,302522-RED-02-2016-030,"3,450.00",SITA UK LTD.
Neighbourhood Services,Direct Services,Supplies and Services,332047,Printing Stationery and Gen Off Exps,10-Feb-2016,3085269-0910000381-014,"1,606.76",AIRWAVE SOLUTIONS LTD.
Neighbourhood Services,Direct Services,Supplies and Services,304221,Equipment and Materials,10-Feb-2016,3085403-1601-181302,900.00,FLAME HEATING SPARES LTD.
Neighbourhood Services,Direct Services,Employees,040149,Recruitment Instruction and Training,10-Feb-2016,302474-204714-15/16,950.00,HARTLEPOOL COLLEGE OF FURTHER EDUCATION.
Neighbourhood Services,Direct Services,Employees,040149,Recruitment Instruction and Training,10-Feb-2016,302474-237012-15/16,950.00,HARTLEPOOL COLLEGE OF FURTHER EDUCATION.
Neighbourhood Services,Direct Services,Employees,040149,Recruitment Instruction and Training,10-Feb-2016,302474-240351-15/16,950.00,HARTLEPOOL COLLEGE OF FURTHER EDUCATION.
Neighbourhood Services,Direct Services,Employees,040149,Recruitment Instruction and Training,10-Feb-2016,302474-240353-15/16,950.00,HARTLEPOOL COLLEGE OF FURTHER EDUCATION.
Neighbourhood Services,Technical Services,Third Party Payments,430100,Rendered by Private Contractors,10-Feb-2016,3085271-J1530/145/B,"1,180.73",AK (LIGHTING & SIGNS) LTD.
Neighbourhood Services,Technical Services,Third Party Payments,430100,Rendered by Private Contractors,10-Feb-2016,3085608-2580/160145,"63,038.44",RAINTON CONSTRUCTION LTD.
Neighbourhood Services,Direct Services,Transport,210057,Repair and Maintenance of Vehicles,10-Feb-2016,3085496-17154996155,644.84,LEEDS GALVANISING & POWDER COATING LTD.
Neighbourhood Services,EnvironmentHealth & Consumer Protection,Supplies and Services,342053,Computers and Communications,10-Feb-2016,3085337-C/RG139736,"1,075.00",CIVICA UK LTD.
Neighbourhood Services,Technical Services,Construction Work,908105,Construction work,10-Feb-2016,3085509-6000014092,"1,143.50",MARINE MANAGEMENT ORGANISATION (MMO).
Neighbourhood Services,Direct Services,Premises,120037,Energy Costs,10-Feb-2016,3085406-0000007771,"1,350.00",FOREVER FUELS LTD
Neighbourhood Services,Technical Services,Supplies and Services,304047,Equipment and Materials,10-Feb-2016,3085549-DI20234328,"1,382.16",NORTHERN POWERGRID (NORTHEAST) LTD.
Neighbourhood Services,Technical Services,Supplies and Services,304221,Equipment and Materials,10-Feb-2016,3085693-9033789388,508.75,TARMAC TRADING LTD.
Neighbourhood Services,Technical Services,Supplies and Services,304221,Equipment and Materials,10-Feb-2016,3085693-9033812449,678.00,TARMAC TRADING LTD.
Neighbourhood Services,Technical Services,Supplies and Services,304358,Equipment and Materials,10-Feb-2016,3085483-0000079570,720.00,JOHN WADE (HAULAGE) LTD.
Neighbourhood Services,Culture & Sport,Supplies and Services,304245,Equipment and Materials,10-Feb-2016,3085718-0000062995,"2,280.00",TICKETS.COM LTD.
Neighbourhood Services,Culture & Sport,Supplies and Services,308011,Furniture,10-Feb-2016,3085649-INV0103124,"1,927.80",SICO EUROPE LTD.
Neighbourhood Services,Projects and Business services,Supplies and Services,340001,Postages,10-Feb-2016,3085626-9051407660,"1,449.57",ROYAL MAIL GROUP PLC.
Neighbourhood Services,Technical Services,Employees,040149,Recruitment Instruction and Training,10-Feb-2016,3085377-0000037556,"2,040.00",EAST DURHAM COLLEGE.
Neighbourhood Services,Direct Services,Transport,210057,Repair and Maintenance of Vehicles,10-Feb-2016,3085443-1443995394,790.99,HILTI (GB) LTD.
Neighbourhood Services,Technical Services,Stock,926900,Stock in hand-Inventory system,10-Feb-2016,3085660-SI15010518,572.00,SOLON SECURITY LTD.
Neighbourhood Services,Technical Services,Stock,926900,Stock in hand-Inventory system,10-Feb-2016,3085717-N/IN164280,501.84,THOMAS OWEN & SONS (NEWCASTLE) LTD.
Neighbourhood Services,Technical Services,Stock,926900,Stock in hand-Inventory system,10-Feb-2016,3085717-N/IN164282,"2,232.12",THOMAS OWEN & SONS (NEWCASTLE) LTD.
Neighbourhood Services,Technical Services,Supplies and Services,304221,Equipment and Materials,10-Feb-2016,3085486-BII181474,724.12,JT DOVE LTD.
Neighbourhood Services,Technical Services,Stock,926900,Stock in hand-Inventory system,10-Feb-2016,3085430-06/586061,"1,640.00",GREENHAM TRADING LTD.
Neighbourhood Services,Technical Services,Stock,926900,Stock in hand-Inventory system,10-Feb-2016,3085430-06/587017,553.60,GREENHAM TRADING LTD.
Neighbourhood Services,Technical Services,Stock,926900,Stock in hand-Inventory system,10-Feb-2016,3085430-06/587414,694.53,GREENHAM TRADING LTD.
Neighbourhood Services,Technical Services,Construction Work,908105,Construction work,10-Feb-2016,3085266-28246915,"1,828.11",AECOM LTD.
Neighbourhood Services,Culture & Sport,Premises,120021,Energy Costs,10-Feb-2016,3085318-27615018,575.92,CALOR GAS LTD.
Neighbourhood Services,Technical Services,Supplies and Services,304221,Equipment and Materials,10-Feb-2016,3085267-22581420,"3,104.74",AGGREGATE INDUSTRIES UK LTD.
Neighbourhood Services,Technical Services,Supplies and Services,304221,Equipment and Materials,10-Feb-2016,3085267-22581421,"1,684.50",AGGREGATE INDUSTRIES UK LTD.
Neighbourhood Services,Technical Services,Supplies and Services,304221,Equipment and Materials,10-Feb-2016,3085267-22581422,834.51,AGGREGATE INDUSTRIES UK LTD.
Neighbourhood Services,Direct Services,Supplies and Services,304221,Equipment and Materials,10-Feb-2016,3085570-BR537450,"1,596.23",PARK ELECTRICAL DISTRIBUTORS LTD.
Neighbourhood Services,Direct Services,Supplies and Services,304221,Equipment and Materials,10-Feb-2016,3085570-BR537604,853.99,PARK ELECTRICAL DISTRIBUTORS LTD.
Neighbourhood Services,Direct Services,Supplies and Services,304221,Equipment and Materials,10-Feb-2016,3085760-29463537,560.00,WOLSELEY UK LTD.
Neighbourhood Services,Direct Services,Supplies and Services,304221,Equipment and Materials,10-Feb-2016,3085763-117881/M,"4,753.00",WYBONE LTD.
Neighbourhood Services,Direct Services,Supplies and Services,304259,Equipment and Materials,10-Feb-2016,3085438-INV01/15,"4,220.00",HASWELL PARISH COUNCIL.
Neighbourhood Services,Direct Services,Transport,210057,Repair and Maintenance of Vehicles,10-Feb-2016,3085293-15095784,578.00,BELL TRUCK SALES LTD.
Neighbourhood Services,Direct Services,Premises,145009,Cleaning and Domestic Supplies,10-Feb-2016,3085397-1200309,636.00,FCC RECYCLING (UK)  LTD.
Neighbourhood Services,Direct Services,Supplies and Services,304221,Equipment and Materials,10-Feb-2016,3085484-1091874,"3,780.00",JOHNSONS OF WHIXLEY LTD.
Neighbourhood Services,Direct Services,Supplies and Services,304221,Equipment and Materials,10-Feb-2016,3085499-3702401,"2,182.28",LONDON GENERAL SALES LTD.
Neighbourhood Services,Direct Services,Supplies and Services,304221,Equipment and Materials,10-Feb-2016,3085687-1842883,723.51,T CROSSLING & CO LTD.
Neighbourhood Services,Direct Services,Supplies and Services,304221,Equipment and Materials,10-Feb-2016,3085687-1851471,659.43,T CROSSLING & CO LTD.
Neighbourhood Services,Technical Services,Supplies and Services,304358,Equipment and Materials,10-Feb-2016,3085472-5305055,622.08,JA GILSON (AGRICULTURAL CONTRACTORS) LTD.
Neighbourhood Services,Direct Services,Transport,210057,Repair and Maintenance of Vehicles,10-Feb-2016,3085380-S191053,"2,118.94",ECON ENGINEERING LTD.
Neighbourhood Services,Direct Services,Transport,210057,Repair and Maintenance of Vehicles,10-Feb-2016,3085517-MJC1274,624.33,MJC AIR TOOL SERVICES.
Neighbourhood Services,Culture & Sport,Supplies and Services,372009,Subscriptions,10-Feb-2016,3085579-4744278,"2,512.18",PERFORMING RIGHT SOCIETY LTD T/A PRS FOR MUSIC.
Neighbourhood Services,Culture & Sport,Supplies and Services,372009,Subscriptions,10-Feb-2016,3085579-4744279,"2,512.18",PERFORMING RIGHT SOCIETY LTD T/A PRS FOR MUSIC.
Neighbourhood Services,Direct Services,Employees,080025,Agency Staff,10-Feb-2016,3085357-329840,"141,078.76",DE POEL MANAGED SERVICES LTD.
Neighbourhood Services,Technical Services,Third Party Payments,460156,Contract Payments,10-Feb-2016,3085464-515944,533.00,INSTARMAC GROUP PLC.
Neighbourhood Services,Direct Services,Supplies and Services,304259,Equipment and Materials,10-Feb-2016,3085322-465496,755.00,CARRS BILLINGTON AGRICULTURE.
Neighbourhood Services,Direct Services,Third Party Payments,430100,Rendered by Private Contractors,10-Feb-2016,3085362-204158,658.50,DIRECT COMMUNICATIONS RADIO SERVICES LTD.
Neighbourhood Services,Direct Services,Third Party Payments,430100,Rendered by Private Contractors,10-Feb-2016,3085567-557948,"1,427.00",P & N ASSOCIATES LTD.
Neighbourhood Services,Direct Services,Third Party Payments,430100,Rendered by Private Contractors,10-Feb-2016,3085567-558727,709.00,P & N ASSOCIATES LTD.
Neighbourhood Services,Direct Services,Third Party Payments,430100,Rendered by Private Contractors,10-Feb-2016,3085770-100702,"2,157.50",ZOELLER WASTE SYSTEMS LTD.
Neighbourhood Services,Direct Services,Stock,926004,Stock,10-Feb-2016,3085431-126948,693.02,GREENLAY (GRASS MACHINERY) LTD.
Neighbourhood Services,Technical Services,Stock,926900,Stock in hand-Inventory system,10-Feb-2016,3085385-726520,913.00,ELECTRICAL WASTE RECYCLING GROUP.
Neighbourhood Services,Technical Services,Construction Work,908105,Construction work,10-Feb-2016,3085473-12009,"1,660.66",JACK COUPE & SONS LTD T/A COUPE LINE.
Neighbourhood Services,Technical Services,Construction Work,908105,Construction work,10-Feb-2016,3085473-12072,"1,022.46",JACK COUPE & SONS LTD T/A COUPE LINE.
Neighbourhood Services,Technical Services,Construction Work,908105,Construction work,10-Feb-2016,3085473-12081,"2,239.50",JACK COUPE & SONS LTD T/A COUPE LINE.
Neighbourhood Services,Technical Services,Construction Work,908105,Construction work,10-Feb-2016,3085473-12096,676.00,JACK COUPE & SONS LTD T/A COUPE LINE.
Neighbourhood Services,Technical Services,Construction Work,908105,Construction work,10-Feb-2016,3085473-12114,"3,498.10",JACK COUPE & SONS LTD T/A COUPE LINE.
Neighbourhood Services,Technical Services,Supplies and Services,304221,Equipment and Materials,10-Feb-2016,3085426-32733,551.00,GRAB & DELIVER LTD.
Neighbourhood Services,Technical Services,Supplies and Services,304221,Equipment and Materials,10-Feb-2016,3085528-49094,"4,782.58",NAL LTD.
Neighbourhood Services,Technical Services,Supplies and Services,304358,Equipment and Materials,10-Feb-2016,3085418-10326,730.00,GEORGE VARDY HAULAGE.
Neighbourhood Services,Technical Services,Supplies and Services,304358,Equipment and Materials,10-Feb-2016,3085418-10329,"1,060.00",GEORGE VARDY HAULAGE.
Neighbourhood Services,Technical Services,Supplies and Services,304358,Equipment and Materials,10-Feb-2016,3085482-23845,"1,066.00",JOHN R BUTTERFIELD LTD.
Neighbourhood Services,Technical Services,Supplies and Services,304358,Equipment and Materials,10-Feb-2016,3085482-24233,844.40,JOHN R BUTTERFIELD LTD.
Neighbourhood Services,Culture & Sport,Supplies and Services,312013,Newspapers Books and Periodicals,10-Feb-2016,3085307-14577,599.25,BOLINDA DIGITAL LTD.
Neighbourhood Services,Technical Services,Third Party Payments,430127,Rendered by Private Contractors,10-Feb-2016,3085741-40666,"3,982.00",W MARLEY AGRICULTURAL CONTRACTORS LTD.
Neighbourhood Services,Technical Services,Third Party Payments,430100,Rendered by Private Contractors,10-Feb-2016,3085473-12031,741.15,JACK COUPE & SONS LTD T/A COUPE LINE.
Neighbourhood Services,Direct Services,Third Party Payments,430100,Rendered by Private Contractors,10-Feb-2016,3085595-17259,"23,461.74",POLAR (NE) LTD.
Neighbourhood Services,Culture & Sport,Premises,125009,Rents,10-Feb-2016,3085493-U5011,"3,425.00",LANGLEY PARK BUSINESS CENTRE.
Neighbourhood Services,Direct Services,Supplies and Services,328041,Clothing Uniforms and Laundry,10-Feb-2016,3085479-7572,500.00,JG UNIFORMS.
Neighbourhood Services,Technical Services,Supplies and Services,304358,Equipment and Materials,10-Feb-2016,3085455-C282,"3,901.60",IAN WILSON.
Neighbourhood Services,Technical Services,Supplies and Services,304358,Equipment and Materials,10-Feb-2016,3085455-C286,"2,974.00",IAN WILSON.
Neighbourhood Services,Technical Services,Supplies and Services,304358,Equipment and Materials,10-Feb-2016,3085769-5292,930.75,YOULL CONSTRUCTION LTD.
Neighbourhood Services,Technical Services,Employees,040149,Recruitment Instruction and Training,10-Feb-2016,302481-28544,"1,500.00",JTL.
Neighbourhood Services,Direct Services,Third Party Payments,430100,Rendered by Private Contractors,10-Feb-2016,3085441-8419,570.00,HILLCREST AUTO ELECTRICS.
Neighbourhood Services,Technical Services,Stock,926900,Stock in hand-Inventory system,10-Feb-2016,3085479-7575,"1,181.00",JG UNIFORMS.
Neighbourhood Services,Direct Services,Supplies and Services,304221,Equipment and Materials,10-Feb-2016,3085327-158,701.80,CEILINGS DIRECT LTD.
Neighbourhood Services,Technical Services,Supplies and Services,304358,Equipment and Materials,10-Feb-2016,3085480-568,"1,299.20",JOHN DOBSON PLANT HIRE LTD.
Neighbourhood Services,Technical Services,Third Party Payments,430128,Rendered by Private Contractors,10-Feb-2016,3085396-163,"2,009.00",F WARD FARM.
Resources,Legal & Democratic Services,Supplies and Services,338042,Services,10-Feb-2016,302489-RES-02-2016-016,"1,152.00",MISS LOUISE MCCALLUM.
Resources,Financial Services,Employees,040149,Recruitment Instruction and Training,10-Feb-2016,3085294-230155,678.00,BENCHMARK BUSINESS TRAINING LTD.
Resources,I.C.T. Services,Supplies and Services,342051,Computers and Communications,10-Feb-2016,3085316-435169,"2,697.45",BYTES SOFTWARE SERVICES LTD.
Resources,Legal & Democratic Services,Supplies and Services,342051,Computers and Communications,10-Feb-2016,3085458-IK24320,600.00,IKEN BUSINESS LTD.
Resources,I.C.T. Services,Supplies and Services,342033,Computers and Communications,10-Feb-2016,3085583-OP/I768970,"2,056.95",PHOENIX SOFTWARE LTD.
Resources,Legal & Democratic Services,Supplies and Services,338057,Services,10-Feb-2016,3085619-0000022336,710.00,ROAR FORENSICS LTD.
Resources,Legal & Democratic Services,Supplies and Services,384965,Miscellaneous Expenses,10-Feb-2016,3085686-35663,838.40,T & I BELL CATERERS.
Children and Adult Services,Commissioning inc Supporting People,Third Party Payments,479111,Purchase of Care,11-Feb-2016,3086066-555/04074,"15,053.00",MENTAL HEALTH MATTERS.
Children and Adult Services,Head of Adults,Transport,230005,Contract Hire,11-Feb-2016,3086243-413A,"1,080.00",TONYS TAXIS (A BIRCH).
Children and Adult Services,Planning & Service Strategy,Supplies and Services,312009,Newspapers Books and Periodicals,11-Feb-2016,3086268-1160300799,620.73,WATERSTONES.
Children and Adult Services,Education,Supplies and Services,312011,Newspapers Books and Periodicals,11-Feb-2016,3085817-4913184,897.63,ASKEWS & HOLTS LIBRARY SERVICES LTD.
Children and Adult Services,Education,Supplies and Services,312009,Newspapers Books and Periodicals,11-Feb-2016,3086132-1568947,798.82,PETERS LTD.
Children and Adult Services,Head of Adults,Supplies and Services,304999,Equipment and Materials,11-Feb-2016,3085827-68321,"2,239.16",BAILEYS BLINDS LTD.
Children and Adult Services,Head of Adults,Premises,125009,Rents,11-Feb-2016,3085917-REIN/00000179,"1,500.00",DERWENTSIDE HOMES LTD.
Children and Adult Services,Public Health,Third Party Payments,460802,Contract Payments,11-Feb-2016,3085961-A83045/Q3/2015CHLAMYDIA,"3,010.00",FERRYHILL & CHILTON MEDICAL PRACTICE.
Children and Adult Services,Public Health,Supplies and Services,384155,Miscellaneous Expenses,11-Feb-2016,3086097-1000047031,"70,119.25",NHS BUSINESS SERVICES AUTHORITY.
Dedicated Schools Grant,Dedicated Schools Grant,Construction Work,908105,Construction work,11-Feb-2016,3085871-18057,"1,962.27",CATHEDRAL LOCK & SAFE SERVICES LTD.
Dedicated Schools Grant,Dedicated Schools Grant,Transport,230010,Contract Hire,11-Feb-2016,3086079-100547-73,"1,870.00",MR GS ANDERSON.
Dedicated Schools Grant,Dedicated Schools Grant,Transport,230010,Contract Hire,11-Feb-2016,3086082-710,700.00,MR S BALL T/A ABBIE`S TAXIS..
Dedicated Schools Grant,Dedicated Schools Grant,Transport,230010,Contract Hire,11-Feb-2016,3086243-410A,"1,400.00",TONYS TAXIS (A BIRCH).
Dedicated Schools Grant,Dedicated Schools Grant,Transport,230010,Contract Hire,11-Feb-2016,3085892-0001610,900.00,COLORS TAXIS LTD.
Children and Adult Services,Education,Transfer Payments,510026,School Children,11-Feb-2016,3085885-EROSE2/11/15-11/1/16,884.00,CLEVER CLOGS DAY NURSERIES LTD.
Children and Adult Services,Education,Transfer Payments,510028,School Children,11-Feb-2016,3085895-CAS-02-2016-036,"2,560.42",CORECARE LTD..
Children and Adult Services,Education,Transfer Payments,510028,School Children,11-Feb-2016,3085898-CAS-02-2016-034,"4,450.83",COUNDON & LEEHOLME EARLY YEARS CENTRE LTD.
Children and Adult Services,Education,Transfer Payments,510028,School Children,11-Feb-2016,3085912-CAS-02-2016-035,659.82,DAYPARK LTD T/A YELLOW WELLIES.
Children and Adult Services,Education,Transfer Payments,510028,School Children,11-Feb-2016,3085980-CAS-02-2016-040,"2,014.05",GIANT STEPS LTD.
Children and Adult Services,Education,Transfer Payments,510028,School Children,11-Feb-2016,3086089-CAS-02-2016-033,"1,300.93",NEW BEGINNINGS (MOORSIDE) CO LTD.
Children and Adult Services,Education,Transfer Payments,510028,School Children,11-Feb-2016,3086228-CAS-02-2016-039,"2,320.23",THE LAURELS CHILD CARE.
Children and Adult Services,Education,Transfer Payments,510028,School Children,11-Feb-2016,3086271-CAS-02-2016-037,794.00,WEARDALE AM/PM SCAMPS LTD.
Children and Adult Services,Education,Transport,230007,Contract Hire,11-Feb-2016,3086243-411A,"1,444.00",TONYS TAXIS (A BIRCH).
Children and Adult Services,Education,Transport,230007,Contract Hire,11-Feb-2016,3085848-45A,"1,034.00",BOBS TAXIS.
Children and Adult Services,Education,Transport,230007,Contract Hire,11-Feb-2016,3086272-16/01,675.00,WEARDALE MOTOR SERVICES LTD.
Children and Adult Services,Education,Transport,230008,Contract Hire,11-Feb-2016,3085789-K34/SC,984.00,AABAT TAXIS.
Children and Adult Services,Education,Transport,230008,Contract Hire,11-Feb-2016,3086243-422,"2,000.00",TONYS TAXIS (A BIRCH).
Children and Adult Services,Education,Transport,230008,Contract Hire,11-Feb-2016,3086081-1018,784.51,MR PETER YOUNG.
Children and Adult Services,Education,Transport,230007,Contract Hire,11-Feb-2016,3085796-SAS0116ESH/2,580.00,AIRPORT CARS DURHAM
Children and Adult Services,Education,Transport,230007,Contract Hire,11-Feb-2016,3085796-SAS0116ESH,900.00,AIRPORT CARS DURHAM
Children and Adult Services,Education,Construction Work,908105,Construction work,11-Feb-2016,3085816-I1514310,"9,310.00",ASKAMS COMPLIANCE SERVICES LTD.
Children and Adult Services,Education,Transport,230007,Contract Hire,11-Feb-2016,3085892-0001615,980.00,COLORS TAXIS LTD.
Children and Adult Services,Education,Transport,230007,Contract Hire,11-Feb-2016,3086243-414A,792.00,TONYS TAXIS (A BIRCH).
Children and Adult Services,Education,Transport,230008,Contract Hire,11-Feb-2016,3086082-708,728.00,MR S BALL T/A ABBIE`S TAXIS..
Children and Adult Services,Education,Transport,230008,Contract Hire,11-Feb-2016,3085892-0001611,"1,260.00",COLORS TAXIS LTD.
Children and Adult Services,Education,Transport,230007,Contract Hire,11-Feb-2016,3085994-HT212,"2,475.00",HARRY`S TAXI`S.
Children and Adult Services,Education,Transport,230007,Contract Hire,11-Feb-2016,3086240-2917,"7,942.00",TM TRAVEL.
Children and Adult Services,Education,Transport,230007,Contract Hire,11-Feb-2016,3086005-0022,"1,990.00",HUNTER BROTHERS (TANTOBIE) LTD.
Children and Adult Services,Education,Transport,230007,Contract Hire,11-Feb-2016,3085830-DJ42260116,"4,824.40",BELL BROTHERS TRAVEL.
Children and Adult Services,Education,Transport,230007,Contract Hire,11-Feb-2016,3086243-418A,836.00,TONYS TAXIS (A BIRCH).
Children and Adult Services,Education,Transport,230007,Contract Hire,11-Feb-2016,3086240-2918,"1,311.00",TM TRAVEL.
Children and Adult Services,Education,Transport,230007,Contract Hire,11-Feb-2016,3085789-K38/SL,836.00,AABAT TAXIS.
Children and Adult Services,Education,Transport,230007,Contract Hire,11-Feb-2016,3086227-29/31/1/2016-M025-E026,"3,818.40",TED WILFORD COACHES.
Children and Adult Services,Education,Transport,230008,Contract Hire,11-Feb-2016,3085789-K33/SA,"2,491.20",AABAT TAXIS.
Children and Adult Services,Education,Transport,230008,Contract Hire,11-Feb-2016,3085789-K43/AC,744.00,AABAT TAXIS.
Children and Adult Services,Education,Transport,230008,Contract Hire,11-Feb-2016,3085876-15,"1,800.00",CHAPMAN TRAVEL.
Children and Adult Services,Education,Transport,230008,Contract Hire,11-Feb-2016,3086243-415A,"2,440.00",TONYS TAXIS (A BIRCH).
Children and Adult Services,Education,Transport,230008,Contract Hire,11-Feb-2016,3085797-16MO,836.00,AJ ADAMSON (TONY`S TAXIS).
Children and Adult Services,Education,Transport,230007,Contract Hire,11-Feb-2016,3085821-03381,854.40,ATLAS TAXIS CONSETT.
Children and Adult Services,Education,Transport,230008,Contract Hire,11-Feb-2016,3086014-1592,960.00,J YOUNG T/A VIP TAXIS.
Children and Adult Services,Education,Transport,230008,Contract Hire,11-Feb-2016,3086082-709,"1,400.00",MR S BALL T/A ABBIE`S TAXIS..
Children and Adult Services,Education,Transport,230008,Contract Hire,11-Feb-2016,3086206-48,703.80,STEELYS TAXIS.
Children and Adult Services,Education,Transport,230008,Contract Hire,11-Feb-2016,3086098-4033-JAN2016,912.00,NIGHTINGALE COACHES.
Children and Adult Services,Education,Transport,230008,Contract Hire,11-Feb-2016,3085773-NO310116,"2,052.00",1ST AID COMMERCIALS LTD.
Children and Adult Services,Education,Transport,230008,Contract Hire,11-Feb-2016,3085789-K35/SD,989.40,AABAT TAXIS.
Children and Adult Services,Education,Transport,230008,Contract Hire,11-Feb-2016,3085972-0116,"1,495.00",FRANK ATKINSON T/A FJ MINIBUS TRAVEL.
Children and Adult Services,Education,Transport,230008,Contract Hire,11-Feb-2016,3085994-HT207,"2,520.72",HARRY`S TAXI`S.
Children and Adult Services,Education,Transport,230008,Contract Hire,11-Feb-2016,3086270-422,"1,610.00",WAYSIDE TAXIS.
Children and Adult Services,Education,Transport,230008,Contract Hire,11-Feb-2016,3085892-0001613,"2,000.00",COLORS TAXIS LTD.
Children and Adult Services,Education,Transport,230008,Contract Hire,11-Feb-2016,3085847-1399,"1,602.55",BOBBY DOVE.
Children and Adult Services,Education,Transport,230008,Contract Hire,11-Feb-2016,3086076-2014-179,"1,718.74",MR D KEMP T/A ACE EXECUTIVE.
Children and Adult Services,Education,Transport,230008,Contract Hire,11-Feb-2016,3086079-99R46-72,"2,229.46",MR GS ANDERSON.
Children and Adult Services,Education,Transport,230008,Contract Hire,11-Feb-2016,3086184-71958,"1,014.00",SHOTTON PRIVATE HIRE.
Children and Adult Services,Education,Transport,230008,Contract Hire,11-Feb-2016,3086243-419A,608.00,TONYS TAXIS (A BIRCH).
Children and Adult Services,Education,Transport,230008,Contract Hire,11-Feb-2016,3086077-45A,"2,138.74",MR G FREELAND T/A HUNWICK CARS.
Children and Adult Services,Education,Transport,230008,Contract Hire,11-Feb-2016,3085844-0011,700.00,BLACKS PRIVATE HIRE.
Children and Adult Services,Education,Transport,230008,Contract Hire,11-Feb-2016,3086218-B780,"1,966.00",TALBOTS TRAVEL LTD.
Children and Adult Services,Education,Transport,230008,Contract Hire,11-Feb-2016,3085840-06837,"1,634.04",BIRDS TAXIS.
Children and Adult Services,Education,Transport,230008,Contract Hire,11-Feb-2016,3085840-06838,"1,453.68",BIRDS TAXIS.
Children and Adult Services,Education,Transport,230008,Contract Hire,11-Feb-2016,3085840-06839,"1,620.00",BIRDS TAXIS.
Children and Adult Services,Education,Transport,230008,Contract Hire,11-Feb-2016,3085905-DI201601,"1,447.00",D&I TAXIS.
Children and Adult Services,Education,Transport,230008,Contract Hire,11-Feb-2016,3085906-1448,"1,092.06",DA TAXIS.
Children and Adult Services,Education,Transport,230008,Contract Hire,11-Feb-2016,3085913-0116/001,"1,271.16",DCM TAXIS.
Children and Adult Services,Education,Transport,230008,Contract Hire,11-Feb-2016,3085972-1601,"2,450.88",FRANK ATKINSON T/A FJ MINIBUS TRAVEL.
Children and Adult Services,Education,Transport,230008,Contract Hire,11-Feb-2016,3086217-1297,"1,980.00",TALBOTS TAXIS.
Children and Adult Services,Education,Transport,230008,Contract Hire,11-Feb-2016,3086218-B777,"1,711.36",TALBOTS TRAVEL LTD.
Children and Adult Services,Education,Transport,230008,Contract Hire,11-Feb-2016,3085789-K36/SE,"1,344.60",AABAT TAXIS.
Children and Adult Services,Education,Transport,230008,Contract Hire,11-Feb-2016,3086218-B779,960.00,TALBOTS TRAVEL LTD.
Children and Adult Services,Education,Transport,230006,Contract Hire,11-Feb-2016,3085820-DCC9JAN16,750.00,ATLAS TAXIS BISHOP AUCKLAND.
Children and Adult Services,Education,Transport,230006,Contract Hire,11-Feb-2016,3085892-0001614,"1,241.00",COLORS TAXIS LTD.
Children and Adult Services,Education,Transport,230006,Contract Hire,11-Feb-2016,3086064-MCD44506,"1,480.00",MCDONALD TRAVEL.
Children and Adult Services,Education,Transport,230006,Contract Hire,11-Feb-2016,3086222-DCC/2015/67,"1,080.00",TAYLOR`S TAXIS.
Children and Adult Services,Education,Transport,230006,Contract Hire,11-Feb-2016,3086243-420A,"1,200.00",TONYS TAXIS (A BIRCH).
Children and Adult Services,Education,Supplies and Services,384199,Miscellaneous Expenses,11-Feb-2016,3085932-000023,"3,000.00",DS TRAINING SOLUTIONS LTD.
Children and Adult Services,Education,Supplies and Services,384540,Miscellaneous Expenses,11-Feb-2016,3086144-0000318362,888.00,PRIMESIGHT LTD.
Dedicated Schools Grant,Dedicated Schools Grant,Transport,230011,Contract Hire,11-Feb-2016,3086016-00161,552.00,JAFFAS TAXIS.
Children and Adult Services,Planning & Service Strategy,Supplies and Services,372009,Subscriptions,11-Feb-2016,3086264-110487,"8,000.00",VIRTUAL COLLEGE LTD.
Children and Adult Services,Childrens Services,Third Party Payments,425040,Rendered by Voluntary Organisations,11-Feb-2016,3085966-0000058659,"1,400.00",FIVE RIVERS CHILD CARE LTD.
Children and Adult Services,Childrens Services,Third Party Payments,425040,Rendered by Voluntary Organisations,11-Feb-2016,3085966-0000058660,"2,900.00",FIVE RIVERS CHILD CARE LTD.
Children and Adult Services,Childrens Services,Third Party Payments,425017,Rendered by Voluntary Organisations,11-Feb-2016,3086128-26816,"2,944.00",PERCY HEDLEY FOUNDATION.
Children and Adult Services,Childrens Services,Third Party Payments,425020,Rendered by Voluntary Organisations,11-Feb-2016,3086199-1161293,580.80,ST CUTHBERTS CARE.
Children and Adult Services,Childrens Services,Supplies and Services,384638,Miscellaneous Expenses,11-Feb-2016,3086056-MCT-04,"5,000.00",MAKING CHANGES TOGETHER PARENTS STEERING GROUP.
Children and Adult Services,Childrens Services,Supplies and Services,308011,Furniture,11-Feb-2016,3085798-154414,799.50,ALBANY CONTRACT FURNITURE.
Children and Adult Services,Childrens Services,Supplies and Services,332047,Printing Stationery and Gen Off Exps,11-Feb-2016,3085798-154418,799.50,ALBANY CONTRACT FURNITURE.
Children and Adult Services,Childrens Services,Third Party Payments,486019,Service Level Agreements,11-Feb-2016,3086241-260152108,"53,980.25",TNS UK LTD.
Children and Adult Services,Childrens Services,Third Party Payments,486019,Service Level Agreements,11-Feb-2016,3086241-260158263,"53,980.25",TNS UK LTD.
Children and Adult Services,Childrens Services,Supplies and Services,342033,Computers and Communications,11-Feb-2016,3085866-5156,"7,430.00",CAREWORKS (IRELAND) LTD.
Children and Adult Services,Childrens Services,Supplies and Services,338094,Services,11-Feb-2016,3085889-3980015343,"1,319.49",CO DURHAM & DARLINGTON NHS FOUNDATION TRUST.
Children and Adult Services,Childrens Services,Supplies and Services,384362,Miscellaneous Expenses,11-Feb-2016,3086190-216186,780.00,SIMPLY SPORT LTD.
Children and Adult Services,Central Charges (CYPS),Creditors,952258,Creditor-West Durham Cluster,11-Feb-2016,3086029-241737,"1,500.00",KEITH N TAYLOR.
Neighbourhood Services,Technical Services,Income,720115,Fees and Charges,11-Feb-2016,3086078-NEI-INC-02-2016-011,899.00,REDACTED - PAYMENT TO INDIVIDUAL
Neighbourhood Services,Technical Services,Supplies and Services,304221,Equipment and Materials,11-Feb-2016,3086187-298946/120259,627.12,SIGNATURE LTD T/A POST & COLUMN CO LTD.
Neighbourhood Services,Technical Services,Supplies and Services,304221,Equipment and Materials,11-Feb-2016,3086187-298949/120259,753.87,SIGNATURE LTD T/A POST & COLUMN CO LTD.
Neighbourhood Services,Direct Services,Supplies and Services,304221,Equipment and Materials,11-Feb-2016,3086214-JE01048/TL/EP,974.26,T MANNERS & SONS LTD.
Neighbourhood Services,Culture & Sport,Supplies and Services,304221,Equipment and Materials,11-Feb-2016,3085815-SIN162434,"1,082.80",ASA AWARDS.
Neighbourhood Services,Direct Services,Supplies and Services,304221,Equipment and Materials,11-Feb-2016,3086026-BAI256437,"2,570.40",JT DOVE LTD.
Neighbourhood Services,Direct Services,Supplies and Services,304221,Equipment and Materials,11-Feb-2016,3086026-BAI256438,"1,482.32",JT DOVE LTD.
Neighbourhood Services,Technical Services,Stock,926900,Stock in hand-Inventory system,11-Feb-2016,3085810-926289449,710.55,ARCO LTD.
Neighbourhood Services,Technical Services,Stock,926900,Stock in hand-Inventory system,11-Feb-2016,3085810-926435022,"1,016.00",ARCO LTD.
Neighbourhood Services,Technical Services,Stock,926900,Stock in hand-Inventory system,11-Feb-2016,3085810-926446849,"2,814.22",ARCO LTD.
Neighbourhood Services,Technical Services,Stock,926900,Stock in hand-Inventory system,11-Feb-2016,3086026-STI430121,618.04,JT DOVE LTD.
Neighbourhood Services,Technical Services,Supplies and Services,304221,Equipment and Materials,11-Feb-2016,3085794-22586004,"1,903.57",AGGREGATE INDUSTRIES UK LTD.
Neighbourhood Services,Technical Services,Supplies and Services,304221,Equipment and Materials,11-Feb-2016,3085794-22586005,"1,233.94",AGGREGATE INDUSTRIES UK LTD.
Neighbourhood Services,Technical Services,Supplies and Services,304221,Equipment and Materials,11-Feb-2016,3085794-22586006,"1,455.48",AGGREGATE INDUSTRIES UK LTD.
Neighbourhood Services,Technical Services,Supplies and Services,304221,Equipment and Materials,11-Feb-2016,3085794-22586007,"1,061.12",AGGREGATE INDUSTRIES UK LTD.
Neighbourhood Services,Technical Services,Supplies and Services,304221,Equipment and Materials,11-Feb-2016,3085794-22586008,"1,084.98",AGGREGATE INDUSTRIES UK LTD.
Neighbourhood Services,Direct Services,Supplies and Services,304221,Equipment and Materials,11-Feb-2016,3086186-00488837,"3,319.94",SIG TRADING LTD T/A CARPET & FLOORING LTD.
Neighbourhood Services,Technical Services,Stock,926900,Stock in hand-Inventory system,11-Feb-2016,3086121-XL162407,610.00,PARK ELECTRICAL DISTRIBUTORS LTD.
Neighbourhood Services,Technical Services,Stock,926900,Stock in hand-Inventory system,11-Feb-2016,3086121-XL162408,"1,184.00",PARK ELECTRICAL DISTRIBUTORS LTD.
Neighbourhood Services,Technical Services,Stock,926900,Stock in hand-Inventory system,11-Feb-2016,3086121-XL162409,780.00,PARK ELECTRICAL DISTRIBUTORS LTD.
Neighbourhood Services,Technical Services,Stock,926900,Stock in hand-Inventory system,11-Feb-2016,3086121-XL162413,"1,507.00",PARK ELECTRICAL DISTRIBUTORS LTD.
Neighbourhood Services,Direct Services,Transport,230005,Contract Hire,11-Feb-2016,3086049-123685,"1,900.00",LONDONDERRY GARAGE (S.E) LTD.
Neighbourhood Services,Direct Services,Transport,230005,Contract Hire,11-Feb-2016,3086049-123798,"1,385.06",LONDONDERRY GARAGE (S.E) LTD.
Neighbourhood Services,Culture & Sport,Supplies and Services,312013,Newspapers Books and Periodicals,11-Feb-2016,3086094-003304,571.88,NEWSMARKET.
Neighbourhood Services,Direct Services,Third Party Payments,430100,Rendered by Private Contractors,11-Feb-2016,3085978-C04290,548.20,GEESINK NORBA LTD.
Neighbourhood Services,Direct Services,Transport,210057,Repair and Maintenance of Vehicles,11-Feb-2016,3085987-127039,"3,265.41",GREENLAY (GRASS MACHINERY) LTD.
Neighbourhood Services,Technical Services,Construction Work,908105,Construction work,11-Feb-2016,3086015-12115,"1,545.10",JACK COUPE & SONS LTD T/A COUPE LINE.
Neighbourhood Services,Technical Services,Supplies and Services,304221,Equipment and Materials,11-Feb-2016,3086086-49147,"4,800.00",NAL LTD.
Neighbourhood Services,Technical Services,Third Party Payments,430100,Rendered by Private Contractors,11-Feb-2016,3085855-37590,"22,834.00",BRIDGEWAY CONSULTING LTD.
Neighbourhood Services,Technical Services,Third Party Payments,430100,Rendered by Private Contractors,11-Feb-2016,3085855-37591,"2,862.30",BRIDGEWAY CONSULTING LTD.
Neighbourhood Services,Technical Services,Third Party Payments,430100,Rendered by Private Contractors,11-Feb-2016,3085855-37592,"4,771.60",BRIDGEWAY CONSULTING LTD.
Neighbourhood Services,Direct Services,Third Party Payments,430100,Rendered by Private Contractors,11-Feb-2016,3085871-17950,920.15,CATHEDRAL LOCK & SAFE SERVICES LTD.
Neighbourhood Services,Direct Services,Third Party Payments,430100,Rendered by Private Contractors,11-Feb-2016,3085871-17951,"1,840.30",CATHEDRAL LOCK & SAFE SERVICES LTD.
Neighbourhood Services,Direct Services,Third Party Payments,430100,Rendered by Private Contractors,11-Feb-2016,3085871-17952,"3,772.28",CATHEDRAL LOCK & SAFE SERVICES LTD.
Neighbourhood Services,Direct Services,Third Party Payments,430100,Rendered by Private Contractors,11-Feb-2016,3085871-17953,"3,680.60",CATHEDRAL LOCK & SAFE SERVICES LTD.
Neighbourhood Services,Direct Services,Third Party Payments,430100,Rendered by Private Contractors,11-Feb-2016,3085871-17954,"3,785.80",CATHEDRAL LOCK & SAFE SERVICES LTD.
Neighbourhood Services,Direct Services,Third Party Payments,430100,Rendered by Private Contractors,11-Feb-2016,3086236-10983,"55,887.88",THORNTON (CONTRACTS) LTD.
Neighbourhood Services,Direct Services,Third Party Payments,460305,Contract Payments,11-Feb-2016,3085891-2063,"1,260.00",CO-WHEELS CAR CLUB CIC.
Neighbourhood Services,Culture & Sport,Supplies and Services,384199,Miscellaneous Expenses,11-Feb-2016,3085808-4202,640.00,ARC ENTERTAINMENTS.
Neighbourhood Services,Technical Services,Stock,926900,Stock in hand-Inventory system,11-Feb-2016,3086021-7557,"1,027.47",JG UNIFORMS.
Resources,Human Resources,Supplies and Services,338221,Services,11-Feb-2016,3085996-513,913.33,HEALTH ASSURED LTD.
Resources,Financial Services,Supplies and Services,384180,Miscellaneous Expenses,11-Feb-2016,3086051-0869313,605.93,LOOMIS UK LTD.
Resources,I.C.T. Services,Supplies and Services,342051,Computers and Communications,11-Feb-2016,3086117-1516651,"4,449.60",ORACLE CORPORATION UK LTD.
Resources,I.C.T. Services,Supplies and Services,332029,Printing Stationery and Gen Off Exps,11-Feb-2016,3086139-625948,"1,634.00",POTTS PRINTERS LTD.
Children and Adult Services,Head of Adults,Transport,230005,Contract Hire,12-Feb-2016,3086308-L3/DC,827.60,AABAT TAXIS.
Children and Adult Services,Commissioning inc Supporting People,Third Party Payments,470111,Purchase of Care,12-Feb-2016,3086501-RINVTP/00387181,"4,128.14",LEONARD CHESHIRE DISABILITY.
Children and Adult Services,Commissioning inc Supporting People,Third Party Payments,479111,Purchase of Care,12-Feb-2016,3086450-CES010,"3,333.33",HOMECARE SUPPORT LTD T/A THE HUMAN SUPPORT GROUP.
Children and Adult Services,Head of Adults,Transport,230005,Contract Hire,12-Feb-2016,3086550-4059,840.00,NIGHTINGALE COACHES.
Children and Adult Services,Head of Adults,Supplies and Services,324117,Provisions,12-Feb-2016,3086325-27,"1,013.40",ASHBARTON CATERING.
Children and Adult Services,Central/Other,Debtors,930133,Debtor IC+ Out of Hours - Home Care,12-Feb-2016,3086450-DOO22,"8,333.33",HOMECARE SUPPORT LTD T/A THE HUMAN SUPPORT GROUP.
Children and Adult Services,Education,Supplies and Services,338094,Services,12-Feb-2016,3086499-2011323,742.50,LEISUREWORKS.
Dedicated Schools Grant,Dedicated Schools Grant,Transport,230010,Contract Hire,12-Feb-2016,3086624-17725,874.65,STANLEY TRAVEL (NORTH EAST) LTD.
Dedicated Schools Grant,Dedicated Schools Grant,Transport,230010,Contract Hire,12-Feb-2016,3086624-17730,"1,160.00",STANLEY TRAVEL (NORTH EAST) LTD.
Dedicated Schools Grant,Dedicated Schools Grant,Transport,230010,Contract Hire,12-Feb-2016,3086502-3344,869.50,LINCAB TAXIS.
Dedicated Schools Grant,Dedicated Schools Grant,Transport,230010,Contract Hire,12-Feb-2016,3086624-17724,"1,743.50",STANLEY TRAVEL (NORTH EAST) LTD.
Dedicated Schools Grant,Dedicated Schools Grant,Employees,080025,Agency Staff,12-Feb-2016,3086640-1078057,880.00,TEACHING PERSONNEL LTD.
Children and Adult Services,Education,Transfer Payments,510028,School Children,12-Feb-2016,3086668-CAS-02-2016-109,667.18,VICTORIA WINTER YOUNG.
Children and Adult Services,Education,Transport,230007,Contract Hire,12-Feb-2016,3086524-00819,"1,425.00",MICHAELS TRAVEL.
